Workbook

Sheet README
A1: ReleaseVersion | B1: rdtv3
A2: ReleaseDate | B2: 2022-09-23
D4: In order to run the macro, LSEs must FIRST enable macros. Then, they are instructed to complete the RDT data entry fully, then push the button on the README tab.

Sheet ReleaseNotes
A1: ReleaseVersion | B1: ReleaseDate | C1: ID | D1: Note
A2: RDTv3 beta | B2: 2022-06-06
A3: RDTv3 Release | B3: 2022-06-15
A4: RDTv3 Updated | B4: 2022-06-20 | D4: Minor updates in columns' names
A5: RDTv3 Updated | B5: 2022-07-15 | D5: Reliability tabs updates & some minor updates to the resource tab
A6: RDTv3 Updated | B6: 2022-07-29 | D6: 1)"misc" tab: updated with all ELCC % values and added MRN/TRN ratios 2)“Reliability” tab: added formulas to pull MRN/TRN ratios from the “misc” worksheet; updated formatting for cells H23:J50 and L23:P50 (previously greyed out since results weren’t available for those years) 3)“Calcs” tab: updated formulas in columns S:T so that battery contracts with durations greater than or equal to 9 hours will get “8hr_batteries” ELCC%; updated formulas in columns S:T and added formulas in column Y so that battery contracts with durations less than 4 hours will get (“4hr_batteries” ELCC%) * (contract duration) / 4hr
A7: RDTv3 Updated | B7: 2022-08-23 | D7: 1)"resources" tab: updated to include several new resource IDs, remove duplicates, adjust how baseline hybrid/paired resources are characterized, and update some project-specific information 2) "btm_pv_forecast" tab: Added an additional LSE 3)“ReportSheet” tab: new macro generated error flag, Rows with invalid buying_energy_capacity and csp_resource_category; flags contracts with non-storage CSP resources is marked as CapacityOnly and is marked as CSP. 4)“ReportSheet” tab: summation now includes contracts that ara both "Buy" and "Owned"
A8: RDTv3 Updated | B8: 2022-09-23 | D8: 1) corrects made to macro 2) fixes the ELCC type issues for a few generic resources
A9: RDTv3 Updated | B9: 2022-10-11 | D9: 1) corrects made to the "CSPReportSheet"

Sheet unique_contracts
A1: lse_unique_contract_id | B1: resource | C1: alternative_resource_name | D1: contract_status | E1: project_interconnection_position | F1: interconnection_substation | G1: marginal_addition | H1: marginal_addition_to | I1: total_nameplate_capacity | J1: contracted_nameplate_capacity | K1: sep_contracted_mw_nqc | L1: contract_gwh_annual | M1: is_hybrid_paired | N1: can_charge_from_grid | O1: total_generator_mw | P1: contracted_generator_mw | Q1: total_storage_mw | R1: contracted_storage_mw | S1: solar_technology_sub_type | T1: storage_technology_sub_type | U1: total_storage_depth_mwh | V1: contracted_storage_depth_mwh | W1: viability_cod_reasonableness | X1: viability_technical_feasibility | Y1: viability_financing_sitecontrol | Z1: resource_mix | AA1: cam_d1911016_vamo_ghgfreepcia | AB1: buy_sell_own | AC1: counterparty | AD1: generator_supplier | AE1: developer_name | AF1: capacity_area | AG1: capacity_sub_area | AH1: cpuc_approval_ref | AI1: county | AJ1: COD_year | AK1: COD_month | AL1: COD_day | AM1: contract_start_date_year | AN1: contract_start_date_month | AO1: contract_start_date_day | AP1: contract_end_date_year | AQ1: contract_end_date_month | AR1: contract_end_date_day | AS1: contract_execution_date_year | AT1: contract_execution_date_month | AU1: contract_execution_date_day | AV1: tx_upgrades | AW1: tx_upgrade_date_year | AX1: tx_upgrade_date_month | AY1: tx_upgrade_date_day | AZ1: tx_upgrade_description | BA1: d1911016_tranche | BB1: d2106035_procurement_cat | BC1: mtr_tranche1_NQC | BD1: mtr_tranche2_NQC | BE1: mtr_tranche3_NQC | BF1: mtr_tranche4_NQC_LDES | BG1: mtr_tranche4_NQC_firm_ZE | BH1: mtr_NQC_ZE_gen_paired_dr | BI1: previous_COD_year | BJ1: previous_COD_month | BK1: previous_COD_day | BL1: remediation_plan | BM1: signed_contract | BN1: notice_to_proceed | BO1: public_contract | BP1: buying_energy_capacity | BQ1: NQC_reporting_source | BR1: procurement_origin | BS1: csp_resource_category | BT1: csp_annual_2024 | BU1: csp_annual_2026 | BV1: csp_annual_2030 | BW1: csp_annual_2035 | BX1: macro_supertype | BY1: notes
A2: UC_RAONLY_RCEA_2 | B2: _NEW_GENERIC_SOLAR_1AXIS | C2: Sandrini Sol 1 Solar Park | D2: Development | E2: Q-1213 | F2: NA | G2: NA | M2: NotHybrid | S2: 1Axis | AA2: D.19-11-016 | AB2: Buy | AC2: Redwood Coast Energy Authority | AD2: EDPR North America | AE2: NA | AF2: Kern | AI2: KernCounty | BA2: 3 | BL2: NO | BM2: YES | BN2: YES | BP2: CapacityOnly | BQ2: In the contract | BR2: D1911016 | BS2: NA | BX2: newgeneric
A3: UC_PPA_GoldenFields_1 | B3: _NEW_GENERIC_SOLAR_1AXIS | D3: Development | E3: Q-1212 | F3: NA | G3: NA | M3: NotHybrid | S3: 1Axis | AB3: Buy | AC3: non-LSE supplier | AD3: Golden_Fields_Solar_IV_LLC | AE3: NA | AF3: Kern | AI3: KernCounty | BL3: NA | BM3: YES | BP3: EnergyCapacity | BQ3: Calculated | BS3: Solar New SCE SDG&E (GWh) | BX3: newgeneric
B4: _NEW_GENERIC_BATTERY_STORAGE | D4: Development | E4: Q-1212 | F4: NA | G4: NA | M4: NotHybrid | T4: Li | U4: 120 | AB4: Buy | AC4: non-LSE supplier | AE4: NA | AF4: Kern | AI4: KernCounty | BL4: NA | BM4: NO | BP4: EnergyCapacity | BQ4: Calculated | BS4: Battery Storage (MWh Energy Capacity) | BX4: newgeneric
A5: PGE_Development_battery_1 | B5: _NEW_GENERIC_BATTERY_STORAGE | D5: Development | M5: NotHybrid | T5: Li | AA5: CAM | AB5: Buy | AC5: Pacific Gas & Electric | BP5: CapacityOnly | BS5: Battery Storage (MWh Energy Capacity) | BX5: newgeneric
A6: PGE_Development_battery_2 | B6: _NEW_GENERIC_BATTERY_STORAGE | D6: Development | M6: NotHybrid | T6: Li | AA6: CAM | AB6: Buy | AC6: Pacific Gas & Electric | BP6: EnergyCapacity | BS6: Battery Storage (MWh Energy Capacity) | BX6: newgeneric
A7: SDGE_Development_Battery_1 | B7: _NEW_GENERIC_BATTERY_STORAGE | D7: Development | M7: NotHybrid | T7: Li | AA7: CAM | AB7: Buy | AC7: San Diego Gas & Electric | BP7: EnergyCapacity | BS7: Battery Storage (MWh Energy Capacity) | BX7: newgeneric
A8: SDGE_Development_Battery_2 | B8: _NEW_GENERIC_BATTERY_STORAGE | D8: Development | M8: NotHybrid | T8: Li | AA8: CAM | AB8: Buy | AC8: San Diego Gas & Electric | BP8: EnergyCapacity | BS8: Battery Storage (MWh Energy Capacity) | BX8: newgeneric
A9: SCE_Development_Battery_1 | B9: _NEW_GENERIC_BATTERY_STORAGE | D9: Development | M9: NotHybrid | T9: Li | AA9: CAM | AB9: Buy | AC9: Southern California Edison | BP9: CapacityOnly | BS9: Battery Storage (MWh Energy Capacity) | BX9: newgeneric
A10: SCE_Development_Battery_2 | B10: _NEW_GENERIC_BATTERY_STORAGE | D10: Development | M10: NotHybrid | T10: Li | AA10: CAM | AB10: Buy | AC10: Southern California Edison | BP10: CapacityOnly | BS10: Battery Storage (MWh Energy Capacity) | BX10: newgeneric
A11: SCE_Development_CHP_1 | B11: _NEW_GENERIC_COGEN | D11: Development | M11: NotHybrid | AA11: CAM | AB11: Buy | AC11: Southern California Edison | BP11: CapacityOnly | BS11: NA | BX11: newgeneric
A12: UC_PPA_Giffen | B12: GIFENS_6_BUGSL1 | D12: Online | G12: NA | M12: NotHybrid | S12: 1Axis | AA12: D.19-11-016 | AB12: Buy | AC12: non-LSE supplier | AD12: Giffen_Solar_Park_LLC | AE12: NA | AF12: GreaterFresno | AI12: FresnoCounty | AJ12: 2017 | AK12: 8 | AL12: 3 | AM12: 2014 | AN12: 9 | AO12: 3 | AP12: 2042 | AQ12: 8 | AR12: 2 | AS12: 2014 | AT12: 9 | AU12: 3 | BA12: 1&2&3 | BL12: NO | BM12: YES | BN12: YES | BP12: EnergyCapacity | BQ12: In the contract | BR12: D1911016 | BS12: Solar Baseline California (GWh) | BT12: 37.39428 | BU12: 37.17008 | BV12: 36.72624 | BW12: 36.17828 | BX12: physical
A13: UC_GHGPCIA_PGE_1 | B13: _EXISTING_GENERIC_INSTATE_LARGE_HYDRO | D13: Online | G13: NA | M13: NotHybrid | AA13: GHG-free PCIA | AB13: Buy | AC13: Pacific Gas & Electric | AD13: NA | AE13: NA | AM13: 2020 | AN13: 8 | AO13: 1 | AP13: 2035 | AQ13: 12 | AR13: 31 | AS13: 2020 | AT13: 7 | AU13: 10 | BL13: NA | BP13: EnergyOnly | BS13: Large Hydro (GWh) | BT13: 9.0159 | BU13: 9.0159 | BV13: 9.0159 | BW13: 9.0159 | BX13: existinggeneric
A14: UC_GHGPCIA_PGE_2 | B14: _EXISTING_GENERIC_NUCLEAR | D14: Online | G14: NA | M14: NotHybrid | AA14: GHG-free PCIA | AB14: Buy | AC14: Pacific Gas & Electric | AD14: NA | AE14: NA | AM14: 2020 | AN14: 8 | AO14: 1 | AP14: 2025 | AQ14: 8 | AR14: 20 | AS14: 2020 | AT14: 7 | AU14: 10 | BL14: NA | BP14: EnergyOnly | BS14: Nuclear (GWh) | BT14: 33.255 | BU14: 0 | BV14: 0 | BW14: 0 | BX14: existinggeneric
A15: UC_GHGPCIA_SCE_1 | B15: _EXISTING_GENERIC_INSTATE_LARGE_HYDRO | D15: Online | G15: NA | M15: NotHybrid | AA15: GHG-free PCIA | AB15: Buy | AC15: Southern California Edison | AD15: NA | AE15: NA | AM15: 2020 | AN15: 10 | AO15: 1 | AP15: 2035 | AQ15: 12 | AR15: 31 | AS15: 2020 | AT15: 5 | AU15: 29 | BL15: NA | BP15: EnergyOnly | BS15: Large Hydro (GWh) | BT15: 0.7755 | BU15: 0.7755 | BV15: 0.7755 | BW15: 0.7755 | BX15: existinggeneric
A16: UC_GHGPCIA_SCE_2 | B16: _EXISTING_GENERIC_NUCLEAR | D16: Online | G16: NA | M16: NotHybrid | AA16: GHG-free PCIA | AB16: Buy | AC16: Southern California Edison | AD16: NA | AE16: NA | AM16: 2020 | AN16: 10 | AO16: 1 | AP16: 2035 | AQ16: 12 | AR16: 31 | AS16: 2020 | AT16: 5 | AU16: 29 | BL16: NA | BP16: EnergyOnly | BS16: Nuclear (GWh) | BT16: 1.5357 | BU16: 1.5357 | BV16: 1.5357 | BW16: 1.5357 | BX16: existinggeneric
A17: UC_PPA_FivePoints | B17: EXCLSG_1_SOLAR | D17: Online | G17: NA | M17: NotHybrid | S17: 1Axis | AB17: Buy | AC17: non-LSE supplier | AD17: Five_Points_Solar_Park_LLC | AE17: NA | AF17: GreaterFresno | AI17: FresnoCounty | AJ17: 2016 | AK17: 11 | AL17: 2 | AM17: 2014 | AN17: 9 | AO17: 3 | AP17: 2041 | AQ17: 10 | AR17: 31 | AS17: 2014 | AT17: 9 | AU17: 3 | BL17: NA | BM17: YES | BP17: EnergyCapacity | BQ17: In the contract | BS17: Solar Baseline California (GWh) | BT17: 115.5884 | BU17: 114.89604 | BV17: 113.455 | BW17: 111.83096 | BX17: physical
A18: UC_BRAllocation_WAPA_1 | B18: _EXISTING_GENERIC_INSTATE_LARGE_HYDRO | D18: Online | G18: NA | M18: NotHybrid | AB18: Buy | AC18: non-LSE supplier | AD18: Western Area Power Administration | AE18: NA | AJ18: 2025 | AK18: 1 | AL18: 1 | AM18: 2025 | AN18: 1 | AO18: 1 | AP18: 2054 | AQ18: 12 | AR18: 31 | AS18: 2021 | AT18: 3 | AU18: 16 | BL18: NA | BM18: YES | BP18: EnergyOnly | BS18: Large Hydro (GWh) | BT18: 0 | BU18: 4.9 | BV18: 4.9 | BW18: 4.9 | BX18: existinggeneric
A19: UC_RAONLY_SGPM_1 | B19: TERMEX_2_PL1X3 | D19: Online | G19: NA | M19: NotHybrid | AB19: Buy | AC19: non-LSE supplier | AD19: Sempra_Gas_Power_Marketing_LLC | AE19: NA | AF19: SanDiegoImperialValley | AI19: BajaCaliforniaMexico | AM19: 2025 | AN19: 1 | AO19: 1 | AP19: 2025 | AQ19: 12 | AR19: 31 | AS19: 2021 | AT19: 8 | AU19: 21 | BL19: NA | BM19: YES | BP19: CapacityOnly | BQ19: In the contract | BS19: NA | BX19: physical
A20: UC_RAONLY_SGPM_2 | B20: TERMEX_2_PL1X3 | D20: Online | G20: NA | M20: NotHybrid | AB20: Buy | AC20: non-LSE supplier | AD20: Sempra_Gas_Power_Marketing_LLC | AE20: NA | AF20: SanDiegoImperialValley | AI20: BajaCaliforniaMexico | AM20: 2020 | AN20: 3 | AO20: 17 | AP20: 2024 | AQ20: 12 | AR20: 31 | AS20: 2020 | AT20: 3 | AU20: 17 | BL20: NA | BM20: YES | BP20: CapacityOnly | BQ20: In the contract | BS20: NA | BX20: physical
A21: UC_RAONLY_CC_1 | B21: _EXISTING_GENERIC_COMBINED_CYCLE | D21: Online | G21: NA | M21: NotHybrid | AB21: Buy | AC21: non-LSE supplier | AE21: NA | AM21: 2024 | AN21: 1 | AO21: 1 | AP21: 2024 | AQ21: 12 | AR21: 31 | BL21: NA | BM21: NO | BP21: CapacityOnly | BQ21: Calculated | BS21: NA | BX21: existinggeneric
A22: UC_RAONLY_CC_2 | B22: _EXISTING_GENERIC_COMBINED_CYCLE | D22: Online | G22: NA | M22: NotHybrid | AB22: Buy | AC22: non-LSE supplier | AE22: NA | AM22: 2033 | AN22: 1 | AO22: 1 | AP22: 2035 | AQ22: 12 | AR22: 31 | BL22: NA | BM22: NO | BP22: CapacityOnly | BQ22: Calculated | BS22: NA | BX22: existinggeneric
A23: PGE_Online_ccgt_1 | B23: _EXISTING_GENERIC_COMBINED_CYCLE | D23: Online | M23: NotHybrid | AA23: CAM | AB23: Buy | AC23: Pacific Gas & Electric | AJ23: 2018 | AK23: 1 | AL23: 1 | AM23: 2024 | AN23: 1 | AO23: 1 | AP23: 2026 | AQ23: 12 | AR23: 31 | AS23: 2017 | AT23: 1 | AU23: 1 | BP23: EnergyCapacity | BS23: NA | BX23: existinggeneric
A24: PGE_Online_ccgt_2 | B24: _EXISTING_GENERIC_COMBINED_CYCLE | D24: Online | M24: NotHybrid | AA24: CAM | AB24: Buy | AC24: Pacific Gas & Electric | AJ24: 2018 | AK24: 1 | AL24: 1 | AM24: 2024 | AN24: 1 | AO24: 1 | AP24: 2025 | AQ24: 12 | AR24: 31 | AS24: 2017 | AT24: 1 | AU24: 1 | BP24: EnergyCapacity | BS24: NA | BX24: existinggeneric
A25: PGE_Online_ccgt_3 | B25: _EXISTING_GENERIC_COMBINED_CYCLE | D25: Online | M25: NotHybrid | AA25: CAM | AB25: Buy | AC25: Pacific Gas & Electric | AJ25: 2018 | AK25: 1 | AL25: 1 | AM25: 2024 | AN25: 1 | AO25: 1 | AP25: 2024 | AQ25: 12 | AR25: 31 | AS25: 2017 | AT25: 1 | AU25: 1 | BP25: EnergyCapacity | BS25: NA | BX25: existinggeneric
A26: PGE_Online_chp | B26: _EXISTING_GENERIC_COGEN | D26: Online | M26: NotHybrid | AA26: CAM | AB26: Buy | AC26: Pacific Gas & Electric | AJ26: 2018 | AK26: 1 | AL26: 1 | AM26: 2024 | AN26: 1 | AO26: 1 | AP26: 2024 | AQ26: 12 | AR26: 31 | AS26: 2017 | AT26: 1 | AU26: 1 | BP26: EnergyCapacity | BS26: NA | BX26: existinggeneric
A27: PGE_Online_chp_1 | B27: _EXISTING_GENERIC_COGEN | D27: Online | M27: NotHybrid | AA27: CAM | AB27: Buy | AC27: Pacific Gas & Electric | AJ27: 2018 | AK27: 1 | AL27: 1 | AM27: 2024 | AN27: 1 | AO27: 1 | AP27: 2025 | AQ27: 12 | AR27: 31 | AS27: 2017 | AT27: 1 | AU27: 1 | BP27: EnergyCapacity | BS27: NA | BX27: existinggeneric
A28: PGE_Online_chp_2 | B28: _EXISTING_GENERIC_COGEN | D28: Online | M28: NotHybrid | AA28: CAM | AB28: Buy | AC28: Pacific Gas & Electric | AJ28: 2018 | AK28: 1 | AL28: 1 | AM28: 2024 | AN28: 1 | AO28: 1 | AP28: 2026 | AQ28: 12 | AR28: 31 | AS28: 2017 | AT28: 1 | AU28: 1 | BP28: EnergyCapacity | BS28: NA | BX28: existinggeneric
A29: PGE_Online_battery | B29: _EXISTING_GENERIC_BATTERY_STORAGE | D29: Online | M29: NotHybrid | T29: Li | AA29: CAM | AB29: Buy | AC29: Pacific Gas & Electric | AJ29: 2018 | AK29: 1 | AL29: 1 | AM29: 2024 | AN29: 1 | AO29: 1 | AP29: 2035 | AQ29: 12 | AR29: 31 | AS29: 2017 | AT29: 1 | AU29: 1 | BP29: CapacityOnly | BS29: Battery Storage (MWh Energy Capacity) | BT29: 1.299212837 | BU29: 1.299212837 | BV29: 1.299212837 | BW29: 1.299212837 | BX29: existinggeneric
A30: SDGE_Online_Battery | B30: _EXISTING_GENERIC_BATTERY_STORAGE | D30: Online | M30: NotHybrid | T30: Li | AA30: CAM | AB30: Buy | AC30: San Diego Gas & Electric | AJ30: 2018 | AK30: 1 | AL30: 1 | AM30: 2024 | AN30: 1 | AO30: 1 | AP30: 2035 | AQ30: 12 | AR30: 31 | AS30: 2017 | AT30: 1 | AU30: 1 | BP30: EnergyCapacity | BS30: Battery Storage (MWh Energy Capacity) | BT30: 0.08226811383 | BU30: 0.08226811383 | BV30: 0.08226811383 | BW30: 0.08226811383 | BX30: existinggeneric
A31: SDGE_Online_Peaker_1 | B31: _EXISTING_GENERIC_PEAKER | D31: Online | M31: NotHybrid | AA31: CAM | AB31: Buy | AC31: San Diego Gas & Electric | AJ31: 2018 | AK31: 1 | AL31: 1 | AM31: 2024 | AN31: 1 | AO31: 1 | AP31: 2035 | AQ31: 12 | AR31: 31 | AS31: 2017 | AT31: 1 | AU31: 1 | BP31: EnergyCapacity | BS31: NA | BX31: existinggeneric
A32: SDGE_Online_Peaker_2 | B32: _EXISTING_GENERIC_PEAKER | D32: Online | M32: NotHybrid | AA32: CAM | AB32: Buy | AC32: San Diego Gas & Electric | AJ32: 2018 | AK32: 1 | AL32: 1 | AM32: 2024 | AN32: 1 | AO32: 1 | AP32: 2026 | AQ32: 5 | AR32: 31 | AS32: 2021 | AT32: 2 | AU32: 12 | BP32: EnergyCapacity | BS32: NA | BX32: existinggeneric
A33: SDGE_Online_CHP_1 | B33: _EXISTING_GENERIC_COGEN | D33: Online | M33: NotHybrid | AA33: CAM | AB33: Buy | AC33: San Diego Gas & Electric | AJ33: 2018 | AK33: 1 | AL33: 1 | AM33: 2024 | AN33: 1 | AO33: 1 | AP33: 2024 | AQ33: 5 | AR33: 31 | AS33: 2017 | AT33: 1 | AU33: 1 | BP33: EnergyCapacity | BS33: NA | BX33: existinggeneric
A34: SDGE_Online_CHP_2 | B34: _EXISTING_GENERIC_COGEN | D34: Online | M34: NotHybrid | AA34: CAM | AB34: Buy | AC34: San Diego Gas & Electric | AJ34: 2018 | AK34: 1 | AL34: 1 | AM34: 2024 | AN34: 1 | AO34: 1 | AP34: 2026 | AQ34: 12 | AR34: 31 | AS34: 2017 | AT34: 1 | AU34: 1 | BP34: EnergyCapacity | BS34: NA | BX34: existinggeneric
A35: SDGE_Online_DR | B35: _EXISTING_GENERIC_DR | D35: Online | M35: NotHybrid | AA35: CAM | AB35: Buy | AC35: San Diego Gas & Electric | AJ35: 2018 | AK35: 1 | AL35: 1 | AM35: 2024 | AN35: 1 | AO35: 1 | AP35: 2024 | AQ35: 12 | AR35: 31 | AS35: 2017 | AT35: 1 | AU35: 1 | BP35: EnergyCapacity | BS35: NA | BX35: existinggeneric
A36: SCE_Online_Peaker_1 | B36: _EXISTING_GENERIC_PEAKER | D36: Online | M36: NotHybrid | AA36: CAM | AB36: Buy | AC36: Southern California Edison | AJ36: 2018 | AK36: 1 | AL36: 1 | AM36: 2024 | AN36: 1 | AO36: 1 | AP36: 2035 | AQ36: 12 | AR36: 31 | AS36: 2017 | AT36: 1 | AU36: 1 | BP36: CapacityOnly | BS36: NA | BX36: existinggeneric
A37: SCE_Online_Peaker_2 | B37: _EXISTING_GENERIC_PEAKER | D37: Online | M37: NotHybrid | AA37: CAM | AB37: Buy | AC37: Southern California Edison | AJ37: 2018 | AK37: 1 | AL37: 1 | AM37: 2024 | AN37: 1 | AO37: 1 | AP37: 2026 | AQ37: 12 | AR37: 31 | AS37: 2017 | AT37: 1 | AU37: 1 | BP37: CapacityOnly | BS37: NA | BX37: existinggeneric
A38: SCE_Online_Peaker_3 | B38: _EXISTING_GENERIC_PEAKER | D38: Online | M38: ExistingThermalNewStorage | N38: Yes | T38: Li | AA38: CAM | AB38: Buy | AC38: Southern California Edison | AJ38: 2018 | AK38: 1 | AL38: 1 | AM38: 2024 | AN38: 1 | AO38: 1 | AP38: 2035 | AQ38: 12 | AR38: 31 | AS38: 2017 | AT38: 1 | AU38: 1 | BP38: CapacityOnly | BS38: NA | BX38: existinggeneric
A39: SCE_Online_Peaker_4 | B39: _EXISTING_GENERIC_PEAKER | D39: Online | M39: ExistingThermalNewStorage | N39: No | T39: Li | AA39: CAM | AB39: Buy | AC39: Southern California Edison | AJ39: 2018 | AK39: 1 | AL39: 1 | AM39: 2024 | AN39: 1 | AO39: 1 | AP39: 2035 | AQ39: 12 | AR39: 31 | AS39: 2017 | AT39: 1 | AU39: 1 | BP39: CapacityOnly | BS39: NA | BX39: existinggeneric
A40: SCE_Online_Battery_1 | B40: _EXISTING_GENERIC_BATTERY_STORAGE | D40: Online | M40: NotHybrid | T40: Li | AA40: CAM | AB40: Buy | AC40: Southern California Edison | AJ40: 2018 | AK40: 1 | AL40: 1 | AM40: 2024 | AN40: 1 | AO40: 1 | AP40: 2026 | AQ40: 12 | AR40: 30 | AS40: 2017 | AT40: 1 | AU40: 1 | BP40: CapacityOnly | BS40: Battery Storage (MWh Energy Capacity) | BT40: 0.03203028958 | BU40: 0.03203028958 | BV40: 0.03203028958 | BW40: 0.03203028958 | BX40: existinggeneric
A41: SCE_Online_Battery_2 | B41: _EXISTING_GENERIC_BATTERY_STORAGE | D41: Online | M41: NotHybrid | T41: Li | AA41: CAM | AB41: Buy | AC41: Southern California Edison | AJ41: 2018 | AK41: 1 | AL41: 1 | AM41: 2024 | AN41: 1 | AO41: 1 | AP41: 2035 | AQ41: 12 | AR41: 31 | AS41: 2017 | AT41: 1 | AU41: 1 | BP41: CapacityOnly | BS41: Battery Storage (MWh Energy Capacity) | BT41: 0.3508772631 | BU41: 0.3508772631 | BV41: 0.3508772631 | BW41: 0.3508772631 | BX41: existinggeneric
A42: SCE_Online_CHP_1 | B42: _EXISTING_GENERIC_COGEN | D42: Online | M42: NotHybrid | AA42: CAM | AB42: Buy | AC42: Southern California Edison | AJ42: 2018 | AK42: 1 | AL42: 1 | AM42: 2024 | AN42: 1 | AO42: 1 | AP42: 2026 | AQ42: 8 | AR42: 31 | AS42: 2017 | AT42: 1 | AU42: 1 | BP42: CapacityOnly | BS42: NA | BX42: existinggeneric
A43: SCE_Online_CHP_2 | B43: _EXISTING_GENERIC_COGEN | D43: Online | M43: NotHybrid | AA43: CAM | AB43: Buy | AC43: Southern California Edison | AJ43: 2018 | AK43: 1 | AL43: 1 | AM43: 2024 | AN43: 1 | AO43: 1 | AP43: 2026 | AQ43: 12 | AR43: 31 | AS43: 2017 | AT43: 1 | AU43: 1 | BP43: CapacityOnly | BS43: NA | BX43: existinggeneric
A44: SCE_Online_CHP_3 | B44: _EXISTING_GENERIC_COGEN | D44: Online | M44: NotHybrid | AA44: CAM | AB44: Buy | AC44: Southern California Edison | AJ44: 2018 | AK44: 1 | AL44: 1 | AM44: 2024 | AN44: 1 | AO44: 1 | AP44: 2027 | AQ44: 7 | AR44: 31 | AS44: 2017 | AT44: 1 | AU44: 1 | BP44: CapacityOnly | BS44: NA | BX44: existinggeneric
A45: SCE_Online_CHP_4 | B45: _EXISTING_GENERIC_COGEN | D45: Online | M45: NotHybrid | AA45: CAM | AB45: Buy | AC45: Southern California Edison | AJ45: 2018 | AK45: 1 | AL45: 1 | AM45: 2024 | AN45: 1 | AO45: 1 | AP45: 2025 | AQ45: 3 | AR45: 11 | AS45: 2017 | AT45: 1 | AU45: 1 | BP45: CapacityOnly | BS45: NA | BX45: existinggeneric
A46: SCE_Online_CCGT_1 | B46: _EXISTING_GENERIC_COMBINED_CYCLE | D46: Online | M46: NotHybrid | AA46: CAM | AB46: Buy | AC46: Southern California Edison | AJ46: 2018 | AK46: 1 | AL46: 1 | AM46: 2024 | AN46: 1 | AO46: 1 | AP46: 2035 | AQ46: 12 | AR46: 31 | AS46: 2017 | AT46: 1 | AU46: 1 | BP46: CapacityOnly | BS46: NA | BX46: existinggeneric
A47: SCE_Online_CCGT_2 | B47: _EXISTING_GENERIC_COMBINED_CYCLE | D47: Online | M47: NotHybrid | AA47: CAM | AB47: Buy | AC47: Southern California Edison | AJ47: 2018 | AK47: 1 | AL47: 1 | AM47: 2024 | AN47: 1 | AO47: 1 | AP47: 2026 | AQ47: 7 | AR47: 31 | AS47: 2017 | AT47: 1 | AU47: 1 | BP47: CapacityOnly | BS47: NA | BX47: existinggeneric
B48: _NEW_GENERIC_WIND | D48: PlannedNew | F48: ARBWIND_6_N001 | G48: NA | M48: NotHybrid | AA48: D.19-11-016 | AB48: Buy | AC48: non-LSE supplier | AE48: NA | AF48: Kern | AI48: KernCounty | AM48: 2024 | AN48: 6 | AO48: 3 | AP48: 2039 | AQ48: 6 | AR48: 2 | BL48: NA | BM48: NO | BP48: EnergyCapacity | BQ48: Calculated | BS48: Wind New SCE SDG&E (GWh) | BT48: 32.936 | BU48: 65.542 | BV48: 64.241 | BW48: 62.651 | BX48: newgeneric
B49: _CREZ_GENERIC_NEW_MEXICO_WIND | D49: PlannedNew | G49: NA | M49: NotHybrid | AA49: D.19-11-016 | AB49: Buy | AC49: non-LSE supplier | AE49: NA | AF49: TEPC | AI49: NewMexico | AM49: 2026 | AN49: 6 | AO49: 1 | AP49: 2041 | AQ49: 5 | AR49: 31 | BL49: NA | BM49: NO | BP49: EnergyCapacity | BQ49: Calculated | BS49: Wind New Mexico (GWh) | BT49: 0 | BU49: 151.096 | BV49: 299.028 | BW49: 291.626 | BX49: newresolve
B50: _NEW_GENERIC_BATTERY_STORAGE | D50: PlannedNew | E50: WDT-1551 | F50: EISENHOW_1_N001 | G50: NA | M50: NotHybrid | T50: Li | U50: 40 | AB50: Buy | AC50: non-LSE supplier | AE50: NA | AF50: SanDiegoImperialValley | AI50: RiversideCounty | BP50: CapacityOnly | BQ50: In the contract | BR50: D2106035 | BS50: Battery Storage (MWh Energy Capacity) | BX50: newgeneric
B51: _NEW_BTM_DR | D51: PlannedNew | G51: NA | M51: NotHybrid | AB51: Buy | AC51: non-LSE supplier | AE51: NA | BP51: CapacityOnly | BQ51: In the contract | BR51: D2106035 | BS51: NA | BX51: newloadmod
A52: UC_RAONLY_LDES_1 | B52: _NEW_GENERIC_PUMPED_STORAGE_HYDRO | D52: PlannedNew | G52: NA | M52: NotHybrid | AB52: Buy | AC52: non-LSE supplier | AD52: NA | AE52: NA | BP52: CapacityOnly | BR52: D2106035 | BS52: NA | BX52: newgeneric
A53: UC_RAONLY_ZEFIRM_1 | B53: _NEW_GENERIC_GEOTHERMAL | D53: PlannedNew | G53: NA | M53: NotHybrid | AB53: Buy | AC53: non-LSE supplier | AD53: NA | AE53: NA | BP53: CapacityOnly | BR53: D2106035 | BS53: NA | BX53: newgeneric

Sheet Calcs
A1: Instruction: This worksheet consists of formulas only. LSEs should extend formulas in columns B:AK to cover all contracts entered in the "unique_contracts" worksheet (i.e. the last row that has formulas in this worksheet should have a row number that is greater than or equal to that of the last row in the "unique_contracts" worksheet). To extend formulas in this worksheet, please select one row (e.g. B500:AK500) and drag down the formulas vertically. PLEASE DO NOT DRAG FORMULAS HORIZONTALLY. Please do not hard-code values in this worksheet. All contract information should be entered in the "unique_contracts" tab. | B1: resource | C1: contract_status | D1: contracted_nameplate_capacity | E1: is_hybrid_paired | F1: can_charge_from_grid | G1: contracted_generator_mw | H1: contracted_storage_mw | I1: contracted_storage_depth_mwh | J1: buy_sell_own | K1: contract_start_date_year | L1: contract_start_date_month | M1: contract_start_date_day | N1: contract_end_date_year | O1: contract_end_date_month | P1: contract_end_date_day | Q1: buying_energy_capacity | R1: multiplier | S1: resource elcc type | T1: hybrid/paired storage elcc type | U1: elcc type (for summary tables and charts) | V1: start year | W1: end year | X1: hybrid storage derate (100% means no derates) | Y1: short duration derate | Z1: 2024 | AA1: 2025 | AB1: 2026 | AC1: 2027 | AD1: 2028 | AE1: 2029 | AF1: 2030 | AG1: 2031 | AH1: 2032 | AI1: 2033 | AJ1: 2034 | AK1: 2035

Sheet resources
A1: resource | B1: generator_name | C1: MAXGEN | D1: resolve_final_group | E1: BAA_ID | F1: supertype | G1: elcc_type
A2: 7STDRD_1_SOLAR1 | B2: SHAFTER_SOLAR | C2: 20 | D2: caiso_solar | E2: CISO | F2: physical | G2: utility_pv
A3: ACACIA_6_SOLAR | B3: WEST_ANTELOPE_SOLAR | C3: 20 | D3: caiso_solar | E3: CISO | F3: physical | G3: utility_pv
A4: ADELANTO_SOLAR | B4: NAN | C4: 10 | D4: ldwp_solar | E4: LADWP | F4: physical | G4: utility_pv
A5: ADERA_1_SOLAR1 | B5: ADERA_SOLAR | C5: 20 | D5: caiso_solar | E5: CISO | F5: physical | G5: utility_pv
A6: ADLIN_1_UNITS | B6: GEYSERS_AIDLIN_AGGREGATE | C6: 22 | D6: caiso_geothermal | E6: CISO | F6: physical | G6: geothermal
A7: ADMEST_6_SOLAR | B7: ADAMS_EAST | C7: 19 | D7: caiso_solar | E7: CISO | F7: physical | G7: utility_pv
A8: ADOBEE_1_SOLAR | B8: ADOBE_SOLAR | C8: 20 | D8: caiso_solar | E8: CISO | F8: physical | G8: utility_pv
A9: AGCANA_X_HOOVER | B9: HOOVER_POWER_PLANT | C9: 40 | D9: caiso_hydro | E9: WALC | F9: specifiedimport | G9: hydro
A10: AGRICO_6_PL3N5 | B10: FRESNO_PEAKER | C10: 22.69 | D10: caiso_peaker1 | E10: CISO | F10: physical | G10: gas_ct
A11: AGRICO_7_UNIT | B11: FRESNO_COGEN | C11: 49.9 | D11: caiso_ccgt2 | E11: CISO | F11: physical | G11: gas_cc
A12: AGUCAL_5_SOLAR1 | B12: AGUA_CALIENTE_SOLAR | C12: 290 | D12: caiso_solar | E12: CISO | F12: physical | G12: utility_pv
A13: AKINGS_6_AMESR1 | B13: AMERICAN_KINGS_SOLAR | C13: 123 | D13: caiso_solar | E13: CISO | F13: physical | G13: utility_pv
A14: ALAMIT_2_PL1X3 | B14: ALAMITOS_ENERGY_CENTER_UNIT_7 | C14: 674.7 | D14: caiso_ccgt1 | E14: CISO | F14: physical | G14: gas_cc
A15: ALAMIT_7_ES1 | B15: ALAMITOS_ENERGY_STORAGE | C15: 100.45 | D15: caiso_li_battery | E15: CISO | F15: physical | G15: hr_batteries
A16: ALAMIT_7_UNIT_3 | B16: ALAMITOS_GEN_STA._UNIT_3 | C16: 326.76 | D16: caiso_st | E16: CISO | F16: physical | G16: steam
A17: ALAMIT_7_UNIT_4 | B17: ALAMITOS_GEN_STA._UNIT_4 | C17: 334.43 | D17: caiso_st | E17: CISO | F17: physical | G17: steam
A18: ALAMIT_7_UNIT_5 | B18: ALAMITOS_GEN_STA._UNIT_5 | C18: 480 | D18: caiso_st | E18: CISO | F18: physical | G18: steam
A19: ALAMO_6_UNIT | B19: ALAMO_POWER_PLANT | C19: 17 | D19: caiso_hydro | E19: CISO | F19: physical | G19: hydro
A20: ALHMBR_1_ALHSLR | B20: SG_ALHAMBRA | C20: 50 | D20: iid_solar | E20: IID | F20: specifiedimport | G20: utility_pv
A21: ALLGNY_6_HYDRO1 | B21: SALMON_CREEK_HYDROELECTRIC_PROJECT | C21: 0.52 | D21: caiso_small_hydro | E21: CISO | F21: physical | G21: small_hydro
A22: ALMASL_2_AL6BT6 | B22: MAVERICK6STORAGE | C22: 50 | D22: caiso_li_battery | E22: CISO | F22: physical | G22: hr_batteries
A23: ALMASL_2_GS1SR1 | B23: ALMASOL_GENERATING_STATION_1 | C23: 125 | D23: caiso_solar | E23: CISO | F23: physical | G23: utility_pv
A24: ALMASL_2_GS4SR4 | B24: ALMASOL_GENERATING_STATION_4 | C24: 100 | D24: caiso_solar | E24: CISO | F24: physical | G24: utility_pv
A25: ALMASL_2_GS6SR6 | B25: ALMASOL_GENERATING_STATION_6 | C25: 100 | D25: caiso_solar | E25: CISO | F25: physical | G25: utility_pv
A26: ALMASL_2_GS7SR7 | B26: ALMASOL_GENERATING_STATION_7 | C26: 132 | D26: caiso_solar | E26: CISO | F26: physical | G26: utility_pv
A27: ALMEGT_1_UNIT_1 | B27: ALAMEDA_GT_UNIT_1 | C27: 25 | D27: caiso_peaker2 | E27: CISO | F27: physical | G27: gas_ct
A28: ALMEGT_1_UNIT_2 | B28: ALAMEDA_GT_UNIT_2 | C28: 25 | D28: caiso_peaker2 | E28: CISO | F28: physical | G28: gas_ct
A29: ALPSLR_1_NTHSLR | B29: ALPAUGH_NORTH,_LLC | C29: 20 | D29: caiso_solar | E29: CISO | F29: physical | G29: utility_pv
A30: ALPSLR_1_SPSSLR | B30: ALPAUGH_50_LLC | C30: 50 | D30: caiso_solar | E30: CISO | F30: physical | G30: utility_pv
A31: ALT6DN_2_WIND7 | B31: PINYON_PINES_1 | C31: 164.31 | D31: caiso_wind | E31: CISO | F31: physical | G31: in_state_wind_south
A32: ALT6DS_2_WIND9 | B32: PINYON_PINES_2 | C32: 132 | D32: caiso_wind | E32: CISO | F32: physical | G32: in_state_wind_south
A33: ALTA3A_2_CPCE4 | B33: ALTA_WIND_4 | C33: 102 | D33: caiso_wind | E33: CISO | F33: physical | G33: in_state_wind_south
A34: ALTA3A_2_CPCE5 | B34: ALTA_WIND_5 | C34: 168 | D34: caiso_wind | E34: CISO | F34: physical | G34: in_state_wind_south
A35: ALTA3A_2_CPCE8 | B35: ALTA_WIND_8 | C35: 150 | D35: caiso_wind | E35: CISO | F35: physical | G35: in_state_wind_south
A36: ALTA4A_2_CPCW1 | B36: ALTA_WIND_1 | C36: 150 | D36: caiso_wind | E36: CISO | F36: physical | G36: in_state_wind_south
A37: ALTA4B_2_CPCW2 | B37: ALTA_WIND_2 | C37: 150 | D37: caiso_wind | E37: CISO | F37: physical | G37: in_state_wind_south
A38: ALTA4B_2_CPCW3 | B38: ALTA_WIND_3 | C38: 150 | D38: caiso_wind | E38: CISO | F38: physical | G38: in_state_wind_south
A39: ALTA4B_2_CPCW6 | B39: MUSTANG_HILLS | C39: 150 | D39: caiso_wind | E39: CISO | F39: physical | G39: in_state_wind_south
A40: ALTA6B_2_WIND11 | B40: ALTA_WIND_11 | C40: 88.15 | D40: caiso_wind | E40: CISO | F40: physical | G40: in_state_wind_south
A41: ALTA6E_2_WIND10 | B41: ALTA_WIND_10 | C41: 134.84 | D41: caiso_wind | E41: CISO | F41: physical | G41: in_state_wind_south
A42: ALTAGASSTORAGE | B42: NAN | C42: 40 | D42: caiso_li_battery | E42: CISO | F42: physical | G42: hr_batteries
A43: ALTWD_1_QF | B43: NAN | C43: 28.84 | D43: caiso_wind | E43: CISO | F43: physical | G43: in_state_wind_south
A44: ALTWD_2_AT3WD3 | B44: ALTECH_3 | C44: 9.8 | D44: caiso_wind | E44: CISO | F44: physical | G44: in_state_wind_south
A45: ALTWD_2_COAWD1 | B45: COACHELLA_1 | C45: 50.4 | D45: caiso_wind | E45: CISO | F45: physical | G45: in_state_wind_south
A46: ANAHM_2_CANYN1 | B46: CANYON_POWER_PLANT_UNIT_1 | C46: 49.4 | D46: caiso_peaker1 | E46: CISO | F46: physical | G46: gas_ct
A47: ANAHM_2_CANYN2 | B47: CANYON_POWER_PLANT_UNIT_2 | C47: 49.4 | D47: caiso_peaker1 | E47: CISO | F47: physical | G47: gas_ct
A48: ANAHM_2_CANYN3 | B48: CANYON_POWER_PLANT_UNIT_3 | C48: 49.4 | D48: caiso_peaker1 | E48: CISO | F48: physical | G48: gas_ct
A49: ANAHM_2_CANYN4 | B49: CANYON_POWER_PLANT_UNIT_4 | C49: 49.4 | D49: caiso_peaker1 | E49: CISO | F49: physical | G49: gas_ct
A50: ANAHM_7_CT | B50: NAN | C50: 40.64 | D50: caiso_peaker1 | E50: CISO | F50: physical | G50: gas_ct
A51: ANTLPE_2_QF | B51: ANTELOPE QFS | C51: 4 | D51: caiso_wind | E51: CISO | F51: physical | G51: in_state_wind_south
A52: ANZA_6_SOLAR1 | B52: SEVILLE SOLAR ONE | C52: 20 | D52: iid_solar | E52: IID | F52: specifiedimport | G52: utility_pv
A53: APEX_CC | B53: NAN | C53: 538.7 | D53: ldwp_ccgt | E53: LADWP | F53: physical | G53: gas_cc
A54: APLHIL_1_SFKHY1 | B54: SOUTH FORK POWERHOUSE | C54: 2.68 | D54: caiso_hydro | E54: CISO | F54: physical | G54: hydro
A55: APLHIL_1_SLABCK | B55: SLAB CREEK HYDRO | C55: 1 | D55: caiso_small_hydro | E55: CISO | F55: physical | G55: small_hydro
A56: AQUAWS_2_AQWSR1 | B56: Aquamarine Westside | C56: 250 | D56: caiso_solar | E56: CISO | F56: physical | G56: utility_pv
A57: ARATINASOLAR | B57: NAN | C57: 150 | D57: caiso_solar | E57: CISO | F57: physical | G57: utility_pv
A58: ARATINASTORAGE | B58: NAN | C58: 50 | D58: caiso_li_battery | E58: CISO | F58: physical | G58: hr_batteries
A59: ARBWD_6_QF | B59: WIND RESOURCE II | C59: 19.95 | D59: caiso_wind | E59: CISO | F59: physical | G59: in_state_wind_south
A60: ARCOGN_2_UNITS | B60: WATSON COGENERATION | C60: 416.6 | D60: caiso_chp | E60: CISO | F60: physical | G60: cogen
A61: ARKANS_1_ARKSLR | B61: SG ARKANSAS | C61: 50 | D61: iid_solar | E61: IID | F61: specifiedimport | G61: utility_pv
A62: ARLINT_5_SCEDYN | B62: ARLINGTON VALLEY CC | C62: 565 | D62: SW_CCGT | E62: AZPS | F62: specifiedimport | G62: gas_cc
A63: ARLNTN_2_AR1SR1 | B63: Arlington | C63: 100 | D63: caiso_solar | E63: CISO | F63: physical | G63: utility_pv
A64: ARLNTN_2_ASUSR1 | B64: Arlington Solar 1 | C64: 131 | D64: caiso_solar | E64: CISO | F64: physical | G64: utility_pv
A65: ARLVAL_5_SOLAR | B65: ARLINGTON VALLEY SOLAR ENERGY II | C65: 127 | D65: caiso_solar | E65: SRP | F65: specifiedimport | G65: utility_pv
A66: ARVINN_6_ORION1 | B66: ORION 1 SOLAR | C66: 12 | D66: caiso_solar | E66: CISO | F66: physical | G66: utility_pv
A67: ARVINN_6_ORION2 | B67: ORION 2 SOLAR | C67: 8 | D67: caiso_solar | E67: CISO | F67: physical | G67: utility_pv
A68: ASTORA_2_SOLAR1 | B68: ASTORIA 1 | C68: 100 | D68: caiso_solar | E68: CISO | F68: physical | G68: utility_pv
A69: ASTORA_2_SOLAR2 | B69: ASTORIA 2 | C69: 75 | D69: caiso_solar | E69: CISO | F69: physical | G69: utility_pv
A70: ATHOS_5_AP1X2 | B70: INTERSECTSOLAR | C70: 250 | D70: caiso_solar | E70: CISO | F70: physical | G70: utility_pv
A71: ATHOS_5_AP2X2 | B71: Athos Power Plant 2 | C71: 200 | D71: caiso_solar | E71: CISO | F71: physical | G71: utility_pv
A72: ATWEL2_1_SOLAR1 | B72: ATWELL WEST | C72: 20 | D72: caiso_solar | E72: CISO | F72: physical | G72: utility_pv
A73: ATWELL_1_SOLAR | B73: ATWELL ISLAND PV SOLAR GENERATING FACI. | C73: 20 | D73: caiso_solar | E73: CISO | F73: physical | G73: utility_pv
A74: AVENAL_6_AVPARK | B74: AVENAL PARK SOLAR PROJECT | C74: 6 | D74: caiso_solar | E74: CISO | F74: physical | G74: utility_pv
A75: AVENAL_6_AVSLR1 | B75: AVENAL SOLAR 1 | C75: 7.9 | D75: caiso_solar | E75: CISO | F75: physical | G75: utility_pv
A76: AVENAL_6_AVSLR2 | B76: AVENAL SOLAR 2 | C76: 7.9 | D76: caiso_solar | E76: CISO | F76: physical | G76: utility_pv
A77: AVENAL_6_SANDDG | B77: SAND DRAG SOLAR PROJECT | C77: 19 | D77: caiso_solar | E77: CISO | F77: physical | G77: utility_pv
A78: AVENAL_6_SUNCTY | B78: SUN CITY SOLAR PROJECT | C78: 20 | D78: caiso_solar | E78: CISO | F78: physical | G78: utility_pv
A79: AVSOLR_2_SOLAR | B79: AV SOLAR RANCH 1 | C79: 241.5 | D79: caiso_solar | E79: CISO | F79: physical | G79: utility_pv
A80: AZALEASOLAR | B80: NAN | C80: 60 | D80: caiso_solar | E80: CISO | F80: physical | G80: utility_pv
A81: AZALEASTORAGE | B81: NAN | C81: 38 | D81: caiso_li_battery | E81: CISO | F81: physical | G81: hr_batteries
A82: BAHIA_2_LKHSR1 | B82: LAKE HERMAN SOLAR | C82: 5 | D82: caiso_solar | E82: CISO | F82: physical | G82: utility_pv
A83: BALCHS_7_UNIT 1 | B83: BALCH 1 PH UNIT 1 | C83: 31 | D83: caiso_hydro | E83: CISO | F83: physical | G83: hydro
A84: BALCHS_7_UNIT 2 | B84: BALCH 2 PH UNIT 2 | C84: 52.5 | D84: caiso_hydro | E84: CISO | F84: physical | G84: hydro
A85: BALCHS_7_UNIT 3 | B85: BALCH 2 PH UNIT 3 | C85: 54.6 | D85: caiso_hydro | E85: CISO | F85: physical | G85: hydro
A86: BANGOR_6_HYDRO | B86: VIRGINIA RANCH DAM POWERPLANT | C86: 1 | D86: caiso_small_hydro | E86: CISO | F86: physical | G86: small_hydro
A87: BANKPP_2_NSPIN | B87: BANKPP_2_NSPIN | C87: 270 | D87: caiso_pumped_hydro | E87: CISO | F87: physical | G87: pumped_storage
A88: BARRE_2_QF | B88: BARRE QFS | C88: 0.2 | D88: caiso_small_hydro | E88: CISO | F88: physical | G88: small_hydro
A89: BARRE_6_PEAKER | B89: BARRE PEAKER | C89: 47 | D89: caiso_peaker1 | E89: CISO | F89: physical | G89: gas_ct
A90: BASICE_2_UNITS | B90: KING CITY COGEN | C90: 120 | D90: caiso_chp | E90: CISO | F90: physical | G90: cogen
A91: BCTSYS_5_PWXDYN | B91: BCTSYS_5_PWXDYN | C91: 428 | D91: caiso_hydro | E91: BPAT | F91: specifiedimport | G91: hydro
A92: BDGRCK_1_UNITS | B92: BADGER CREEK LIMITED | C92: 48.08 | D92: caiso_peaker1 | E92: CISO | F92: physical | G92: gas_ct
A93: BEACON_SOLAR_B | B93: NAN | C93: 125 | D93: ldwp_solar | E93: LADWP | F93: physical | G93: utility_pv
A94: BEARDS_7_UNIT 1 | B94: BEARDSLEY HYDRO | C94: 11.5 | D94: caiso_hydro | E94: CISO | F94: physical | G94: hydro
A95: BEARMT_1_UNIT | B95: BEAR MOUNTAIN LIMITED | C95: 49.21 | D95: caiso_peaker2 | E95: CISO | F95: physical | G95: gas_ct
A96: BEJNLS_5_BV2SCEDYN | B96: BROADVIEW 2 | C96: 167 | D96: caiso_wind | E96: AZPS | F96: specifiedimport | G96: out_of_state_wind_AZNM
A97: BEKWJS_5_BV1SCEDYN | B97: BROADVIEW 1 | C97: 130 | D97: caiso_wind | E97: AZPS | F97: specifiedimport | G97: out_of_state_wind_AZNM
A98: BELDEN_7_UNIT 1 | B98: BELDEN HYDRO | C98: 119 | D98: caiso_hydro | E98: CISO | F98: physical | G98: hydro
A99: BELLEVUESOLARINV1 | B99: NAN | C99: 1.6 | D99: caiso_solar | E99: CISO | F99: physical | G99: utility_pv
A100: BGSKYN_2_AS2SR1 | B100: ANTELOPE SOLAR 2 | C100: 105 | D100: caiso_solar | E100: CISO | F100: physical | G100: utility_pv
A101: BGSKYN_2_ASPSR2 | B101: ANTELOPE SOLAR 2 SAN PABLO | C101: 100 | D101: caiso_solar | E101: CISO | F101: physical | G101: utility_pv
A102: BGSKYN_2_ASSR1B | B102: Antelope Solar 1B | C102: 17 | D102: caiso_solar | E102: CISO | F102: physical | G102: utility_pv
A103: BGSKYN_2_ASSR3A | B103: ANTELOPE SOLAR 3A | C103: 15 | D103: caiso_solar | E103: CISO | F103: physical | G103: utility_pv
A104: BGSKYN_2_ASSR3B | B104: ANTELOPE SOLAR 3B | C104: 5 | D104: caiso_solar | E104: CISO | F104: physical | G104: utility_pv
A105: BGSKYN_2_BS3SR3 | B105: BIG SKY SOLAR 3 | C105: 20 | D105: caiso_solar | E105: CISO | F105: physical | G105: utility_pv
A106: BIGBEAUSTORAGE | B106: NAN | C106: 40 | D106: caiso_li_battery | E106: CISO | F106: physical | G106: hr_batteries
A107: BIGCRK_2_EXESWD | B107: BIG CREEK HYDRO PROJECT PSP | C107: 820 | D107: caiso_hydro | E107: CISO | F107: physical | G107: hydro
A108: BIGCRK_7_DAM7 | B108: DAM 7 AT BIG CREEK (FISHWATER GEN) | C108: 0.3 | D108: caiso_hydro | E108: CISO | F108: physical | G108: hydro
A109: BIGCRK_7_MAMRES | B109: MAMMOTH POOL RESERVOIR (FISHWATER | C109: 1.25 | D109: caiso_small_hydro | E109: CISO | F109: physical | G109: small_hydro
A110: BIGSKY_2_AS2BT1 | B110: Antelope Solar 2 LAB | C110: 127 | D110: caiso_li_battery | E110: CISO | F110: physical | G110: hr_batteries
A111: BIGSKY_2_ASLBT2 | B111: ANTELOPE SOLAR 2 LUNA | C111: 100 | D111: caiso_li_battery | E111: CISO | F111: physical | G111: hr_batteries
A112: BIGSKY_2_BSKSR6 | B112: BIG SKY SOLAR 6 | C112: 20 | D112: caiso_solar | E112: CISO | F112: physical | G112: utility_pv
A113: BIGSKY_2_BSKSR7 | B113: BIG SKY SOLAR 7 | C113: 20 | D113: caiso_solar | E113: CISO | F113: physical | G113: utility_pv
A114: BIGSKY_2_BSKSR8 | B114: BIG SKY SOLAR 8 | C114: 20 | D114: caiso_solar | E114: CISO | F114: physical | G114: utility_pv
A115: BIGSKY_2_SOLAR1 | B115: ANTELOPE BIG SKY RANCH | C115: 20 | D115: caiso_solar | E115: CISO | F115: physical | G115: utility_pv
A116: BIGSKY_2_SOLAR2 | B116: BIG SKY SOLAR 4 | C116: 40 | D116: caiso_solar | E116: CISO | F116: physical | G116: utility_pv
A117: BIGSKY_2_SOLAR3 | B117: BIG SKY SUMMER | C117: 20 | D117: caiso_solar | E117: CISO | F117: physical | G117: utility_pv
A118: BIGSKY_2_SOLAR4 | B118: WESTERN ANTELOPE BLUE SKY RANCH B | C118: 20 | D118: caiso_solar | E118: CISO | F118: physical | G118: utility_pv
A119: BIGSKY_2_SOLAR5 | B119: BIG SKY SOLAR 2 | C119: 5 | D119: caiso_solar | E119: CISO | F119: physical | G119: utility_pv
A120: BIGSKY_2_SOLAR6 | B120: SOLVERDE 1 | C120: 85 | D120: caiso_solar | E120: CISO | F120: physical | G120: utility_pv
A121: BIGSKY_2_SOLAR7 | B121: BIG SKY SOLAR 1 | C121: 50 | D121: caiso_solar | E121: CISO | F121: physical | G121: utility_pv
A122: BIGSKY1 | B122: NAN | C122: 0.75 | D122: caiso_biomass | E122: CISO | F122: physical | G122: biomass_wood
A123: BIGSKY2 | B123: NAN | C123: 0.75 | D123: caiso_biomass | E123: CISO | F123: physical | G123: biomass_wood
A124: BIOMAS_1_UNIT 1 | B124: WOODLAND BIOMASS | C124: 25.5 | D124: caiso_biomass | E124: CISO | F124: physical | G124: biomass_wood
A125: BIOMASSONEGE1 | B125: NAN | C125: 14.4 | D125: caiso_biomass | E125: CISO | F125: physical | G125: biomass_wood
A126: BISHOP_1_ALAMO | B126: BISHOP CREEK PLANT 2 AND 6 | C126: 13.4 | D126: caiso_small_hydro | E126: CISO | F126: physical | G126: small_hydro
A127: BISHOP_1_UNITS | B127: BISHOP CREEK PLANT 3 AND 4 | C127: 15.8 | D127: caiso_small_hydro | E127: CISO | F127: physical | G127: small_hydro
A128: BKRFLD_2_SOLAR1 | B128: BAKERSFIELD 111 | C128: 1.38 | D128: caiso_solar | E128: CISO | F128: physical | G128: utility_pv
A129: BLACK_7_UNIT 1 | B129: JAMES B. BLACK 1 | C129: 85 | D129: caiso_hydro | E129: CISO | F129: physical | G129: hydro
A130: BLACK_7_UNIT 2 | B130: JAMES B. BLACK 2 | C130: 84.1 | D130: caiso_hydro | E130: CISO | F130: physical | G130: hydro
A131: BLACK_WALNUT | B131: NAN | C131: 15 | D131: caiso_li_battery | E131: CISO | F131: physical | G131: hr_batteries
A132: BLAST_1_WIND | B132: MOUNTAIN VIEW IV WIND | C132: 49 | D132: caiso_wind | E132: CISO | F132: physical | G132: in_state_wind_south
A133: BLCKBT_2_STONEY | B133: BLACK BUTTE HYDRO | C133: 6.2 | D133: caiso_small_hydro | E133: CISO | F133: physical | G133: small_hydro
A134: BLCKWL_6_SOLAR1 | B134: BLACKWELL SOLAR | C134: 12 | D134: caiso_solar | E134: CISO | F134: physical | G134: utility_pv
A135: BLKCRK_2_GMCBT1 | B135: GENESIS MCCOY BESS | C135: 230 | D135: caiso_li_battery | E135: CISO | F135: physical | G135: hr_batteries
A136: BLKCRK_2_SOLAR1 | B136: MCCOY STATION | C136: 250 | D136: caiso_solar | E136: CISO | F136: physical | G136: utility_pv
A137: BLKDIA_2_BDEBT1 | B137: BLACK DIAMOND ENERGY STORAGE | C137: 200 | D137: caiso_li_battery | E137: CISO | F137: physical | G137: hr_batteries
A138: BLM W_2_COSBT1 | B138: COSOSTORAGE | C138: 60 | D138: caiso_li_battery | E138: CISO | F138: physical | G138: hr_batteries
A139: BLM_2_UNITS | B139: BLM EAST FACILITY | C139: 72 | D139: caiso_geothermal | E139: CISO | F139: physical | G139: geothermal
A140: BLUE_MOUNTAIN_ELECTRIC_COMPANY | B140: NAN | C140: 3 | D140: caiso_biomass | E140: CISO | F140: physical | G140: biomass_wood
A141: BLULKE_6_BLUELK | B141: NAN | C141: 12 | D141: caiso_biomass | E141: CISO | F141: physical | G141: biomass_wood
A142: BLYTHE_1_SOLAR1 | B142: BLYTHE SOLAR 1 PROJECT | C142: 21 | D142: caiso_solar | E142: CISO | F142: physical | G142: utility_pv
A143: BLYTHE_1_SOLAR2 | B143: BLYTHE GREEN 1 | C143: 20 | D143: caiso_solar | E143: CISO | F143: physical | G143: utility_pv
A144: BLYTHESTORAGE1 | B144: NAN | C144: 63 | D144: caiso_li_battery | E144: CISO | F144: physical | G144: hr_batteries
A145: BNNIEN_7_ALTAPH | B145: ALTA POWER HOUSE | C145: 1 | D145: caiso_small_hydro | E145: CISO | F145: physical | G145: small_hydro
A146: BOGUE_1_UNITA1 | B146: FEATHER RIVER ENERGY CENTER, UNIT #1 | C146: 47.6 | D146: caiso_peaker1 | E146: CISO | F146: physical | G146: gas_ct
A147: BORDER_6_UNITA1 | B147: CALPEAK POWER BORDER UNIT 1 | C147: 51.25 | D147: caiso_peaker2 | E147: CISO | F147: physical | G147: gas_ct
A148: BOWMN_6_HYDRO | B148: NID HYDRO BOWMAN POWERHOUSE | C148: 3.6 | D148: caiso_small_hydro | E148: CISO | F148: physical | G148: small_hydro
A149: BRDGVL_7_BAKER | B149: BAKER STATION HYDRO | C149: 1.49 | D149: caiso_small_hydro | E149: CISO | F149: physical | G149: small_hydro
A150: BRDSLD_2_HIWIND | B150: HIGH WINDS ENERGY CENTER | C150: 162 | D150: caiso_wind | E150: CISO | F150: physical | G150: in_state_wind_north
A151: BRDSLD_2_MTZUM2 | B151: NEXTERA ENERGY MONTEZUMA WIND II | C151: 78.2 | D151: caiso_wind | E151: CISO | F151: physical | G151: in_state_wind_north
A152: BRDSLD_2_MTZUMA | B152: FPL ENERGY MONTEZUMA WIND | C152: 36.8 | D152: caiso_wind | E152: CISO | F152: physical | G152: in_state_wind_north
A153: BRDSLD_2_SHILO1 | B153: SHILOH I WIND PROJECT | C153: 150 | D153: caiso_wind | E153: CISO | F153: physical | G153: in_state_wind_north
A154: BRDSLD_2_SHILO2 | B154: SHILOH WIND PROJECT 2 | C154: 150 | D154: caiso_wind | E154: CISO | F154: physical | G154: in_state_wind_north
A155: BRDSLD_2_SHLO3A | B155: SHILOH III WIND PROJECT, LLC | C155: 102.5 | D155: caiso_wind | E155: CISO | F155: physical | G155: in_state_wind_north
A156: BRDSLD_2_SHLO3B | B156: SHILOH IV WIND PROJECT | C156: 100 | D156: caiso_wind | E156: CISO | F156: physical | G156: in_state_wind_north
A157: BREGGO_6_DEGRSL | B157: DESERT GREEN SOLAR FARM | C157: 6.3 | D157: caiso_solar | E157: CISO | F157: physical | G157: utility_pv
A158: BREGGO_6_SOLAR | B158: NRG BORREGO SOLAR ONE | C158: 26 | D158: caiso_solar | E158: CISO | F158: physical | G158: utility_pv
A159: BRODIE_2_WIND | B159: CORAM BRODIE WIND PROJECT | C159: 102 | D159: caiso_wind | E159: CISO | F159: physical | G159: in_state_wind_south
A160: BUCKBL_2_PL1X3 | B160: BLYTHE ENERGY CENTER | C160: 493.63 | D160: caiso_ccgt2 | E160: CISO | F160: physical | G160: gas_cc
A161: BUCKCK_2_HYDRO | B161: LASSEN STATION HYDRO | C161: 0.99 | D161: caiso_small_hydro | E161: CISO | F161: physical | G161: small_hydro
A162: BUCKCK_7_OAKFLT | B162: OAK FLAT | C162: 1.3 | D162: caiso_small_hydro | E162: CISO | F162: physical | G162: small_hydro
A163: BUCKCK_7_PL1X2 | B163: BUCKS CREEK AGGREGATE | C163: 57.25 | D163: caiso_hydro | E163: CISO | F163: physical | G163: hydro
A164: BUCKWD_1_NPALM1 | B164: NORTH PALM SPRINGS 1A | C164: 2.4 | D164: caiso_solar | E164: CISO | F164: physical | G164: utility_pv
A165: BUCKWD_1_QF | B165: BUCKWIND RE-POWERING PROJECT | C165: 16.5 | D165: caiso_wind | E165: CISO | F165: physical | G165: in_state_wind_south
A166: BUCKWD_7_WINTCV | B166: WINTEC ENERGY, LTD. | C166: 1.32 | D166: caiso_wind | E166: CISO | F166: physical | G166: in_state_wind_south
A167: BURNYF_2_UNIT 1 | B167: BURNEY FOREST POWER | C167: 29 | D167: caiso_biomass | E167: CISO | F167: physical | G167: biomass_wood
A168: BUTTVL_7_UNIT 1 | B168: BUTT VALLEY HYDRO | C168: 39.5 | D168: caiso_hydro | E168: CISO | F168: physical | G168: hydro
A169: CABALO_2_M2BSR1 | B169: MUSTANG 2 BARBARO SOLAR | C169: 50 | D169: caiso_solar | E169: CISO | F169: physical | G169: utility_pv
A170: CABALO_2_M2WSR2 | B170: MUSTANG 2 WHIRLAWAY SOLAR | C170: 100 | D170: caiso_solar | E170: CISO | F170: physical | G170: utility_pv
A171: CABZON_1_WINDA1 | B171: CABAZON WIND PROJECT | C171: 41 | D171: caiso_wind | E171: CISO | F171: physical | G171: in_state_wind_south
A172: CALFTN_2_CFSBT1 | B172: California Flats Storage | C172: 60 | D172: caiso_li_battery | E172: CISO | F172: physical | G172: hr_batteries
A173: CALFTN_2_SOLAR | B173: CALIFORNIA FLATS NORTH | C173: 130 | D173: caiso_solar | E173: CISO | F173: physical | G173: utility_pv
A174: CALFTS_2_CFSSR1 | B174: CALIFORNIA FLATS SOLAR SOUTH | C174: 150 | D174: caiso_solar | E174: CISO | F174: physical | G174: utility_pv
A175: CALGEN_1_UNITS | B175: COSO NAVY 1 | C175: 80 | D175: caiso_geothermal | E175: CISO | F175: physical | G175: geothermal
A176: CALPIN_1_AGNEW | B176: AGNEWS POWER PLANT | C176: 28.56 | D176: caiso_ccgt1 | E176: CISO | F176: physical | G176: gas_cc
A177: CALPSS_6_SOLAR1 | B177: CALIPATRIA SOLAR FARM | C177: 19.9 | D177: iid_solar | E177: IID | F177: specifiedimport | G177: utility_pv
A178: CAMCHE_1_PL1X3 | B178: CAMANCHE UNITS 1, 2 & 3 AGGREGATE | C178: 9.99 | D178: caiso_hydro | E178: CISO | F178: physical | G178: hydro
A179: CAMDEN_6_RDDBM1 | B179: RUANN DAIRY DIGESTER BIOMAT | C179: 0.55 | D179: caiso_biomass | E179: CISO | F179: physical | G179: biomass_wood
A180: CAMERON | B180: NAN | C180: 2.4 | D180: caiso_solar | E180: CISO | F180: physical | G180: utility_pv
A181: CAMLOT_2_SOLAR1 | B181: CAMELOT | C181: 45 | D181: caiso_solar | E181: CISO | F181: physical | G181: utility_pv
A182: CAMLOT_2_SOLAR2 | B182: COLUMBIA TWO | C182: 15 | D182: caiso_solar | E182: CISO | F182: physical | G182: utility_pv
A183: CAMPFW_7_FARWST | B183: CAMP FAR WEST HYDRO | C183: 8 | D183: caiso_small_hydro | E183: CISO | F183: physical | G183: small_hydro
A184: CANTUA_1_SOLAR | B184: CANTUA SOLAR STATION | C184: 20 | D184: caiso_solar | E184: CISO | F184: physical | G184: utility_pv
A185: CAPWD_1_QF | B185: EDOM HILLS WIND FARM | C185: 19.55 | D185: caiso_wind | E185: CISO | F185: physical | G185: in_state_wind_south
A186: CARBOU_7_PL2X3 | B186: CARIBOU PH 1 UNIT 2 & 3 AGGREGATE | C186: 49 | D186: caiso_hydro | E186: CISO | F186: physical | G186: hydro
A187: CARBOU_7_PL4X5 | B187: CARIBOU PH 2 UNIT 4 & 5 AGGREGATE | C187: 120 | D187: caiso_hydro | E187: CISO | F187: physical | G187: hydro
A188: CARBOU_7_UNIT 1 | B188: CARIBOU PH 1 UNIT 1 | C188: 24 | D188: caiso_hydro | E188: CISO | F188: physical | G188: hydro
A189: CARGILLB6BIO1 | B189: NAN | C189: 1.1 | D189: caiso_biomass | E189: CISO | F189: physical | G189: biomass_wood
A190: CARGILLB6BIO2 | B190: NAN | C190: 1.1 | D190: caiso_biomass | E190: CISO | F190: physical | G190: biomass_wood
A191: CARLS1_2_CARCT1 | B191: CARLSBAD 1 | C191: 422 | D191: caiso_peaker1 | E191: CISO | F191: physical | G191: gas_ct
A192: CARLS2_1_CARCT1 | B192: CARLSBAD 2 | C192: 105.5 | D192: caiso_peaker1 | E192: CISO | F192: physical | G192: gas_ct
A193: CARSON_ICE_CC | B193: NAN | C193: 62.7 | D193: banc_ccgt | E193: BANC | F193: physical | G193: gas_cc
A194: CARSON_ICE_PEAKER | B194: NAN | C194: 42 | D194: banc_peaker | E194: BANC | F194: physical | G194: gas_ct
A195: CASADB_1_CD4GT1 | B195: NAN | C195: 40 | D195: caiso_geothermal | E195: CISO | F195: physical | G195: geothermal
A196: CASCADESTORAGE | B196: NAN | C196: 25 | D196: caiso_li_battery | E196: CISO | F196: physical | G196: hr_batteries
A197: CASTAIC_1 | B197: NAN | C197: 240 | D197: ldwp_pumped_hydro | E197: LADWP | F197: physical | G197: pumped_storage
A198: CASTAIC_2 | B198: NAN | C198: 250 | D198: ldwp_pumped_hydro | E198: LADWP | F198: physical | G198: pumped_storage
A199: CASTAIC_3 | B199: NAN | C199: 240 | D199: ldwp_pumped_hydro | E199: LADWP | F199: physical | G199: pumped_storage
A200: CASTAIC_4 | B200: NAN | C200: 240 | D200: ldwp_pumped_hydro | E200: LADWP | F200: physical | G200: pumped_storage
... 1578 more rows

Sheet lse_names
A1: lse | B1: NAME | C1: lse_type
A2: 3PR | B2: 3 Phases Renewables | C2: ESP
A3: APN | B3: American PowerNet Management | C3: ESP
A4: AVCE | B4: Apple Valley Choice Energy | C4: CCA
A5: CEI | B5: Just Energy Solutions | C5: ESP
A6: CES | B6: Commercial Energy of Montana | C6: ESP
A7: CNE | B7: Constellation New Energy | C7: ESP
A8: COBP | B8: City of Baldwin Park | C8: CCA
A9: COSB | B9: City of Solana Beach | C9: CCA
A10: CPA | B10: Calpine Power America | C10: ESP
A11: CPASC | B11: Clean Power Alliance of Southern California | C11: CCA
A12: CPSF | B12: CleanPowerSF | C12: CCA
A13: DCE | B13: Desert Community Energy | C13: CCA
A14: DEB | B14: Direct Energy Business | C14: ESP
A15: EBCE | B15: East Bay Community Energy | C15: CCA
A16: EIPS | B16: EDF Industrial Power Services | C16: ESP
A17: HANFORD | B17: City of Hanford | C17: CCA
A18: KCCP | B18: King City Community Power | C18: CCA
A19: LCE | B19: Lancaster Choice Energy | C19: CCA
A20: LPH | B20: Liberty Power Holdings | C20: ESP
A21: CCCE | B21: Monterey Bay Community Power Authority | C21: CCA
A22: MCE | B22: Marin Clean Energy | C22: CCA
A23: NES | B23: Calpine Energy Solutions | C23: ESP
A24: PALMDALE | B24: City of Palmdale | C24: CCA
A25: PCEA | B25: Peninsula Clean Energy Authority | C25: CCA
A26: PGE | B26: Pacific Gas & Electric | C26: IOU
A27: PIONEER | B27: Pioneer Community Energy | C27: CCA
A28: POMONA | B28: City of Pomona | C28: CCA
A29: PPG | B29: Pilot Power Group | C29: ESP
A30: PRIME | B30: Pico Rivera Innovative Municipal Energy | C30: CCA
A31: RCEA | B31: Redwood Coast Energy Authority | C31: CCA
A32: RMEA | B32: Rancho Mirage Energy Authority | C32: CCA
A33: SCE | B33: Southern California Edison | C33: IOU
A34: SDGE | B34: San Diego Gas & Electric | C34: IOU
A35: SENA | B35: Shell Energy North America | C35: ESP
A36: SJCE | B36: San Jose Clean Energy | C36: CCA
A37: SJP | B37: San Jacinto Power | C37: CCA
A38: SOMA | B38: Sonoma Clean Power Authority | C38: CCA
A39: SVCE | B39: Silicon Valley Clean Energy Authority | C39: CCA
A40: TNG | B40: Tiger Natural Gas | C40: ESP
A41: UC | B41: University of California | C41: ESP
A42: VCEA | B42: Valley Clean Energy Alliance | C42: CCA
A43: WCE | B43: Western Community Energy | C43: CCA
A44: PCORP | B44: PacifiCorp | C44: POU
A45: BVES | B45: Bear Valley Electric Service | C45: IOU
A46: LIB | B46: Liberty Utilities | C46: IOU
A47: BCE | B47: Butte Choice Energy | C47: CCA
A48: CEA | B48: Clean Energy Alliance | C48: CCA
A49: COM | B49: City of Commerce | C49: CCA
A50: SDCP | B50: San Diego Community Power | C50: CCA
A51: SBCE | B51: Santa Barbara Clean Energy | C51: CCA
A52: AGERA | B52: Agera Energy, LLC | C52: ESP
A53: GEXA | B53: Gexa Energy California, LLC | C53: ESP
A54: LPD | B54: Liberty Power Delaware, LLC | C54: ESP
A55: PALMCO | B55: Palmco Power CA | C55: ESP
A56: PRAX | B56: Praxair Plainfield, Inc. | C56: ESP
A57: TENA | B57: Tenaska Power Services Co. | C57: ESP
A58: YEP | B58: Yep Energy | C58: ESP
A59: ANZA | B59: Anza Electric Cooperative | C59: COOP
A60: PLUMAS | B60: Plumas Sierra Rural Electric Cooperative | C60: COOP
A61: SURPRISE | B61: Surprise Valley Electrification Corporation | C61: POU
A62: VEA | B62: Valley Electric Association | C62: COOP
A63: ANHM | B63: Anaheim | C63: CAISOPOU
A64: AZCO | B64: Arizona Electric Power Cooperative | C64: POU
A65: AZUA | B65: Azusa | C65: CAISOPOU
A66: BAN1 | B66: Banning | C66: CAISOPOU
A67: BWPM | B67: Burbank | C67: POU
A68: CCSF | B68: City and County San Francisco | C68: CAISOPOU
A69: CLTN | B69: Colton | C69: CAISOPOU
A70: COR1 | B70: Corona | C70: CAISOPOU
A71: CRCL | B71: Cerritos | C71: CAISOPOU
A72: GLEN | B72: Glendale | C72: POU
A73: IIDE | B73: Imperial Irrigation District | C73: POU
A74: INDU | B74: Industry | C74: CAISOPOU
A75: KIRK | B75: Kirkwood | C75: POU
A76: LADWP | B76: LADWP | C76: POU
A77: LASS | B77: Lassen | C77: CAISOPOU
A78: MEID | B78: Merced | C78: POU
A79: MID | B79: Modesto Irrigation District | C79: POU
A80: MVAL | B80: Moreno Valley | C80: CAISOPOU
A81: NCPA | B81: Northern California Power Agency | C81: CAISOPOU
A82: NEED | B82: Needles | C82: POU
A83: PASA | B83: Pasadena | C83: CAISOPOU
A84: PITT | B84: Pittsburg | C84: CAISOPOU
A85: PSTN | B85: Stockton | C85: CAISOPOU
A86: PWRPA | B86: Power Water Resources Pooling Authority | C86: CAISOPOU
A87: RCMU | B87: Rancho Cucamonga | C87: CAISOPOU
A88: RDG1 | B88: Redding | C88: POU
A89: RSVL | B89: Roseville | C89: POU
A90: RVSD | B90: Riverside | C90: CAISOPOU
A91: SCOV | B91: Shelter Cove | C91: CAISOPOU
A92: SLAK | B92: Shasta Lake | C92: POU
A93: SMUD | B93: SMUD | C93: POU
A94: SNCL | B94: Silicon Valley Power | C94: CAISOPOU
A95: TIDM | B95: Turlock Irrigation District | C95: POU
A96: TRIN | B96: Trinity | C96: CAISOPOU
A97: TRUC | B97: Truckee | C97: POU
A98: VERN | B98: Vernon | C98: CAISOPOU
A99: VMUS | B99: Victorville | C99: CAISOPOU
A100: WEPA | B100: Eastside Power Authority | C100: CAISOPOU
A101: _OTHER | B101: Multiple non-IOU LSEs
A102: _OTHER | B102: Multiple LSEs
A103: _OTHER | B103: Multiple IOUs
A104: _OTHER | B104: non-LSE supplier | C104: _OTHER

Sheet misc
A1: contract_status | B1: bool | C1: yes_no | D1: Year | E1: int_count | F1: transact | G1: cap_areas | H1: cap_sub_areas | I1: state_county | J1: d1911016_tranches | K1: d2106035_tranche | L1: energy_capacity_from_resource | M1: is_hybrid_paired | N1: csp_cat | O1: solar_Technology_sub_type | P1: storage_Technology_sub_type | Q1: nqc_reporting_source | R1: cam_d1911016_vamo_pcia | T1: 25MMT ELCC (%) | AH1: 30MMT ELCC (%) | AV1: 25MMT MRN/TRN ratio | BJ1: 30MMT MRN/TRN ratio
A2: Online | B2: 0 | C2: YES | D2: NA | E2: NA | F2: Buy | G2: Humboldt | H2: North Coast Eagle Rock | I2: NA | J2: NA | K2: NA | L2: EnergyCapacity | M2: NotHybrid | N2: NA | O2: Fixed | P2: Li | Q2: In the contract | R2: CAM | T2: elcc_type | U2: 2024 | V2: 2025 | W2: 2026 | X2: 2027 | Y2: 2028 | Z2: 2029 | AA2: 2030 | AB2: 2031 | AC2: 2032 | AD2: 2033 | AE2: 2034 | AF2: 2035 | AH2: elcc_type | AI2: 2024 | AJ2: 2025 | AK2: 2026 | AL2: 2027 | AM2: 2028 | AN2: 2029 | AO2: 2030 | AP2: 2031 | AQ2: 2032 | AR2: 2033 | AS2: 2034 | AT2: 2035 | AW2: 2024 | AX2: 2025 | AY2: 2026 | AZ2: 2027 | BA2: 2028 | BB2: 2029 | BC2: 2030 | BD2: 2031 | BE2: 2032 | BF2: 2033 | BG2: 2034 | BH2: 2035 | BK2: 2024 | BL2: 2025 | BM2: 2026 | BN2: 2027 | BO2: 2028 | BP2: 2029 | BQ2: 2030 | BR2: 2031 | BS2: 2032 | BT2: 2033 | BU2: 2034 | BV2: 2035
A3: Review | B3: 1 | C3: NO | D3: 1970 | E3: 1 | F3: Sell | G3: NorthCoastNorthBay | H3: North Coast Fulton | I3: AlpineCounty | J3: 1 | K3: firm_ZE | L3: EnergyOnly | M3: ExistingBiomassExistingStorage | N3: Large Hydro (GWh) | O3: SolarThermal | P3: Flow | Q3: Calculated | R3: D.19-11-016 | T3: in_state_wind_south | U3: 0.1184135508 | V3: 0.1363607069 | W3: 0.1543078629 | X3: 0.1069365922 | Y3: 0.05956532151 | Z3: 0.07720144272 | AA3: 0.09483756394 | AB3: 0.08464475326 | AC3: 0.07445194258 | AD3: 0.0642591319 | AE3: 0.05406632122 | AF3: 0.04387351054 | AH3: in_state_wind_south | AI3: 0.151029414 | AJ3: 0.151788469 | AK3: 0.152547524 | AL3: 0.1184832612 | AM3: 0.08441899841 | AN3: 0.08341688272 | AO3: 0.08241476703 | AP3: 0.07482969112 | AQ3: 0.06724461522 | AR3: 0.05965953932 | AS3: 0.05207446341 | AT3: 0.04448938751 | AW3: 0.7720187128 | AX3: 0.7886747062 | AY3: 0.8039027014 | AZ3: 0.7761040906 | BA3: 0.7502769488 | BB3: 0.7624652102 | BC3: 0.7745706015 | BD3: 0.7427462579 | BE3: 0.7126116281 | BF3: 0.6827328847 | BG3: 0.6539025142 | BH3: 0.6257707944 | BK3: 0.8002984801 | BL3: 0.8189633389 | BM3: 0.8361143836 | BN3: 0.7954456724 | BO3: 0.7570917703 | BP3: 0.7367330355 | BQ3: 0.7170375748 | BR3: 0.6991892579 | BS3: 0.6826489277 | BT3: 0.666077604 | BU3: 0.650250164 | BV3: 0.6348445955
A4: PlannedExisting | C4: NA | D4: 1971 | E4: 2 | F4: Owned | G4: Sierra | H4: Sierra Placer | I4: AmadorCounty | J4: 1&2 | K4: firm_ZE_&_firm_ZE_ext | L4: CapacityOnly | M4: ExistingBiomassNewStorage | N4: Imported Hydro (GWh) | O4: 1Axis | P4: PSH | R4: VAMO | T4: in_state_wind_north | U4: 0.2368271015 | V4: 0.2727214137 | W4: 0.3086157259 | X4: 0.2138731844 | Y4: 0.119130643 | Z4: 0.1544028854 | AA4: 0.1896751279 | AB4: 0.1692895065 | AC4: 0.1489038852 | AD4: 0.1285182638 | AE4: 0.1081326424 | AF4: 0.08774702109 | AH4: in_state_wind_north | AI4: 0.3020588281 | AJ4: 0.3035769381 | AK4: 0.305095048 | AL4: 0.2369665224 | AM4: 0.1688379968 | AN4: 0.1668337654 | AO4: 0.1648295341 | AP4: 0.1496593822 | AQ4: 0.1344892304 | AR4: 0.1193190786 | AS4: 0.1041489268 | AT4: 0.08897877502
A5: Development | D5: 1972 | E5: 3 | G5: Stockton | H5: Sierra Pease | I5: AlamedaCounty | J5: 2 | K5: firm_ZE_ext | M5: ExistingGeothermalExistingStorage | N5: Asset Controlling Supplier (GWh) | O5: 2Axis | P5: Other | R5: GHG-free PCIA | T5: out_of_state_wind_WYID | U5: 0.4689782758 | V5: 0.4535908328 | W5: 0.4382033898 | X5: 0.3808045118 | Y5: 0.3234056338 | Z5: 0.3295485247 | AA5: 0.3356914156 | AB5: 0.3286616071 | AC5: 0.3216317985 | AD5: 0.31460199 | AE5: 0.3075721814 | AF5: 0.3005423729 | AH5: out_of_state_wind_WYID | AI5: 0.4255932203 | AJ5: 0.3918037092 | AK5: 0.358014198 | AL5: 0.3737228296 | AM5: 0.3894314613 | AN5: 0.3124106459 | AO5: 0.2353898305 | AP5: 0.248420339 | AQ5: 0.2614508475 | AR5: 0.2744813559 | AS5: 0.2875118644 | AT5: 0.3005423729
A6: PlannedNew | D6: 1973 | E6: 4 | G6: GreaterBay | H6: Sierra Gold Hill-Drum | I6: ButteCounty | J6: 2&3 | K6: general | M6: ExistingGeothermalNewStorage | N6: Nuclear (GWh) | T6: out_of_state_wind_WAOR | U6: 0.2874382981 | V6: 0.2780072846 | W6: 0.2685762712 | X6: 0.2333963137 | Y6: 0.1982163562 | Z6: 0.2019813538 | AA6: 0.2057463515 | AB6: 0.2014377592 | AC6: 0.1971291668 | AD6: 0.1928205745 | AE6: 0.1885119822 | AF6: 0.1842033898 | AH6: out_of_state_wind_WAOR | AI6: 0.2608474576 | AJ6: 0.2401377572 | AK6: 0.2194280568 | AL6: 0.2290559278 | AM6: 0.2386837988 | AN6: 0.1914774926 | AO6: 0.1442711864 | AP6: 0.1522576271 | AQ6: 0.1602440678 | AR6: 0.1682305085 | AS6: 0.1762169492 | AT6: 0.1842033898
D7: 1974 | E7: 5 | G7: GreaterFresno | H7: Stockton Lockeford | I7: CalaverasCounty | J7: 1&3 | K7: general_&_firm_ZE | M7: ExistingSolarExistingStorage | N7: Biogas (GWh) | T7: out_of_state_wind_AZNM | U7: 0.4235932813 | V7: 0.4096949458 | W7: 0.3957966102 | X7: 0.3439524623 | Y7: 0.2921083144 | Z7: 0.297656732 | AA7: 0.3032051496 | AB7: 0.2968556451 | AC7: 0.2905061406 | AD7: 0.2841566361 | AE7: 0.2778071316 | AF7: 0.2714576271 | AH7: out_of_state_wind_AZNM | AI7: 0.3844067797 | AJ7: 0.3538872212 | AK7: 0.3233676627 | AL7: 0.3375561042 | AM7: 0.3517445457 | AN7: 0.2821773576 | AO7: 0.2126101695 | AP7: 0.224379661 | AQ7: 0.2361491525 | AR7: 0.2479186441 | AS7: 0.2596881356 | AT7: 0.2714576271
D8: 1975 | E8: 6 | G8: Kern | H8: Stockton Tesla-Bellota | I8: ColusaCounty | J8: 3 | K8: general_&_firm_ZE_ext | M8: ExistingSolarNewStorage | N8: Biomass (GWh) | T8: offshore_wind | U8: 0.6674510771 | V8: 0.6158071043 | W8: 0.5641631316 | X8: 0.5571819625 | Y8: 0.5502007933 | Z8: 0.5803035094 | AA8: 0.6104062255 | AB8: 0.5523249804 | AC8: 0.4942437353 | AD8: 0.4361624902 | AE8: 0.3780812451 | AF8: 0.32 | AH8: offshore_wind | AI8: 0.549 | AJ8: 0.5066840518 | AK8: 0.4643681036 | AL8: 0.4865966735 | AM8: 0.5088252433 | AN8: 0.4674126217 | AO8: 0.426 | AP8: 0.4048 | AQ8: 0.3836 | AR8: 0.3624 | AS8: 0.3412 | AT8: 0.32
D9: 1976 | E9: 7 | G9: BigCreekVentura | H9: Greater Bay Llagas | I9: ContraCostaCounty | J9: 1&2&3 | K9: general_&_long_duration_storage | M9: ExistingThermalExistingStorage | N9: Geothermal (GWh) | T9: utility_pv | U9: 0.1243458416 | V9: 0.121029443 | W9: 0.1177130445 | X9: 0.1001620474 | Y9: 0.08261105028 | Z9: 0.07660461255 | AA9: 0.07059817482 | AB9: 0.06927853985 | AC9: 0.06795890489 | AD9: 0.06663926993 | AE9: 0.06531963496 | AF9: 0.064 | AH9: utility_pv | AI9: 0.096 | AJ9: 0.1022006435 | AK9: 0.1084012871 | AL9: 0.101680322 | AM9: 0.09495935703 | AN9: 0.07747967852 | AO9: 0.06 | AP9: 0.0608 | AQ9: 0.0616 | AR9: 0.0624 | AS9: 0.0632 | AT9: 0.064
D10: 1977 | E10: 8 | G10: LABasin | H10: Greater Bay San Jose | I10: DelNorteCounty | K10: general_&_long_duration_storage_ext | M10: ExistingThermalNewStorage | N10: Small Hydro (GWh) | T10: btm_pv | U10: 0.05318210084 | V10: 0.04865045279 | W10: 0.04411880473 | X10: 0.05254794919 | Y10: 0.06097709366 | Z10: 0.05404040761 | AA10: 0.04710372156 | AB10: 0.04888297725 | AC10: 0.05066223294 | AD10: 0.05244148863 | AE10: 0.05422074431 | AF10: 0.056 | AH10: btm_pv | AI10: 0.089 | AJ10: 0.09370336541 | AK10: 0.09840673082 | AL10: 0.08270336541 | AM10: 0.067 | AN10: 0.056 | AO10: 0.045 | AP10: 0.0472 | AQ10: 0.0494 | AR10: 0.0516 | AS10: 0.0538 | AT10: 0.056
D11: 1978 | E11: 9 | G11: SanDiegoImperialValley | H11: Greater Bay South Bay Moss Landing | I11: ElDoradoCounty | K11: general_&_ZE_gen_paired_dr | M11: ExistingWindExistingStorage | N11: Wind Baseline California (GWh) | T11: 4hr_batteries | U11: 0.854 | V11: 0.864 | W11: 0.874 | X11: 0.845 | Y11: 0.816 | Z11: 0.853 | AA11: 0.89 | AB11: 0.7922 | AC11: 0.6944 | AD11: 0.5966 | AE11: 0.4988 | AF11: 0.401 | AH11: 4hr_batteries | AI11: 0.885 | AJ11: 0.9015 | AK11: 0.918 | AL11: 0.8455 | AM11: 0.773 | AN11: 0.759 | AO11: 0.745 | AP11: 0.6762 | AQ11: 0.6074 | AR11: 0.5386 | AS11: 0.4698 | AT11: 0.401
D12: 1979 | E12: 10 | G12: PacGE | H12: Greater Bay Oakland | I12: FresnoCounty | K12: long_duration_storage | M12: ExistingWindNewStorage | N12: Wind New PG&E (GWh) | T12: 5hr_batteries | U12: 0.864 | V12: 0.869625 | W12: 0.87525 | X12: 0.850875 | Y12: 0.8265 | Z12: 0.85825 | AA12: 0.89 | AB12: 0.80695 | AC12: 0.7239 | AD12: 0.64085 | AE12: 0.5578 | AF12: 0.47475 | AH12: 5hr_batteries | AI12: 0.88675 | AJ12: 0.903875 | AK12: 0.921 | AL12: 0.858875 | AM12: 0.79675 | AN12: 0.783625 | AO12: 0.7705 | AP12: 0.71135 | AQ12: 0.6522 | AR12: 0.59305 | AS12: 0.5339 | AT12: 0.47475
D13: 1980 | E13: 11 | G13: SCE | H13: Greater Fresno Panoche | I13: GlennCounty | K13: long_duration_storage_&_firm_ZE | M13: NewBiomassExistingStorage | N13: Wind New SCE SDG&E (GWh) | T13: 6hr_batteries | U13: 0.874 | V13: 0.87525 | W13: 0.8765 | X13: 0.85675 | Y13: 0.837 | Z13: 0.8635 | AA13: 0.89 | AB13: 0.8217 | AC13: 0.7534 | AD13: 0.6851 | AE13: 0.6168 | AF13: 0.5485 | AH13: 6hr_batteries | AI13: 0.8885 | AJ13: 0.90625 | AK13: 0.924 | AL13: 0.87225 | AM13: 0.8205 | AN13: 0.80825 | AO13: 0.796 | AP13: 0.7465 | AQ13: 0.697 | AR13: 0.6475 | AS13: 0.598 | AT13: 0.5485
D14: 1981 | E14: 12 | G14: SDGE | H14: Greater Fresno Herndon | I14: HumboldtCounty | K14: long_duration_storage_&_firm_ZE_ext | M14: NewBiomassNewStorage | N14: Wind Pacific Northwest (GWh) | T14: 7hr_batteries | U14: 0.884 | V14: 0.880875 | W14: 0.87775 | X14: 0.862625 | Y14: 0.8475 | Z14: 0.86875 | AA14: 0.89 | AB14: 0.83645 | AC14: 0.7829 | AD14: 0.72935 | AE14: 0.6758 | AF14: 0.62225 | AH14: 7hr_batteries | AI14: 0.89025 | AJ14: 0.908625 | AK14: 0.927 | AL14: 0.885625 | AM14: 0.84425 | AN14: 0.832875 | AO14: 0.8215 | AP14: 0.78165 | AQ14: 0.7418 | AR14: 0.70195 | AS14: 0.6621 | AT14: 0.62225
D15: 1982 | E15: 13 | G15: AVA | H15: Greater Fresno Hanford | I15: ImperialCounty | K15: long_duration_storage_&_long_duration_storage_ext | M15: NewGeothermalExistingStorage | N15: Wind Wyoming (GWh) | T15: 8hr_batteries | U15: 0.894 | V15: 0.8865 | W15: 0.879 | X15: 0.8685 | Y15: 0.858 | Z15: 0.874 | AA15: 0.89 | AB15: 0.8512 | AC15: 0.8124 | AD15: 0.7736 | AE15: 0.7348 | AF15: 0.696 | AH15: 8hr_batteries | AI15: 0.892 | AJ15: 0.911 | AK15: 0.93 | AL15: 0.899 | AM15: 0.868 | AN15: 0.8575 | AO15: 0.847 | AP15: 0.8168 | AQ15: 0.7866 | AR15: 0.7564 | AS15: 0.7262 | AT15: 0.696
D16: 1983 | E16: 14 | G16: AVRN | H16: Greater Fresno Coalinga | I16: InyoCounty | K16: long_duration_storage_ext | M16: NewGeothermalNewStorage | N16: Wind New Mexico (GWh) | T16: pumped_storage | U16: 0.901 | V16: 0.89 | W16: 0.879 | X16: 0.8685 | Y16: 0.858 | Z16: 0.874 | AA16: 0.89 | AB16: 0.8586 | AC16: 0.8272 | AD16: 0.7958 | AE16: 0.7644 | AF16: 0.733 | AH16: pumped_storage | AI16: 0.894 | AJ16: 0.914 | AK16: 0.934 | AL16: 0.913 | AM16: 0.892 | AN16: 0.8905 | AO16: 0.889 | AP16: 0.8578 | AQ16: 0.8266 | AR16: 0.7954 | AS16: 0.7642 | AT16: 0.733
D17: 1984 | E17: 15 | G17: AZPS | H17: Greater Fresno Borden | I17: KernCounty | K17: long_duration_storage_ext_&_firm_ZE | M17: NewSolarExistingStorage | N17: Wind Offshore Morro Bay (GWh) | T17: demand_response | U17: 0.7724039633 | V17: 0.7975014215 | W17: 0.8225988798 | X17: 0.7748601151 | Y17: 0.7271213505 | Z17: 0.7950773279 | AA17: 0.8630333053 | AB17: 0.7192266443 | AC17: 0.5754199832 | AD17: 0.4316133221 | AE17: 0.2878066611 | AF17: 0.144 | AH17: demand_response | AI17: 0.893 | AJ17: 0.9083512608 | AK17: 0.9237025217 | AL17: 0.7723512608 | AM17: 0.621 | AN17: 0.606 | AO17: 0.591 | AP17: 0.5016 | AQ17: 0.4122 | AR17: 0.3228 | AS17: 0.2334 | AT17: 0.144
D18: 1985 | E18: 16 | G18: BANC | H18: Greater Fresno Reedley | I18: KingsCounty | K18: long_duration_storage_ext_&_firm_ZE_ext | M18: NewSolarNewStorage | N18: Wind Offshore Humboldt (GWh) | T18: hydro | U18: 0.5080854261 | V18: 0.52136584 | W18: 0.534646254 | X18: 0.5246342183 | Y18: 0.5146221827 | Z18: 0.5296593863 | AA18: 0.5446965899 | AB18: 0.5217249144 | AC18: 0.4987532389 | AD18: 0.4757815635 | AE18: 0.452809888 | AF18: 0.4298382126 | AH18: hydro | AI18: 0.5666049166 | AJ18: 0.5639186027 | AK18: 0.5612322888 | AL18: 0.5319165414 | AM18: 0.502600794 | AN18: 0.4924948799 | AO18: 0.4823889659 | AP18: 0.4718788152 | AQ18: 0.4613686646 | AR18: 0.4508585139 | AS18: 0.4403483632 | AT18: 0.4298382126
D19: 1986 | E19: 17 | G19: BPAT | H19: Kern Westpark | I19: LakeCounty | K19: ZE_gen_paired_dr | M19: NewThermalExistingStorage | N19: Solar Baseline California(GWh) | T19: small_hydro | U19: 0.3643959601 | V19: 0.373920597 | W19: 0.3834452338 | X19: 0.3762646592 | Y19: 0.3690840845 | Z19: 0.3798686808 | AA19: 0.3906532772 | AB19: 0.374178123 | AC19: 0.3577029689 | AD19: 0.3412278147 | AE19: 0.3247526605 | AF19: 0.3082775063 | AH19: small_hydro | AI19: 0.4063658038 | AJ19: 0.4044391948 | AK19: 0.4025125859 | AL19: 0.3814874996 | AM19: 0.3604624133 | AN19: 0.3532145096 | AO19: 0.3459666058 | AP19: 0.3384287859 | AQ19: 0.330890966 | AR19: 0.3233531461 | AS19: 0.3158153262 | AT19: 0.3082775063
D20: 1987 | E20: 18 | G20: CHPD | H20: Kern Kern Power-Tevis | I20: LassenCounty | K20: ZE_gen_paired_dr_&_firm_ZE | M20: NewThermalNewStorage | N20: Solar New PG&E (GWh) | T20: geothermal | U20: 0.860357354 | V20: 0.8884542238 | W20: 0.9165510936 | X20: 0.9214154504 | Y20: 0.9262798072 | Z20: 0.919066183 | AA20: 0.9118525588 | AB20: 0.9195579708 | AC20: 0.9272633828 | AD20: 0.9349687948 | AE20: 0.9426742068 | AF20: 0.9503796188 | AH20: geothermal | AI20: 0.8640036558 | AJ20: 0.8782620418 | AK20: 0.8925204278 | AL20: 0.9100183601 | AM20: 0.9275162923 | AN20: 0.9228059013 | AO20: 0.9180955103 | AP20: 0.9253847223 | AQ20: 0.9326739343 | AR20: 0.9399631462 | AS20: 0.9472523582 | AT20: 0.9545415701
D21: 1988 | E21: 19 | G21: CSTO | H21: Kern Kern Oil | I21: LosAngelesCounty | K21: ZE_gen_paired_dr_&_firm_ZE_ext | M21: NewWindExistingStorage | N21: Solar New SCE SDG&E (GWh) | T21: biomass_wood | U21: 0.7760796337 | V21: 0.7941059591 | W21: 0.8121322845 | X21: 0.8192778803 | Y21: 0.8264234761 | Z21: 0.8149879004 | AA21: 0.8035523247 | AB21: 0.8195650509 | AC21: 0.835577777 | AD21: 0.8515905032 | AE21: 0.8676032293 | AF21: 0.8836159555 | AH21: biomass_wood | AI21: 0.7877725211 | AJ21: 0.808735191 | AK21: 0.829697861 | AL21: 0.8302846049 | AM21: 0.8308713488 | AN21: 0.8234459304 | AO21: 0.816020512 | AP21: 0.8314991611 | AQ21: 0.8469778101 | AR21: 0.8624564591 | AS21: 0.8779351082 | AT21: 0.8934137572
D22: 1989 | E22: 20 | G22: DEAA | H22: Kern South Kern PP | I22: MaderaCounty | K22: ZE_gen_paired_dr_&_long_duration_storage | M22: NewWindNewStorage | N22: Solar Distributed (GWh) | T22: biogas | U22: 0.7499350854 | V22: 0.7662147743 | W22: 0.7824944633 | X22: 0.7855657139 | Y22: 0.7886369645 | Z22: 0.7772539701 | AA22: 0.7658709758 | AB22: 0.7842303514 | AC22: 0.802589727 | AD22: 0.8209491027 | AE22: 0.8393084783 | AF22: 0.8576678539 | AH22: biogas | AI22: 0.7584997654 | AJ22: 0.7783300966 | AK22: 0.7981604278 | AL22: 0.795133798 | AM22: 0.7921071681 | AN22: 0.7825180695 | AO22: 0.7729289709 | AP22: 0.7919290739 | AQ22: 0.8109291769 | AR22: 0.8299292799 | AS22: 0.8489293829 | AT22: 0.8679294859
D23: 1990 | E23: 21 | G23: DOPD | H23: Big Creek/Ventura - Vesta | I23: MarinCounty | K23: ZE_gen_paired_dr_&_long_duration_storage_ext | N23: Hybrid_or_Paired_Solar_and_Battery (GWh) | T23: nuclear | U23: 0.9335620891 | V23: 0.9354204071 | W23: 0.9372787252 | X23: 0.9380395872 | Y23: 0.9388004493 | Z23: 0.9320553163 | AA23: 0.9253101834 | AB23: 0.9323387326 | AC23: 0.9393672817 | AD23: 0.9463958309 | AE23: 0.9534243801 | AF23: 0.9604529293 | AH23: nuclear | AI23: 0.9313919788 | AJ23: 0.939961444 | AK23: 0.9485309091 | AL23: 0.9433337624 | AM23: 0.9381366158 | AN23: 0.9357564073 | AO23: 0.9333761987 | AP23: 0.9393311832 | AQ23: 0.9452861677 | AR23: 0.9512411522 | AS23: 0.9571961367 | AT23: 0.9631511212
D24: 1991 | E24: 22 | G24: EPE | H24: Big Creek/Ventura - Santa Clara | I24: MariposaCounty | N24: Shed DR (MW) | T24: gas_cc | U24: 0.8440554592 | V24: 0.8537880593 | W24: 0.8635206595 | X24: 0.8663498008 | Y24: 0.869178942 | Z24: 0.8595632138 | AA24: 0.8499474856 | AB24: 0.8614044429 | AC24: 0.8728614002 | AD24: 0.8843183576 | AE24: 0.8957753149 | AF24: 0.9072322723 | AH24: gas_cc | AI24: 0.8481475797 | AJ24: 0.8626388701 | AK24: 0.8771301605 | AL24: 0.8741793692 | AM24: 0.8712285779 | AN24: 0.8608917229 | AO24: 0.8505548678 | AP24: 0.8629837245 | AQ24: 0.8754125813 | AR24: 0.8878414381 | AS24: 0.9002702949 | AT24: 0.9126991517
D25: 1992 | E25: 23 | G25: GCPD | H25: LA Basin Eastern | I25: MendocinoCounty | N25: Pumped Storage (MW) | T25: gas_ct | U25: 0.8123744183 | V25: 0.8345826636 | W25: 0.856790909 | X25: 0.8402456429 | Y25: 0.8237003768 | Z25: 0.8068807164 | AA25: 0.790061056 | AB25: 0.8025750846 | AC25: 0.8150891131 | AD25: 0.8276031416 | AE25: 0.8401171701 | AF25: 0.8526311987 | AH25: gas_ct | AI25: 0.8021039744 | AJ25: 0.8164055166 | AK25: 0.8307070589 | AL25: 0.8261428123 | AM25: 0.8215785657 | AN25: 0.8058109538 | AO25: 0.7900433418 | AP25: 0.7996283231 | AQ25: 0.8092133043 | AR25: 0.8187982855 | AS25: 0.8283832668 | AT25: 0.837968248
D26: 1993 | E26: 24 | G26: GRIF | H26: LA Basin Western | I26: MercedCounty | N26: Battery Storage (MWh Energy Capacity) | T26: cogen | U26: 0.9317165916 | V26: 0.9298272115 | W26: 0.9279378315 | X26: 0.9342674824 | Y26: 0.9405971333 | Z26: 0.9317761162 | AA26: 0.9229550991 | AB26: 0.9250971563 | AC26: 0.9272392135 | AD26: 0.9293812707 | AE26: 0.9315233279 | AF26: 0.9336653851 | AH26: cogen | AI26: 0.8951059587 | AJ26: 0.920809236 | AK26: 0.9465125134 | AL26: 0.919225361 | AM26: 0.8919382087 | AN26: 0.8903473987 | AO26: 0.8887565887 | AP26: 0.8965756633 | AQ26: 0.9043947379 | AR26: 0.9122138125 | AS26: 0.9200328871 | AT26: 0.9278519616
D27: 1994 | E27: 25 | G27: GRIS | H27: LA Basin El Nido | I27: ModocCounty | N27: Storage Resource Custom Profile (MW) | T27: ice | U27: 0.9341772549 | V27: 0.9395370289 | W27: 0.9448968028 | X27: 0.9442095812 | Y27: 0.9435223596 | Z27: 0.9455188118 | AA27: 0.947515264 | AB27: 0.9343212773 | AC27: 0.9211272906 | AD27: 0.9079333039 | AE27: 0.8947393173 | AF27: 0.8815453306 | AH27: ice | AI27: 0.929257507 | AJ27: 0.9015538872 | AK27: 0.8738502674 | AL27: 0.898028199 | AM27: 0.9222061306 | AN27: 0.9183171379 | AO27: 0.9144281451 | AP27: 0.9043018964 | AQ27: 0.8941756476 | AR27: 0.8840493989 | AS27: 0.8739231501 | AT27: 0.8637969013
D28: 1995 | E28: 26 | G28: GRMA | H28: San Diego/Imperial Valley San Diego | I28: MonoCounty | N28: RPS Resource Custom Profile (GWh) | T28: coal | U28: 0.6878033354 | V28: 0.7072877322 | W28: 0.726772129 | X28: 0.7209146333 | Y28: 0.7150571377 | Z28: 0.6867849566 | AA28: 0.6585127754 | AB28: 0.6889420347 | AC28: 0.7193712939 | AD28: 0.7498005532 | AE28: 0.7802298124 | AF28: 0.8106590717 | AH28: coal | AI28: 0.6905015933 | AJ28: 0.717208818 | AK28: 0.7439160428 | AL28: 0.7372126674 | AM28: 0.730509292 | AN28: 0.7101556591 | AO28: 0.6898020261 | AP28: 0.7168868434 | AQ28: 0.7439716606 | AR28: 0.7710564779 | AS28: 0.7981412951 | AT28: 0.8252261123
D29: 1996 | E29: 27 | G29: GWA | H29: San Diego/Imperial Valley El Cajon | I29: MontereyCounty | N29: GHG-free non-RPS Resource Custom Profile (GWh) | T29: steam | U29: 0.778540297 | V29: 0.7923617411 | W29: 0.8061831851 | X29: 0.8020281143 | Y29: 0.7978730435 | Z29: 0.7778179002 | AA29: 0.757762757 | AB29: 0.7793480443 | AC29: 0.8009333317 | AD29: 0.822518619 | AE29: 0.8441039064 | AF29: 0.8656891937 | AH29: steam | AI29: 0.7804543322 | AJ29: 0.7993993586 | AK29: 0.8183443851 | AL29: 0.8135892813 | AM29: 0.8088341776 | AN29: 0.7943961325 | AO29: 0.7799580875 | AP29: 0.7991709628 | AQ29: 0.8183838381 | AR29: 0.8375967134 | AS29: 0.8568095886 | AT29: 0.8760224639
D30: 1997 | E30: 28 | G30: HGMA | H30: San Diego/Imperial Valley Border | I30: NapaCounty | N30: Coal (GWh) | T30: unspecified_import | U30: 1 | V30: 1 | W30: 1 | X30: 1 | Y30: 1 | Z30: 1 | AA30: 1 | AB30: 1 | AC30: 1 | AD30: 1 | AE30: 1 | AF30: 1 | AH30: unspecified_import | AI30: 1 | AJ30: 1 | AK30: 1 | AL30: 1 | AM30: 1 | AN30: 1 | AO30: 1 | AP30: 1 | AQ30: 1 | AR30: 1 | AS30: 1 | AT30: 1
D31: 1998 | E31: 29 | G31: IID | H31: No_sub_area | I31: NevadaCounty
D32: 1999 | E32: 30 | G32: IPCO | I32: OrangeCounty
D33: 2000 | E33: 31 | G33: LDWP | I33: PlacerCounty
D34: 2001 | G34: NEVP | I34: PlumasCounty
D35: 2002 | G35: NWMT | I35: RiversideCounty
D36: 2003 | G36: PACE | I36: SacramentoCounty
D37: 2004 | G37: PACW | I37: SanBenitoCounty
D38: 2005 | G38: PortGE | I38: SanBernardinoCounty
D39: 2006 | G39: PNM | I39: SanDiegoCounty
D40: 2007 | G40: PSCO | I40: SanFrancisco
D41: 2008 | G41: PSEI | I41: SanJoaquinCounty
D42: 2009 | G42: SCL | I42: SanLuisObispoCounty
D43: 2010 | G43: SRP | I43: SanMateoCounty
D44: 2011 | G44: SWPP | I44: SantaBarbaraCounty
D45: 2012 | G45: TEPC | I45: SantaClaraCounty
D46: 2013 | G46: TIDC | I46: SantaCruzCounty
D47: 2014 | G47: TPWR | I47: ShastaCounty
D48: 2015 | G48: WACM | I48: SierraCounty
D49: 2016 | G49: WALC | I49: SiskiyouCounty
D50: 2017 | G50: WAUW | I50: SolanoCounty
D51: 2018 | G51: WWA | I51: SonomaCounty
D52: 2019 | I52: StanislausCounty
D53: 2020 | I53: SutterCounty
D54: 2021 | I54: TehamaCounty
D55: 2022 | I55: TrinityCounty
D56: 2023 | I56: TulareCounty
D57: 2024 | I57: TuolumneCounty
D58: 2025 | I58: VenturaCounty
D59: 2026 | I59: YoloCounty
D60: 2027 | I60: YubaCounty
D61: 2028 | I61: Washington
D62: 2029 | I62: Oregon
D63: 2030 | I63: California
D64: 2031 | I64: Idaho
D65: 2032 | I65: Nevada
D66: 2033 | I66: Utah
D67: 2034 | I67: Arizona
D68: 2035 | I68: Colorado
D69: 2036 | I69: Wyoming
D70: 2037 | I70: Montana
D71: 2038 | I71: SouthDakota
D72: 2039 | I72: NewMexico
D73: 2040 | I73: Texas
D74: 2041 | I74: BritishColumbiaCanada
D75: 2042 | I75: AlbertaCanada
D76: 2043 | I76: BajaCaliforniaMexico
D77: 2044
D78: 2045
D79: 2046
D80: 2047
D81: 2048
D82: 2049
D83: 2050
D84: 2051
D85: 2052
D86: 2053
D87: 2054
D88: 2055
D89: 2056
D90: 2057
D91: 2058
D92: 2059
D93: 2060

Sheet btm_pv_forecast
F2: Capacity (MW)
B3: Service Area | C3: Type | D3: LSE CPUC ID | E3: LSE Name | F3: 2024 | G3: 2025 | H3: 2026 | I3: 2027 | J3: 2028 | K3: 2029 | L3: 2030 | M3: 2031 | N3: 2032 | O3: 2033 | P3: 2034 | Q3: 2035
B5: PGE | C5: IOU | D5: PGE | E5: Pacific Gas and Electric (Bundled) | F5: 2483.806859 | G5: 2670.60381 | H5: 2858.907425 | I5: 3056.00359 | J5: 3256.637408 | K5: 3468.762841 | L5: 3666.948122 | M5: 3882.931645 | N5: 4089.877955 | O5: 4313.371 | P5: 4525.971001 | Q5: 4733.594348
B6: PGE | C6: ESP | E6: Pacific Gas and Electric (Direct Access) | F6: 1044.281273 | G6: 1116.285677 | H6: 1188.787716 | I6: 1263.803083 | J6: 1341.864323 | K6: 1417.518713 | L6: 1491.013477 | M6: 1560.118053 | N6: 1628.510114 | O6: 1691.980541 | P6: 1751.854067 | Q6: 1806.595438
B7: PGE | C7: CCA | D7: 3CE | E7: Central Coast Community Energy | F7: 421.1515887 | G7: 452.4175635 | H7: 484.2465669 | I7: 518.2613178 | J7: 553.2466676 | K7: 588.4065061 | L7: 623.0193206 | M7: 657.2666577 | N7: 690.2750227 | O7: 722.3923765 | P7: 753.1957633 | Q7: 782.6302099
B8: PGE | C8: CCA | D8: CPSF | E8: CleanPowerSF | F8: 272.194164 | G8: 293.2442204 | H8: 314.6431949 | I8: 337.1158395 | J8: 360.5943835 | K8: 384.4333644 | L8: 408.2076361 | M8: 431.7376461 | N8: 454.7149583 | O8: 477.483651 | P8: 499.3099311 | Q8: 522.1557142
B9: PGE | C9: CCA | D9: EBCE | E9: East Bay Community Energy | F9: 617.7695943 | G9: 667.8199611 | H9: 718.6330866 | I9: 771.4659323 | J9: 827.5795353 | K9: 883.4552172 | L9: 939.6192424 | M9: 994.0497541 | N9: 1047.190404 | O9: 1098.02505 | P9: 1147.277112 | Q9: 1195.617805
B10: PGE | C10: CCA | D10: KCCP | E10: King City Community Power | F10: 3.127435884 | G10: 3.363652006 | H10: 3.60507466 | I10: 3.860295558 | J10: 4.128179103 | K10: 4.403228936 | L10: 4.676021376 | M10: 4.952994821 | N10: 5.223010584 | O10: 5.494889846 | P10: 5.760067879 | Q10: 6.017756242
B11: PGE | C11: CCA | D11: MCE | E11: Marin Clean Energy | F11: 527.8638807 | G11: 563.934434 | H11: 600.9424684 | I11: 639.6931265 | J11: 682.5581974 | K11: 725.0409769 | L11: 779.3813922 | M11: 819.2625901 | N11: 863.3447814 | O11: 897.0318567 | P11: 932.8880464 | Q11: 967.0558067
B12: PGE | C12: CCA | D12: PCEA | E12: Peninsula Clean Energy Authority | F12: 316.7508302 | G12: 339.109832 | H12: 364.7623337 | I12: 394.2390505 | J12: 426.3829283 | K12: 456.1453223 | L12: 487.0346153 | M12: 517.7100907 | N12: 550.0192249 | O12: 578.7888746 | P12: 609.0218623 | Q12: 639.4689306
B13: PGE | C13: CCA | D13: PIONEER | E13: Pioneer Community Energy | F13: 174.5837003 | G13: 187.7462588 | H13: 201.0546486 | I13: 215.0839101 | J13: 229.8694971 | K13: 244.8625782 | L13: 259.9713458 | M13: 274.7234653 | N13: 289.2052716 | O13: 303.5659321 | P13: 317.5371963 | Q13: 331.399977
B14: PGE | C14: CCA | D14: RCEA | E14: Redwood Coast Energy Authority | F14: 62.13808132 | G14: 66.49605903 | H14: 71.0173622 | I14: 75.66512077 | J14: 80.48241445 | K14: 85.14941472 | L14: 89.68198065 | M14: 93.94668583 | N14: 98.16658398 | O14: 102.0831725 | P14: 105.7847383 | Q14: 109.1758939
B15: PGE | C15: CCA | D15: SJCE | E15: San José Clean Energy | F15: 350.2132401 | G15: 376.682974 | H15: 403.5617614 | I15: 432.0092255 | J15: 461.8896518 | K15: 492.4026779 | L15: 522.9226245 | M15: 553.2756763 | N15: 583.1075362 | O15: 612.8821921 | P15: 641.8477774 | Q15: 670.3415741
B16: PGE | C16: CCA | D16: SVCEA | E16: Silicon Valley Clean Energy Authority | F16: 337.4431824 | G16: 362.5905165 | H16: 388.2451504 | I16: 415.3711298 | J16: 443.7739535 | K16: 472.7716674 | L16: 501.6848762 | M16: 530.5496874 | N16: 558.8907203 | O16: 587.072546 | P16: 614.4374811 | Q16: 641.2026311
B17: PGE | C17: CCA | D17: SOMA | E17: Sonoma Clean Power | F17: 204.134853 | G17: 219.5956244 | H17: 235.2439036 | I17: 251.7755757 | J17: 269.1820112 | K17: 286.89668 | L17: 304.6938978 | M17: 322.2144283 | N17: 339.4285063 | O17: 356.5693425 | P17: 373.2496308 | Q17: 389.7539769
B18: PGE | C18: CCA | D18: VCEA | E18: Valley Clean Energy Alliance | F18: 65.84853114 | G18: 71.43715145 | H18: 77.28177389 | I18: 83.38644861 | J18: 90.05527557 | K18: 96.31582885 | L18: 102.9132857 | M18: 109.3863067 | N18: 116.133187 | O18: 122.1366257 | P18: 128.233311 | Q18: 134.24818
B20: SCE | C20: IOU | D20: SCE | E20: Southern California Edison (Bundled) | F20: 3045.655292 | G20: 3285.974584 | H20: 3536.196029 | I20: 3798.279002 | J20: 4067.724406 | K20: 4348.198909 | L20: 4638.756596 | M20: 4940.748875 | N20: 5249.165378 | O20: 5563.635571 | P20: 5882.73297 | Q20: 6204.313711
B21: SCE | C21: ESP | E21: Southern California Edison (Direct Access) | F21: 258.9590615 | G21: 277.6260021 | H21: 297.0263853 | I21: 316.3778486 | J21: 336.8639133 | K21: 357.7370402 | L21: 379.4658795 | M21: 401.3105993 | N21: 424.5472951 | O21: 447.7951199 | P21: 471.3999916 | Q21: 494.9851984
B22: SCE | C22: CCA | D22: AVCE | E22: Apple Valley Choice Energy | F22: 30.10581071 | G22: 32.50409878 | H22: 34.99964054 | I22: 37.61473933 | J22: 40.33318311 | K22: 43.12310859 | L22: 46.02878088 | M22: 48.95092821 | N22: 51.95023146 | O22: 54.99295365 | P22: 58.07708146 | Q22: 61.22154126
B23: SCE | C23: CCA | D23: COBP | E23: Baldwin Park, City of | F23: 0 | G23: 0 | H23: 0 | I23: 0 | J23: 0 | K23: 0 | L23: 0 | M23: 0 | N23: 0 | O23: 0 | P23: 0 | Q23: 0
B24: SCE | C24: CCA | D24: 3CE | E24: Central Coast Community Energy | F24: 32.35612186 | G24: 34.51726156 | H24: 36.74543729 | I24: 38.94428902 | J24: 41.2582324 | K24: 43.59488357 | L24: 46.01135563 | M24: 48.4189394 | N24: 50.96737791 | O24: 54.12182525 | P24: 57.34463397 | Q24: 60.6391154
B25: SCE | C25: CCA | D25: CPASC | E25: Clean Power Alliance | F25: 450.6000833 | G25: 486.2433336 | H25: 523.3696505 | I25: 562.1738224 | J25: 602.4207903 | K25: 644.0897311 | L25: 687.3481642 | M25: 731.74793 | N25: 777.2374138 | O25: 823.6038224 | P25: 870.6587387 | Q25: 918.2872223
B26: SCE | C26: CCA | D26: DCE | E26: Desert Community Energy | F26: 40.15591166 | G26: 43.37686474 | H26: 46.55130859 | I26: 49.76257506 | J26: 53.20223293 | K26: 56.76010019 | L26: 60.51450524 | M26: 64.35670471 | N26: 68.49846639 | O26: 72.72249331 | P26: 77.09404317 | Q26: 81.55660095
B27: SCE | C27: CCA | D27: PALMDALE | E27: Energy for Palmdale’s Independent Choice | F27: 35.8406544 | G27: 38.71777367 | H27: 41.71492437 | I27: 44.8500356 | J27: 48.13240651 | K27: 51.5522549 | L27: 55.09784186 | M27: 58.73685713 | N27: 62.4727006 | O27: 66.29620133 | P27: 70.17896164 | Q27: 74.1078701
B28: SCE | C28: CCA | D28: LCE | E28: Lancaster Choice Energy | F28: 73.4702635 | G28: 79.31106218 | H28: 85.39081396 | I28: 91.7556513 | J28: 98.36758947 | K28: 105.1902194 | L28: 112.2842335 | M28: 119.4934672 | N28: 126.8875164 | O28: 134.4115554 | P28: 142.0423971 | Q28: 149.795001
B29: SCE | C29: CCA | D29: OCPA | E29: Orange County Power Authority | F29: 231.5358536 | G29: 250.1223744 | H29: 269.4858769 | I29: 289.7359193 | J29: 310.9449435 | K29: 333.0347343 | L29: 355.9402606 | M29: 379.4434703 | N29: 403.5784376 | O29: 428.2826628 | P29: 453.3604769 | Q29: 478.7444505
B30: SCE | C30: CCA | D30: PRIME | E30: Pico Rivera Innovative Municipal Energy | F30: 8.892395276 | G30: 9.595772083 | H30: 10.32902098 | I30: 11.09498617 | J30: 11.89010478 | K30: 12.7158536 | L30: 13.57231891 | M30: 14.45650428 | N30: 15.36206003 | O30: 16.28699639 | P30: 17.22586047 | Q30: 18.1742854
B31: SCE | C31: CCA | D31: POMONA | E31: Pomona Choice Energy | F31: 7.288057759 | G31: 7.869595337 | H31: 8.47492063 | I31: 9.107495187 | J31: 9.769030663 | K31: 10.45550219 | L31: 11.16817613 | M31: 11.89490647 | N31: 12.64173622 | O31: 13.40460979 | P31: 14.17877115 | Q31: 14.96338148
B32: SCE | C32: CCA | D32: RMEA | E32: Rancho Mirage Energy Authority | F32: 44.3046873 | G32: 47.78342352 | H32: 51.40595404 | I32: 55.19266765 | J32: 59.09813217 | K32: 63.11005794 | L32: 67.28483293 | M32: 71.54118224 | N32: 75.89638623 | O32: 80.31474626 | P32: 84.79612233 | Q32: 89.34360111
B33: SCE | C33: CCA | D33: SJP | E33: San Jacinto Power | F33: 23.28149507 | G33: 25.12868512 | H33: 27.04813745 | I33: 29.05980323 | J33: 31.14470277 | K33: 33.2846598 | L33: 35.51319393 | M33: 37.76358128 | N33: 40.06924222 | O33: 42.41031828 | P33: 44.78312001 | Q33: 47.19922144
B34: SCE | C34: CCA | D34: SBCE | E34: Santa Barbara Clean Energy | F34: 20.20190788 | G34: 21.80913276 | H34: 23.48268095 | I34: 25.23064187 | J34: 27.05391709 | K34: 28.94984821 | L34: 30.91665947 | M34: 32.93629037 | N34: 35.01024151 | O34: 37.12869835 | P34: 39.28005695 | Q34: 41.45587789
B35: SCE | C35: CCA | D35: WCE | E35: Western Community Energy | F35: 0 | G35: 0 | H35: 0 | I35: 0 | J35: 0 | K35: 0 | L35: 0 | M35: 0 | N35: 0 | O35: 0 | P35: 0 | Q35: 0
B37: SDGE | C37: IOU | D37: SDGE | E37: San Diego Gas and Electric (Bundled) | F37: 437.7813968 | G37: 467.8454929 | H37: 499.5640013 | I37: 532.5983511 | J37: 565.4714618 | K37: 599.1985684 | L37: 633.0484082 | M37: 667.188132 | N37: 701.3379598 | O37: 735.5060716 | P37: 769.2268004 | Q37: 801.9702786
B38: SDGE | C38: ESP | E38: San Diego Gas and Electric (Direct Access) | F38: 474.1491193 | G38: 506.5551398 | H38: 539.9268909 | I38: 573.9356831 | J38: 608.1413218 | K38: 641.9135161 | L38: 675.2023936 | M38: 707.3505278 | N38: 740.0285032 | O38: 771.5993402 | P38: 803.3271309 | Q38: 834.280023
B39: SDGE | C39: CCA | D39: CEA | E39: Clean Energy Alliance | F39: 178.9720378 | G39: 192.3446351 | H39: 206.1338866 | I39: 220.2745202 | J39: 234.6360805 | K39: 249.0749924 | L39: 263.7102811 | M39: 278.5203575 | N39: 293.1536707 | O39: 307.7642761 | P39: 322.159443 | Q39: 336.5377957
B40: SDGE | C40: CCA | D40: OCPA | E40: Orange County Power Authority | F40: 20.39347021 | G40: 21.91722385 | H40: 23.48845239 | I40: 25.09986056 | J40: 26.73621646 | K40: 28.38153713 | L40: 30.04913632 | M40: 31.73683565 | N40: 33.40420403 | O40: 35.06910586 | P40: 36.70932759 | Q40: 38.34765373
B41: SDGE | C41: CCA | D41: SDCP | E41: San Diego Community Power | F41: 954.5560443 | G41: 1025.878298 | H41: 1099.422706 | I41: 1174.8478 | J41: 1251.440621 | K41: 1328.453055 | L41: 1406.508279 | M41: 1485.50433 | N41: 1563.54875 | O41: 1641.477719 | P41: 1718.251488 | Q41: 1794.93653
B43: BEAR | C43: SMJ | D43: BEAR | E43: Bear Valley Electric Services | F43: 6.772088363 | G43: 7.320190869 | H43: 7.890631737 | I43: 8.490464418 | J43: 9.116048799 | K43: 9.76391402 | L43: 10.43731287 | M43: 11.12148865 | N43: 11.82189694 | O43: 12.53723844 | P43: 13.2628481 | Q43: 14.00125049

Sheet CSPReportSheet
K2: NOTE: the below data is provided for troubleshooting purposes only.
K3: Bought/Owned | O3: Sold | S3: Net (GWh, MW, or MWh Energy Capacity)
B4: Resource | C4: 2024 | D4: 2026 | E4: 2030 | F4: 2035 | G4: Units | H4: Type | K4: 2024 | L4: 2026 | M4: 2030 | N4: 2035 | O4: 2024 | P4: 2026 | Q4: 2030 | R4: 2035 | S4: 2024 | T4: 2026 | U4: 2030 | V4: 2035
B5: Large Hydro | C5: =S5 -> 9.7914 | D5: =T5 -> 14.6914 | E5: 14.6914 | F5: 14.6914 | G5: GWh | H5: GHG-Free | K5: =SUM(SUMIFS(unique_contracts!BT:BT,unique_contracts!$AB:$AB,{"Buy","Owned"},unique_contracts!$BS:$BS,"="&$B5&" ("&$G5&")",unique_contracts!$AM:$AM,"<="&C$4,unique_contracts!$AP:$AP,">="&C$4), SUMIFS(unique_contracts!BT:BT,unique_contracts!$AB:$AB,"="&"",unique_contracts!$BS:$BS,"="&$B5&" ("&$G5&")",unique_contracts!$AM:$AM,"<="&C$4,unique_contracts!$AP:$AP,">="&C$4)) -> 9.7914 | L5: =SUM(SUMIFS(unique_contracts!BU:BU,unique_contracts!$AB:$AB,{"Buy","Owned"},unique_contracts!$BS:$BS,"="&$B5&" ("&$G5&")",unique_contracts!$AM:$AM,"<="&D$4,unique_contracts!$AP:$AP,">="&D$4), SUMIFS(unique_contracts!BU:BU,unique_contracts!$AB:$AB,"="&"",unique_contracts!$BS:$BS,"="&$B5&" ("&$G5&")",unique_contracts!$AM:$AM,"<="&D$4,unique_contracts!$AP:$AP,">="&D$4)) -> 14.6914 | M5: =SUM(SUMIFS(unique_contracts!BV:BV,unique_contracts!$AB:$AB,{"Buy","Owned"},unique_contracts!$BS:$BS,"="&$B5&" ("&$G5&")",unique_contracts!$AM:$AM,"<="&E$4,unique_contracts!$AP:$AP,">="&E$4), SUMIFS(unique_contracts!BV:BV,unique_contracts!$AB:$AB,"="&"",unique_contracts!$BS:$BS,"="&$B5&" ("&$G5&")",unique_contracts!$AM:$AM,"<="&E$4,unique_contracts!$AP:$AP,">="&E$4)) -> 14.6914 | N5: =SUM(SUMIFS(unique_contracts!BW:BW,unique_contracts!$AB:$AB,{"Buy","Owned"},unique_contracts!$BS:$BS,"="&$B5&" ("&$G5&")",unique_contracts!$AM:$AM,"<="&F$4,unique_contracts!$AP:$AP,">="&F$4), SUMIFS(unique_contracts!BW:BW,unique_contracts!$AB:$AB,"="&"",unique_contracts!$BS:$BS,"="&$B5&" ("&$G5&")",unique_contracts!$AM:$AM,"<="&F$4,unique_contracts!$AP:$AP,">="&F$4)) -> 14.6914 | O5: =SUMIFS(unique_contracts!BT:BT,unique_contracts!$AB:$AB,"=Sell",unique_contracts!$BS:$BS,"="&$B5&" ("&$G5&")",unique_contracts!$AM:$AM,"<="&C$4,unique_contracts!$AP:$AP,">="&C$4) -> 0 | P5: =SUMIFS(unique_contracts!BU:BU,unique_contracts!$AB:$AB,"=Sell",unique_contracts!$BS:$BS,"="&$B5&" ("&$G5&")",unique_contracts!$AM:$AM,"<="&D$4,unique_contracts!$AP:$AP,">="&D$4) -> 0 | Q5: =SUMIFS(unique_contracts!BV:BV,unique_contracts!$AB:$AB,"=Sell",unique_contracts!$BS:$BS,"="&$B5&" ("&$G5&")",unique_contracts!$AM:$AM,"<="&E$4,unique_contracts!$AP:$AP,">="&E$4) -> 0 | R5: =SUMIFS(unique_contracts!BW:BW,unique_contracts!$AB:$AB,"=Sell",unique_contracts!$BS:$BS,"="&$B5&" ("&$G5&")",unique_contracts!$AM:$AM,"<="&F$4,unique_contracts!$AP:$AP,">="&F$4) -> 0 | S5: =K5-O5 -> 9.7914 | T5: =L5-P5 -> 14.6914 | U5: 14.6914 | V5: 14.6914
B6: Imported Hydro | C6: =S6 -> 0 | D6: =T6 -> 0 | E6: 0 | F6: 0 | G6: GWh | H6: GHG-Free | K6: =SUM(SUMIFS(unique_contracts!BT:BT,unique_contracts!$AB:$AB,{"Buy","Owned"},unique_contracts!$BS:$BS,"="&$B6&" ("&$G6&")",unique_contracts!$AM:$AM,"<="&C$4,unique_contracts!$AP:$AP,">="&C$4), SUMIFS(unique_contracts!BT:BT,unique_contracts!$AB:$AB,"="&"",unique_contracts!$BS:$BS,"="&$B6&" ("&$G6&")",unique_contracts!$AM:$AM,"<="&C$4,unique_contracts!$AP:$AP,">="&C$4)) -> 0 | L6: =SUM(SUMIFS(unique_contracts!BU:BU,unique_contracts!$AB:$AB,{"Buy","Owned"},unique_contracts!$BS:$BS,"="&$B6&" ("&$G6&")",unique_contracts!$AM:$AM,"<="&D$4,unique_contracts!$AP:$AP,">="&D$4), SUMIFS(unique_contracts!BU:BU,unique_contracts!$AB:$AB,"="&"",unique_contracts!$BS:$BS,"="&$B6&" ("&$G6&")",unique_contracts!$AM:$AM,"<="&D$4,unique_contracts!$AP:$AP,">="&D$4)) -> 0 | M6: =SUM(SUMIFS(unique_contracts!BV:BV,unique_contracts!$AB:$AB,{"Buy","Owned"},unique_contracts!$BS:$BS,"="&$B6&" ("&$G6&")",unique_contracts!$AM:$AM,"<="&E$4,unique_contracts!$AP:$AP,">="&E$4), SUMIFS(unique_contracts!BV:BV,unique_contracts!$AB:$AB,"="&"",unique_contracts!$BS:$BS,"="&$B6&" ("&$G6&")",unique_contracts!$AM:$AM,"<="&E$4,unique_contracts!$AP:$AP,">="&E$4)) -> 0 | N6: =SUM(SUMIFS(unique_contracts!BW:BW,unique_contracts!$AB:$AB,{"Buy","Owned"},unique_contracts!$BS:$BS,"="&$B6&" ("&$G6&")",unique_contracts!$AM:$AM,"<="&F$4,unique_contracts!$AP:$AP,">="&F$4), SUMIFS(unique_contracts!BW:BW,unique_contracts!$AB:$AB,"="&"",unique_contracts!$BS:$BS,"="&$B6&" ("&$G6&")",unique_contracts!$AM:$AM,"<="&F$4,unique_contracts!$AP:$AP,">="&F$4)) -> 0 | O6: =SUMIFS(unique_contracts!BT:BT,unique_contracts!$AB:$AB,"=Sell",unique_contracts!$BS:$BS,"="&$B6&" ("&$G6&")",unique_contracts!$AM:$AM,"<="&C$4,unique_contracts!$AP:$AP,">="&C$4) -> 0 | P6: =SUMIFS(unique_contracts!BU:BU,unique_contracts!$AB:$AB,"=Sell",unique_contracts!$BS:$BS,"="&$B6&" ("&$G6&")",unique_contracts!$AM:$AM,"<="&D$4,unique_contracts!$AP:$AP,">="&D$4) -> 0 | Q6: =SUMIFS(unique_contracts!BV:BV,unique_contracts!$AB:$AB,"=Sell",unique_contracts!$BS:$BS,"="&$B6&" ("&$G6&")",unique_contracts!$AM:$AM,"<="&E$4,unique_contracts!$AP:$AP,">="&E$4) -> 0 | R6: =SUMIFS(unique_contracts!BW:BW,unique_contracts!$AB:$AB,"=Sell",unique_contracts!$BS:$BS,"="&$B6&" ("&$G6&")",unique_contracts!$AM:$AM,"<="&F$4,unique_contracts!$AP:$AP,">="&F$4) -> 0 | S6: =K6-O6 -> 0 | T6: =L6-P6 -> 0 | U6: =M6-Q6 -> 0 | V6: =N6-R6 -> 0
B7: Asset Controlling Supplier | C7: =S7 -> 0 | D7: 0 | E7: 0 | F7: 0 | G7: GWh | H7: GHG-Free (Partial) | K7: =SUM(SUMIFS(unique_contracts!BT:BT,unique_contracts!$AB:$AB,{"Buy","Owned"},unique_contracts!$BS:$BS,"="&$B7&" ("&$G7&")",unique_contracts!$AM:$AM,"<="&C$4,unique_contracts!$AP:$AP,">="&C$4), SUMIFS(unique_contracts!BT:BT,unique_contracts!$AB:$AB,"="&"",unique_contracts!$BS:$BS,"="&$B7&" ("&$G7&")",unique_contracts!$AM:$AM,"<="&C$4,unique_contracts!$AP:$AP,">="&C$4)) -> 0 | L7: =SUM(SUMIFS(unique_contracts!BU:BU,unique_contracts!$AB:$AB,{"Buy","Owned"},unique_contracts!$BS:$BS,"="&$B7&" ("&$G7&")",unique_contracts!$AM:$AM,"<="&D$4,unique_contracts!$AP:$AP,">="&D$4), SUMIFS(unique_contracts!BU:BU,unique_contracts!$AB:$AB,"="&"",unique_contracts!$BS:$BS,"="&$B7&" ("&$G7&")",unique_contracts!$AM:$AM,"<="&D$4,unique_contracts!$AP:$AP,">="&D$4)) -> 0 | M7: =SUM(SUMIFS(unique_contracts!BV:BV,unique_contracts!$AB:$AB,{"Buy","Owned"},unique_contracts!$BS:$BS,"="&$B7&" ("&$G7&")",unique_contracts!$AM:$AM,"<="&E$4,unique_contracts!$AP:$AP,">="&E$4), SUMIFS(unique_contracts!BV:BV,unique_contracts!$AB:$AB,"="&"",unique_contracts!$BS:$BS,"="&$B7&" ("&$G7&")",unique_contracts!$AM:$AM,"<="&E$4,unique_contracts!$AP:$AP,">="&E$4)) -> 0 | N7: =SUM(SUMIFS(unique_contracts!BW:BW,unique_contracts!$AB:$AB,{"Buy","Owned"},unique_contracts!$BS:$BS,"="&$B7&" ("&$G7&")",unique_contracts!$AM:$AM,"<="&F$4,unique_contracts!$AP:$AP,">="&F$4), SUMIFS(unique_contracts!BW:BW,unique_contracts!$AB:$AB,"="&"",unique_contracts!$BS:$BS,"="&$B7&" ("&$G7&")",unique_contracts!$AM:$AM,"<="&F$4,unique_contracts!$AP:$AP,">="&F$4)) -> 0 | O7: =SUMIFS(unique_contracts!BT:BT,unique_contracts!$AB:$AB,"=Sell",unique_contracts!$BS:$BS,"="&$B7&" ("&$G7&")",unique_contracts!$AM:$AM,"<="&C$4,unique_contracts!$AP:$AP,">="&C$4) -> 0 | P7: =SUMIFS(unique_contracts!BU:BU,unique_contracts!$AB:$AB,"=Sell",unique_contracts!$BS:$BS,"="&$B7&" ("&$G7&")",unique_contracts!$AM:$AM,"<="&D$4,unique_contracts!$AP:$AP,">="&D$4) -> 0 | Q7: =SUMIFS(unique_contracts!BV:BV,unique_contracts!$AB:$AB,"=Sell",unique_contracts!$BS:$BS,"="&$B7&" ("&$G7&")",unique_contracts!$AM:$AM,"<="&E$4,unique_contracts!$AP:$AP,">="&E$4) -> 0 | R7: =SUMIFS(unique_contracts!BW:BW,unique_contracts!$AB:$AB,"=Sell",unique_contracts!$BS:$BS,"="&$B7&" ("&$G7&")",unique_contracts!$AM:$AM,"<="&F$4,unique_contracts!$AP:$AP,">="&F$4) -> 0 | S7: =K7-O7 -> 0 | T7: =L7-P7 -> 0 | U7: =M7-Q7 -> 0 | V7: =N7-R7 -> 0
B8: Nuclear | C8: =S8 -> 34.7907 | D8: =T8 -> 1.5357 | E8: =U8 -> 1.5357 | F8: =V8 -> 1.5357 | G8: GWh | H8: GHG-Free | K8: =SUM(SUMIFS(unique_contracts!BT:BT,unique_contracts!$AB:$AB,{"Buy","Owned"},unique_contracts!$BS:$BS,"="&$B8&" ("&$G8&")",unique_contracts!$AM:$AM,"<="&C$4,unique_contracts!$AP:$AP,">="&C$4), SUMIFS(unique_contracts!BT:BT,unique_contracts!$AB:$AB,"="&"",unique_contracts!$BS:$BS,"="&$B8&" ("&$G8&")",unique_contracts!$AM:$AM,"<="&C$4,unique_contracts!$AP:$AP,">="&C$4)) -> 34.7907 | L8: =SUM(SUMIFS(unique_contracts!BU:BU,unique_contracts!$AB:$AB,{"Buy","Owned"},unique_contracts!$BS:$BS,"="&$B8&" ("&$G8&")",unique_contracts!$AM:$AM,"<="&D$4,unique_contracts!$AP:$AP,">="&D$4), SUMIFS(unique_contracts!BU:BU,unique_contracts!$AB:$AB,"="&"",unique_contracts!$BS:$BS,"="&$B8&" ("&$G8&")",unique_contracts!$AM:$AM,"<="&D$4,unique_contracts!$AP:$AP,">="&D$4)) -> 1.5357 | M8: =SUM(SUMIFS(unique_contracts!BV:BV,unique_contracts!$AB:$AB,{"Buy","Owned"},unique_contracts!$BS:$BS,"="&$B8&" ("&$G8&")",unique_contracts!$AM:$AM,"<="&E$4,unique_contracts!$AP:$AP,">="&E$4), SUMIFS(unique_contracts!BV:BV,unique_contracts!$AB:$AB,"="&"",unique_contracts!$BS:$BS,"="&$B8&" ("&$G8&")",unique_contracts!$AM:$AM,"<="&E$4,unique_contracts!$AP:$AP,">="&E$4)) -> 1.5357 | N8: =SUM(SUMIFS(unique_contracts!BW:BW,unique_contracts!$AB:$AB,{"Buy","Owned"},unique_contracts!$BS:$BS,"="&$B8&" ("&$G8&")",unique_contracts!$AM:$AM,"<="&F$4,unique_contracts!$AP:$AP,">="&F$4), SUMIFS(unique_contracts!BW:BW,unique_contracts!$AB:$AB,"="&"",unique_contracts!$BS:$BS,"="&$B8&" ("&$G8&")",unique_contracts!$AM:$AM,"<="&F$4,unique_contracts!$AP:$AP,">="&F$4)) -> 1.5357 | O8: =SUMIFS(unique_contracts!BT:BT,unique_contracts!$AB:$AB,"=Sell",unique_contracts!$BS:$BS,"="&$B8&" ("&$G8&")",unique_contracts!$AM:$AM,"<="&C$4,unique_contracts!$AP:$AP,">="&C$4) -> 0 | P8: =SUMIFS(unique_contracts!BU:BU,unique_contracts!$AB:$AB,"=Sell",unique_contracts!$BS:$BS,"="&$B8&" ("&$G8&")",unique_contracts!$AM:$AM,"<="&D$4,unique_contracts!$AP:$AP,">="&D$4) -> 0 | Q8: =SUMIFS(unique_contracts!BV:BV,unique_contracts!$AB:$AB,"=Sell",unique_contracts!$BS:$BS,"="&$B8&" ("&$G8&")",unique_contracts!$AM:$AM,"<="&E$4,unique_contracts!$AP:$AP,">="&E$4) -> 0 | R8: =SUMIFS(unique_contracts!BW:BW,unique_contracts!$AB:$AB,"=Sell",unique_contracts!$BS:$BS,"="&$B8&" ("&$G8&")",unique_contracts!$AM:$AM,"<="&F$4,unique_contracts!$AP:$AP,">="&F$4) -> 0 | S8: 34.7907 | T8: 1.5357 | U8: 1.5357 | V8: 1.5357
B9: Biogas | C9: 0 | D9: 0 | E9: 0 | F9: 0 | G9: GWh | H9: RPS Eligible | K9: =SUM(SUMIFS(unique_contracts!BT:BT,unique_contracts!$AB:$AB,{"Buy","Owned"},unique_contracts!$BS:$BS,"="&$B9&" ("&$G9&")",unique_contracts!$AM:$AM,"<="&C$4,unique_contracts!$AP:$AP,">="&C$4), SUMIFS(unique_contracts!BT:BT,unique_contracts!$AB:$AB,"="&"",unique_contracts!$BS:$BS,"="&$B9&" ("&$G9&")",unique_contracts!$AM:$AM,"<="&C$4,unique_contracts!$AP:$AP,">="&C$4)) -> 0 | L9: =SUM(SUMIFS(unique_contracts!BU:BU,unique_contracts!$AB:$AB,{"Buy","Owned"},unique_contracts!$BS:$BS,"="&$B9&" ("&$G9&")",unique_contracts!$AM:$AM,"<="&D$4,unique_contracts!$AP:$AP,">="&D$4), SUMIFS(unique_contracts!BU:BU,unique_contracts!$AB:$AB,"="&"",unique_contracts!$BS:$BS,"="&$B9&" ("&$G9&")",unique_contracts!$AM:$AM,"<="&D$4,unique_contracts!$AP:$AP,">="&D$4)) -> 0 | M9: =SUM(SUMIFS(unique_contracts!BV:BV,unique_contracts!$AB:$AB,{"Buy","Owned"},unique_contracts!$BS:$BS,"="&$B9&" ("&$G9&")",unique_contracts!$AM:$AM,"<="&E$4,unique_contracts!$AP:$AP,">="&E$4), SUMIFS(unique_contracts!BV:BV,unique_contracts!$AB:$AB,"="&"",unique_contracts!$BS:$BS,"="&$B9&" ("&$G9&")",unique_contracts!$AM:$AM,"<="&E$4,unique_contracts!$AP:$AP,">="&E$4)) -> 0 | N9: =SUM(SUMIFS(unique_contracts!BW:BW,unique_contracts!$AB:$AB,{"Buy","Owned"},unique_contracts!$BS:$BS,"="&$B9&" ("&$G9&")",unique_contracts!$AM:$AM,"<="&F$4,unique_contracts!$AP:$AP,">="&F$4), SUMIFS(unique_contracts!BW:BW,unique_contracts!$AB:$AB,"="&"",unique_contracts!$BS:$BS,"="&$B9&" ("&$G9&")",unique_contracts!$AM:$AM,"<="&F$4,unique_contracts!$AP:$AP,">="&F$4)) -> 0 | O9: =SUMIFS(unique_contracts!BT:BT,unique_contracts!$AB:$AB,"=Sell",unique_contracts!$BS:$BS,"="&$B9&" ("&$G9&")",unique_contracts!$AM:$AM,"<="&C$4,unique_contracts!$AP:$AP,">="&C$4) -> 0 | P9: =SUMIFS(unique_contracts!BU:BU,unique_contracts!$AB:$AB,"=Sell",unique_contracts!$BS:$BS,"="&$B9&" ("&$G9&")",unique_contracts!$AM:$AM,"<="&D$4,unique_contracts!$AP:$AP,">="&D$4) -> 0 | Q9: =SUMIFS(unique_contracts!BV:BV,unique_contracts!$AB:$AB,"=Sell",unique_contracts!$BS:$BS,"="&$B9&" ("&$G9&")",unique_contracts!$AM:$AM,"<="&E$4,unique_contracts!$AP:$AP,">="&E$4) -> 0 | R9: =SUMIFS(unique_contracts!BW:BW,unique_contracts!$AB:$AB,"=Sell",unique_contracts!$BS:$BS,"="&$B9&" ("&$G9&")",unique_contracts!$AM:$AM,"<="&F$4,unique_contracts!$AP:$AP,">="&F$4) -> 0 | S9: 0 | T9: 0 | U9: 0 | V9: 0
B10: Biomass | C10: 0 | D10: 0 | E10: 0 | F10: 0 | G10: GWh | H10: RPS Eligible | K10: =SUM(SUMIFS(unique_contracts!BT:BT,unique_contracts!$AB:$AB,{"Buy","Owned"},unique_contracts!$BS:$BS,"="&$B10&" ("&$G10&")",unique_contracts!$AM:$AM,"<="&C$4,unique_contracts!$AP:$AP,">="&C$4), SUMIFS(unique_contracts!BT:BT,unique_contracts!$AB:$AB,"="&"",unique_contracts!$BS:$BS,"="&$B10&" ("&$G10&")",unique_contracts!$AM:$AM,"<="&C$4,unique_contracts!$AP:$AP,">="&C$4)) -> 0 | L10: =SUM(SUMIFS(unique_contracts!BU:BU,unique_contracts!$AB:$AB,{"Buy","Owned"},unique_contracts!$BS:$BS,"="&$B10&" ("&$G10&")",unique_contracts!$AM:$AM,"<="&D$4,unique_contracts!$AP:$AP,">="&D$4), SUMIFS(unique_contracts!BU:BU,unique_contracts!$AB:$AB,"="&"",unique_contracts!$BS:$BS,"="&$B10&" ("&$G10&")",unique_contracts!$AM:$AM,"<="&D$4,unique_contracts!$AP:$AP,">="&D$4)) -> 0 | M10: =SUM(SUMIFS(unique_contracts!BV:BV,unique_contracts!$AB:$AB,{"Buy","Owned"},unique_contracts!$BS:$BS,"="&$B10&" ("&$G10&")",unique_contracts!$AM:$AM,"<="&E$4,unique_contracts!$AP:$AP,">="&E$4), SUMIFS(unique_contracts!BV:BV,unique_contracts!$AB:$AB,"="&"",unique_contracts!$BS:$BS,"="&$B10&" ("&$G10&")",unique_contracts!$AM:$AM,"<="&E$4,unique_contracts!$AP:$AP,">="&E$4)) -> 0 | N10: =SUM(SUMIFS(unique_contracts!BW:BW,unique_contracts!$AB:$AB,{"Buy","Owned"},unique_contracts!$BS:$BS,"="&$B10&" ("&$G10&")",unique_contracts!$AM:$AM,"<="&F$4,unique_contracts!$AP:$AP,">="&F$4), SUMIFS(unique_contracts!BW:BW,unique_contracts!$AB:$AB,"="&"",unique_contracts!$BS:$BS,"="&$B10&" ("&$G10&")",unique_contracts!$AM:$AM,"<="&F$4,unique_contracts!$AP:$AP,">="&F$4)) -> 0 | O10: =SUMIFS(unique_contracts!BT:BT,unique_contracts!$AB:$AB,"=Sell",unique_contracts!$BS:$BS,"="&$B10&" ("&$G10&")",unique_contracts!$AM:$AM,"<="&C$4,unique_contracts!$AP:$AP,">="&C$4) -> 0 | P10: =SUMIFS(unique_contracts!BU:BU,unique_contracts!$AB:$AB,"=Sell",unique_contracts!$BS:$BS,"="&$B10&" ("&$G10&")",unique_contracts!$AM:$AM,"<="&D$4,unique_contracts!$AP:$AP,">="&D$4) -> 0 | Q10: =SUMIFS(unique_contracts!BV:BV,unique_contracts!$AB:$AB,"=Sell",unique_contracts!$BS:$BS,"="&$B10&" ("&$G10&")",unique_contracts!$AM:$AM,"<="&E$4,unique_contracts!$AP:$AP,">="&E$4) -> 0 | R10: =SUMIFS(unique_contracts!BW:BW,unique_contracts!$AB:$AB,"=Sell",unique_contracts!$BS:$BS,"="&$B10&" ("&$G10&")",unique_contracts!$AM:$AM,"<="&F$4,unique_contracts!$AP:$AP,">="&F$4) -> 0 | S10: 0 | T10: 0 | U10: 0 | V10: 0
B11: Geothermal | C11: 0 | D11: 0 | E11: 0 | F11: 0 | G11: GWh | H11: RPS Eligible | K11: =SUM(SUMIFS(unique_contracts!BT:BT,unique_contracts!$AB:$AB,{"Buy","Owned"},unique_contracts!$BS:$BS,"="&$B11&" ("&$G11&")",unique_contracts!$AM:$AM,"<="&C$4,unique_contracts!$AP:$AP,">="&C$4), SUMIFS(unique_contracts!BT:BT,unique_contracts!$AB:$AB,"="&"",unique_contracts!$BS:$BS,"="&$B11&" ("&$G11&")",unique_contracts!$AM:$AM,"<="&C$4,unique_contracts!$AP:$AP,">="&C$4)) -> 0 | L11: =SUM(SUMIFS(unique_contracts!BU:BU,unique_contracts!$AB:$AB,{"Buy","Owned"},unique_contracts!$BS:$BS,"="&$B11&" ("&$G11&")",unique_contracts!$AM:$AM,"<="&D$4,unique_contracts!$AP:$AP,">="&D$4), SUMIFS(unique_contracts!BU:BU,unique_contracts!$AB:$AB,"="&"",unique_contracts!$BS:$BS,"="&$B11&" ("&$G11&")",unique_contracts!$AM:$AM,"<="&D$4,unique_contracts!$AP:$AP,">="&D$4)) -> 0 | M11: =SUM(SUMIFS(unique_contracts!BV:BV,unique_contracts!$AB:$AB,{"Buy","Owned"},unique_contracts!$BS:$BS,"="&$B11&" ("&$G11&")",unique_contracts!$AM:$AM,"<="&E$4,unique_contracts!$AP:$AP,">="&E$4), SUMIFS(unique_contracts!BV:BV,unique_contracts!$AB:$AB,"="&"",unique_contracts!$BS:$BS,"="&$B11&" ("&$G11&")",unique_contracts!$AM:$AM,"<="&E$4,unique_contracts!$AP:$AP,">="&E$4)) -> 0 | N11: =SUM(SUMIFS(unique_contracts!BW:BW,unique_contracts!$AB:$AB,{"Buy","Owned"},unique_contracts!$BS:$BS,"="&$B11&" ("&$G11&")",unique_contracts!$AM:$AM,"<="&F$4,unique_contracts!$AP:$AP,">="&F$4), SUMIFS(unique_contracts!BW:BW,unique_contracts!$AB:$AB,"="&"",unique_contracts!$BS:$BS,"="&$B11&" ("&$G11&")",unique_contracts!$AM:$AM,"<="&F$4,unique_contracts!$AP:$AP,">="&F$4)) -> 0 | O11: =SUMIFS(unique_contracts!BT:BT,unique_contracts!$AB:$AB,"=Sell",unique_contracts!$BS:$BS,"="&$B11&" ("&$G11&")",unique_contracts!$AM:$AM,"<="&C$4,unique_contracts!$AP:$AP,">="&C$4) -> 0 | P11: =SUMIFS(unique_contracts!BU:BU,unique_contracts!$AB:$AB,"=Sell",unique_contracts!$BS:$BS,"="&$B11&" ("&$G11&")",unique_contracts!$AM:$AM,"<="&D$4,unique_contracts!$AP:$AP,">="&D$4) -> 0 | Q11: =SUMIFS(unique_contracts!BV:BV,unique_contracts!$AB:$AB,"=Sell",unique_contracts!$BS:$BS,"="&$B11&" ("&$G11&")",unique_contracts!$AM:$AM,"<="&E$4,unique_contracts!$AP:$AP,">="&E$4) -> 0 | R11: =SUMIFS(unique_contracts!BW:BW,unique_contracts!$AB:$AB,"=Sell",unique_contracts!$BS:$BS,"="&$B11&" ("&$G11&")",unique_contracts!$AM:$AM,"<="&F$4,unique_contracts!$AP:$AP,">="&F$4) -> 0 | S11: 0 | T11: 0 | U11: 0 | V11: 0
B12: Small Hydro | C12: 0 | D12: 0 | E12: 0 | F12: 0 | G12: GWh | H12: RPS Eligible | K12: =SUM(SUMIFS(unique_contracts!BT:BT,unique_contracts!$AB:$AB,{"Buy","Owned"},unique_contracts!$BS:$BS,"="&$B12&" ("&$G12&")",unique_contracts!$AM:$AM,"<="&C$4,unique_contracts!$AP:$AP,">="&C$4), SUMIFS(unique_contracts!BT:BT,unique_contracts!$AB:$AB,"="&"",unique_contracts!$BS:$BS,"="&$B12&" ("&$G12&")",unique_contracts!$AM:$AM,"<="&C$4,unique_contracts!$AP:$AP,">="&C$4)) -> 0 | L12: =SUM(SUMIFS(unique_contracts!BU:BU,unique_contracts!$AB:$AB,{"Buy","Owned"},unique_contracts!$BS:$BS,"="&$B12&" ("&$G12&")",unique_contracts!$AM:$AM,"<="&D$4,unique_contracts!$AP:$AP,">="&D$4), SUMIFS(unique_contracts!BU:BU,unique_contracts!$AB:$AB,"="&"",unique_contracts!$BS:$BS,"="&$B12&" ("&$G12&")",unique_contracts!$AM:$AM,"<="&D$4,unique_contracts!$AP:$AP,">="&D$4)) -> 0 | M12: =SUM(SUMIFS(unique_contracts!BV:BV,unique_contracts!$AB:$AB,{"Buy","Owned"},unique_contracts!$BS:$BS,"="&$B12&" ("&$G12&")",unique_contracts!$AM:$AM,"<="&E$4,unique_contracts!$AP:$AP,">="&E$4), SUMIFS(unique_contracts!BV:BV,unique_contracts!$AB:$AB,"="&"",unique_contracts!$BS:$BS,"="&$B12&" ("&$G12&")",unique_contracts!$AM:$AM,"<="&E$4,unique_contracts!$AP:$AP,">="&E$4)) -> 0 | N12: =SUM(SUMIFS(unique_contracts!BW:BW,unique_contracts!$AB:$AB,{"Buy","Owned"},unique_contracts!$BS:$BS,"="&$B12&" ("&$G12&")",unique_contracts!$AM:$AM,"<="&F$4,unique_contracts!$AP:$AP,">="&F$4), SUMIFS(unique_contracts!BW:BW,unique_contracts!$AB:$AB,"="&"",unique_contracts!$BS:$BS,"="&$B12&" ("&$G12&")",unique_contracts!$AM:$AM,"<="&F$4,unique_contracts!$AP:$AP,">="&F$4)) -> 0 | O12: =SUMIFS(unique_contracts!BT:BT,unique_contracts!$AB:$AB,"=Sell",unique_contracts!$BS:$BS,"="&$B12&" ("&$G12&")",unique_contracts!$AM:$AM,"<="&C$4,unique_contracts!$AP:$AP,">="&C$4) -> 0 | P12: =SUMIFS(unique_contracts!BU:BU,unique_contracts!$AB:$AB,"=Sell",unique_contracts!$BS:$BS,"="&$B12&" ("&$G12&")",unique_contracts!$AM:$AM,"<="&D$4,unique_contracts!$AP:$AP,">="&D$4) -> 0 | Q12: =SUMIFS(unique_contracts!BV:BV,unique_contracts!$AB:$AB,"=Sell",unique_contracts!$BS:$BS,"="&$B12&" ("&$G12&")",unique_contracts!$AM:$AM,"<="&E$4,unique_contracts!$AP:$AP,">="&E$4) -> 0 | R12: =SUMIFS(unique_contracts!BW:BW,unique_contracts!$AB:$AB,"=Sell",unique_contracts!$BS:$BS,"="&$B12&" ("&$G12&")",unique_contracts!$AM:$AM,"<="&F$4,unique_contracts!$AP:$AP,">="&F$4) -> 0 | S12: 0 | T12: 0 | U12: 0 | V12: 0
B13: Wind Resources
B14: Wind Baseline California | C14: =S14 -> 0 | D14: =T14 -> 0 | E14: =U14 -> 0 | F14: =V14 -> 0 | G14: GWh | H14: RPS Eligible | K14: =SUM(SUMIFS(unique_contracts!BT:BT,unique_contracts!$AB:$AB,{"Buy","Owned"},unique_contracts!$BS:$BS,"="&$B14&" ("&$G14&")",unique_contracts!$AM:$AM,"<="&C$4,unique_contracts!$AP:$AP,">="&C$4), SUMIFS(unique_contracts!BT:BT,unique_contracts!$AB:$AB,"="&"",unique_contracts!$BS:$BS,"="&$B14&" ("&$G14&")",unique_contracts!$AM:$AM,"<="&C$4,unique_contracts!$AP:$AP,">="&C$4)) -> 0 | L14: =SUM(SUMIFS(unique_contracts!BU:BU,unique_contracts!$AB:$AB,{"Buy","Owned"},unique_contracts!$BS:$BS,"="&$B14&" ("&$G14&")",unique_contracts!$AM:$AM,"<="&D$4,unique_contracts!$AP:$AP,">="&D$4), SUMIFS(unique_contracts!BU:BU,unique_contracts!$AB:$AB,"="&"",unique_contracts!$BS:$BS,"="&$B14&" ("&$G14&")",unique_contracts!$AM:$AM,"<="&D$4,unique_contracts!$AP:$AP,">="&D$4)) -> 0 | M14: =SUM(SUMIFS(unique_contracts!BV:BV,unique_contracts!$AB:$AB,{"Buy","Owned"},unique_contracts!$BS:$BS,"="&$B14&" ("&$G14&")",unique_contracts!$AM:$AM,"<="&E$4,unique_contracts!$AP:$AP,">="&E$4), SUMIFS(unique_contracts!BV:BV,unique_contracts!$AB:$AB,"="&"",unique_contracts!$BS:$BS,"="&$B14&" ("&$G14&")",unique_contracts!$AM:$AM,"<="&E$4,unique_contracts!$AP:$AP,">="&E$4)) -> 0 | N14: =SUM(SUMIFS(unique_contracts!BW:BW,unique_contracts!$AB:$AB,{"Buy","Owned"},unique_contracts!$BS:$BS,"="&$B14&" ("&$G14&")",unique_contracts!$AM:$AM,"<="&F$4,unique_contracts!$AP:$AP,">="&F$4), SUMIFS(unique_contracts!BW:BW,unique_contracts!$AB:$AB,"="&"",unique_contracts!$BS:$BS,"="&$B14&" ("&$G14&")",unique_contracts!$AM:$AM,"<="&F$4,unique_contracts!$AP:$AP,">="&F$4)) -> 0 | O14: =SUMIFS(unique_contracts!BT:BT,unique_contracts!$AB:$AB,"=Sell",unique_contracts!$BS:$BS,"="&$B14&" ("&$G14&")",unique_contracts!$AM:$AM,"<="&C$4,unique_contracts!$AP:$AP,">="&C$4) -> 0 | P14: =SUMIFS(unique_contracts!BU:BU,unique_contracts!$AB:$AB,"=Sell",unique_contracts!$BS:$BS,"="&$B14&" ("&$G14&")",unique_contracts!$AM:$AM,"<="&D$4,unique_contracts!$AP:$AP,">="&D$4) -> 0 | Q14: =SUMIFS(unique_contracts!BV:BV,unique_contracts!$AB:$AB,"=Sell",unique_contracts!$BS:$BS,"="&$B14&" ("&$G14&")",unique_contracts!$AM:$AM,"<="&E$4,unique_contracts!$AP:$AP,">="&E$4) -> 0 | R14: =SUMIFS(unique_contracts!BW:BW,unique_contracts!$AB:$AB,"=Sell",unique_contracts!$BS:$BS,"="&$B14&" ("&$G14&")",unique_contracts!$AM:$AM,"<="&F$4,unique_contracts!$AP:$AP,">="&F$4) -> 0 | S14: 0 | T14: 0 | U14: 0 | V14: 0
B15: Wind New PG&E | C15: 0 | D15: 0 | E15: 0 | F15: 0 | G15: GWh | H15: RPS Eligible | K15: =SUM(SUMIFS(unique_contracts!BT:BT,unique_contracts!$AB:$AB,{"Buy","Owned"},unique_contracts!$BS:$BS,"="&$B15&" ("&$G15&")",unique_contracts!$AM:$AM,"<="&C$4,unique_contracts!$AP:$AP,">="&C$4), SUMIFS(unique_contracts!BT:BT,unique_contracts!$AB:$AB,"="&"",unique_contracts!$BS:$BS,"="&$B15&" ("&$G15&")",unique_contracts!$AM:$AM,"<="&C$4,unique_contracts!$AP:$AP,">="&C$4)) -> 0 | L15: =SUM(SUMIFS(unique_contracts!BU:BU,unique_contracts!$AB:$AB,{"Buy","Owned"},unique_contracts!$BS:$BS,"="&$B15&" ("&$G15&")",unique_contracts!$AM:$AM,"<="&D$4,unique_contracts!$AP:$AP,">="&D$4), SUMIFS(unique_contracts!BU:BU,unique_contracts!$AB:$AB,"="&"",unique_contracts!$BS:$BS,"="&$B15&" ("&$G15&")",unique_contracts!$AM:$AM,"<="&D$4,unique_contracts!$AP:$AP,">="&D$4)) -> 0 | M15: =SUM(SUMIFS(unique_contracts!BV:BV,unique_contracts!$AB:$AB,{"Buy","Owned"},unique_contracts!$BS:$BS,"="&$B15&" ("&$G15&")",unique_contracts!$AM:$AM,"<="&E$4,unique_contracts!$AP:$AP,">="&E$4), SUMIFS(unique_contracts!BV:BV,unique_contracts!$AB:$AB,"="&"",unique_contracts!$BS:$BS,"="&$B15&" ("&$G15&")",unique_contracts!$AM:$AM,"<="&E$4,unique_contracts!$AP:$AP,">="&E$4)) -> 0 | N15: =SUM(SUMIFS(unique_contracts!BW:BW,unique_contracts!$AB:$AB,{"Buy","Owned"},unique_contracts!$BS:$BS,"="&$B15&" ("&$G15&")",unique_contracts!$AM:$AM,"<="&F$4,unique_contracts!$AP:$AP,">="&F$4), SUMIFS(unique_contracts!BW:BW,unique_contracts!$AB:$AB,"="&"",unique_contracts!$BS:$BS,"="&$B15&" ("&$G15&")",unique_contracts!$AM:$AM,"<="&F$4,unique_contracts!$AP:$AP,">="&F$4)) -> 0 | O15: =SUMIFS(unique_contracts!BT:BT,unique_contracts!$AB:$AB,"=Sell",unique_contracts!$BS:$BS,"="&$B15&" ("&$G15&")",unique_contracts!$AM:$AM,"<="&C$4,unique_contracts!$AP:$AP,">="&C$4) -> 0 | P15: =SUMIFS(unique_contracts!BU:BU,unique_contracts!$AB:$AB,"=Sell",unique_contracts!$BS:$BS,"="&$B15&" ("&$G15&")",unique_contracts!$AM:$AM,"<="&D$4,unique_contracts!$AP:$AP,">="&D$4) -> 0 | Q15: =SUMIFS(unique_contracts!BV:BV,unique_contracts!$AB:$AB,"=Sell",unique_contracts!$BS:$BS,"="&$B15&" ("&$G15&")",unique_contracts!$AM:$AM,"<="&E$4,unique_contracts!$AP:$AP,">="&E$4) -> 0 | R15: =SUMIFS(unique_contracts!BW:BW,unique_contracts!$AB:$AB,"=Sell",unique_contracts!$BS:$BS,"="&$B15&" ("&$G15&")",unique_contracts!$AM:$AM,"<="&F$4,unique_contracts!$AP:$AP,">="&F$4) -> 0 | S15: 0 | T15: 0 | U15: 0 | V15: 0
B16: Wind New SCE SDG&E | C16: 32.936 | D16: 65.542 | E16: 64.241 | F16: 62.651 | G16: GWh | H16: RPS Eligible | K16: =SUM(SUMIFS(unique_contracts!BT:BT,unique_contracts!$AB:$AB,{"Buy","Owned"},unique_contracts!$BS:$BS,"="&$B16&" ("&$G16&")",unique_contracts!$AM:$AM,"<="&C$4,unique_contracts!$AP:$AP,">="&C$4), SUMIFS(unique_contracts!BT:BT,unique_contracts!$AB:$AB,"="&"",unique_contracts!$BS:$BS,"="&$B16&" ("&$G16&")",unique_contracts!$AM:$AM,"<="&C$4,unique_contracts!$AP:$AP,">="&C$4)) -> 32.936 | L16: =SUM(SUMIFS(unique_contracts!BU:BU,unique_contracts!$AB:$AB,{"Buy","Owned"},unique_contracts!$BS:$BS,"="&$B16&" ("&$G16&")",unique_contracts!$AM:$AM,"<="&D$4,unique_contracts!$AP:$AP,">="&D$4), SUMIFS(unique_contracts!BU:BU,unique_contracts!$AB:$AB,"="&"",unique_contracts!$BS:$BS,"="&$B16&" ("&$G16&")",unique_contracts!$AM:$AM,"<="&D$4,unique_contracts!$AP:$AP,">="&D$4)) -> 65.542 | M16: =SUM(SUMIFS(unique_contracts!BV:BV,unique_contracts!$AB:$AB,{"Buy","Owned"},unique_contracts!$BS:$BS,"="&$B16&" ("&$G16&")",unique_contracts!$AM:$AM,"<="&E$4,unique_contracts!$AP:$AP,">="&E$4), SUMIFS(unique_contracts!BV:BV,unique_contracts!$AB:$AB,"="&"",unique_contracts!$BS:$BS,"="&$B16&" ("&$G16&")",unique_contracts!$AM:$AM,"<="&E$4,unique_contracts!$AP:$AP,">="&E$4)) -> 64.241 | N16: =SUM(SUMIFS(unique_contracts!BW:BW,unique_contracts!$AB:$AB,{"Buy","Owned"},unique_contracts!$BS:$BS,"="&$B16&" ("&$G16&")",unique_contracts!$AM:$AM,"<="&F$4,unique_contracts!$AP:$AP,">="&F$4), SUMIFS(unique_contracts!BW:BW,unique_contracts!$AB:$AB,"="&"",unique_contracts!$BS:$BS,"="&$B16&" ("&$G16&")",unique_contracts!$AM:$AM,"<="&F$4,unique_contracts!$AP:$AP,">="&F$4)) -> 62.651 | O16: =SUMIFS(unique_contracts!BT:BT,unique_contracts!$AB:$AB,"=Sell",unique_contracts!$BS:$BS,"="&$B16&" ("&$G16&")",unique_contracts!$AM:$AM,"<="&C$4,unique_contracts!$AP:$AP,">="&C$4) -> 0 | P16: =SUMIFS(unique_contracts!BU:BU,unique_contracts!$AB:$AB,"=Sell",unique_contracts!$BS:$BS,"="&$B16&" ("&$G16&")",unique_contracts!$AM:$AM,"<="&D$4,unique_contracts!$AP:$AP,">="&D$4) -> 0 | Q16: =SUMIFS(unique_contracts!BV:BV,unique_contracts!$AB:$AB,"=Sell",unique_contracts!$BS:$BS,"="&$B16&" ("&$G16&")",unique_contracts!$AM:$AM,"<="&E$4,unique_contracts!$AP:$AP,">="&E$4) -> 0 | R16: =SUMIFS(unique_contracts!BW:BW,unique_contracts!$AB:$AB,"=Sell",unique_contracts!$BS:$BS,"="&$B16&" ("&$G16&")",unique_contracts!$AM:$AM,"<="&F$4,unique_contracts!$AP:$AP,">="&F$4) -> 0 | S16: 32.936 | T16: 65.542 | U16: 64.241 | V16: 62.651
B17: Wind Pacific Northwest | C17: 0 | D17: 0 | E17: 0 | F17: 0 | G17: GWh | H17: RPS Eligible | K17: =SUM(SUMIFS(unique_contracts!BT:BT,unique_contracts!$AB:$AB,{"Buy","Owned"},unique_contracts!$BS:$BS,"="&$B17&" ("&$G17&")",unique_contracts!$AM:$AM,"<="&C$4,unique_contracts!$AP:$AP,">="&C$4), SUMIFS(unique_contracts!BT:BT,unique_contracts!$AB:$AB,"="&"",unique_contracts!$BS:$BS,"="&$B17&" ("&$G17&")",unique_contracts!$AM:$AM,"<="&C$4,unique_contracts!$AP:$AP,">="&C$4)) -> 0 | L17: =SUM(SUMIFS(unique_contracts!BU:BU,unique_contracts!$AB:$AB,{"Buy","Owned"},unique_contracts!$BS:$BS,"="&$B17&" ("&$G17&")",unique_contracts!$AM:$AM,"<="&D$4,unique_contracts!$AP:$AP,">="&D$4), SUMIFS(unique_contracts!BU:BU,unique_contracts!$AB:$AB,"="&"",unique_contracts!$BS:$BS,"="&$B17&" ("&$G17&")",unique_contracts!$AM:$AM,"<="&D$4,unique_contracts!$AP:$AP,">="&D$4)) -> 0 | M17: =SUM(SUMIFS(unique_contracts!BV:BV,unique_contracts!$AB:$AB,{"Buy","Owned"},unique_contracts!$BS:$BS,"="&$B17&" ("&$G17&")",unique_contracts!$AM:$AM,"<="&E$4,unique_contracts!$AP:$AP,">="&E$4), SUMIFS(unique_contracts!BV:BV,unique_contracts!$AB:$AB,"="&"",unique_contracts!$BS:$BS,"="&$B17&" ("&$G17&")",unique_contracts!$AM:$AM,"<="&E$4,unique_contracts!$AP:$AP,">="&E$4)) -> 0 | N17: =SUM(SUMIFS(unique_contracts!BW:BW,unique_contracts!$AB:$AB,{"Buy","Owned"},unique_contracts!$BS:$BS,"="&$B17&" ("&$G17&")",unique_contracts!$AM:$AM,"<="&F$4,unique_contracts!$AP:$AP,">="&F$4), SUMIFS(unique_contracts!BW:BW,unique_contracts!$AB:$AB,"="&"",unique_contracts!$BS:$BS,"="&$B17&" ("&$G17&")",unique_contracts!$AM:$AM,"<="&F$4,unique_contracts!$AP:$AP,">="&F$4)) -> 0 | O17: =SUMIFS(unique_contracts!BT:BT,unique_contracts!$AB:$AB,"=Sell",unique_contracts!$BS:$BS,"="&$B17&" ("&$G17&")",unique_contracts!$AM:$AM,"<="&C$4,unique_contracts!$AP:$AP,">="&C$4) -> 0 | P17: =SUMIFS(unique_contracts!BU:BU,unique_contracts!$AB:$AB,"=Sell",unique_contracts!$BS:$BS,"="&$B17&" ("&$G17&")",unique_contracts!$AM:$AM,"<="&D$4,unique_contracts!$AP:$AP,">="&D$4) -> 0 | Q17: =SUMIFS(unique_contracts!BV:BV,unique_contracts!$AB:$AB,"=Sell",unique_contracts!$BS:$BS,"="&$B17&" ("&$G17&")",unique_contracts!$AM:$AM,"<="&E$4,unique_contracts!$AP:$AP,">="&E$4) -> 0 | R17: =SUMIFS(unique_contracts!BW:BW,unique_contracts!$AB:$AB,"=Sell",unique_contracts!$BS:$BS,"="&$B17&" ("&$G17&")",unique_contracts!$AM:$AM,"<="&F$4,unique_contracts!$AP:$AP,">="&F$4) -> 0 | S17: 0 | T17: 0 | U17: 0 | V17: 0
B18: Wind Wyoming | C18: 0 | D18: 0 | E18: 0 | F18: 0 | G18: GWh | H18: RPS Eligible | K18: =SUM(SUMIFS(unique_contracts!BT:BT,unique_contracts!$AB:$AB,{"Buy","Owned"},unique_contracts!$BS:$BS,"="&$B18&" ("&$G18&")",unique_contracts!$AM:$AM,"<="&C$4,unique_contracts!$AP:$AP,">="&C$4), SUMIFS(unique_contracts!BT:BT,unique_contracts!$AB:$AB,"="&"",unique_contracts!$BS:$BS,"="&$B18&" ("&$G18&")",unique_contracts!$AM:$AM,"<="&C$4,unique_contracts!$AP:$AP,">="&C$4)) -> 0 | L18: =SUM(SUMIFS(unique_contracts!BU:BU,unique_contracts!$AB:$AB,{"Buy","Owned"},unique_contracts!$BS:$BS,"="&$B18&" ("&$G18&")",unique_contracts!$AM:$AM,"<="&D$4,unique_contracts!$AP:$AP,">="&D$4), SUMIFS(unique_contracts!BU:BU,unique_contracts!$AB:$AB,"="&"",unique_contracts!$BS:$BS,"="&$B18&" ("&$G18&")",unique_contracts!$AM:$AM,"<="&D$4,unique_contracts!$AP:$AP,">="&D$4)) -> 0 | M18: =SUM(SUMIFS(unique_contracts!BV:BV,unique_contracts!$AB:$AB,{"Buy","Owned"},unique_contracts!$BS:$BS,"="&$B18&" ("&$G18&")",unique_contracts!$AM:$AM,"<="&E$4,unique_contracts!$AP:$AP,">="&E$4), SUMIFS(unique_contracts!BV:BV,unique_contracts!$AB:$AB,"="&"",unique_contracts!$BS:$BS,"="&$B18&" ("&$G18&")",unique_contracts!$AM:$AM,"<="&E$4,unique_contracts!$AP:$AP,">="&E$4)) -> 0 | N18: =SUM(SUMIFS(unique_contracts!BW:BW,unique_contracts!$AB:$AB,{"Buy","Owned"},unique_contracts!$BS:$BS,"="&$B18&" ("&$G18&")",unique_contracts!$AM:$AM,"<="&F$4,unique_contracts!$AP:$AP,">="&F$4), SUMIFS(unique_contracts!BW:BW,unique_contracts!$AB:$AB,"="&"",unique_contracts!$BS:$BS,"="&$B18&" ("&$G18&")",unique_contracts!$AM:$AM,"<="&F$4,unique_contracts!$AP:$AP,">="&F$4)) -> 0 | O18: =SUMIFS(unique_contracts!BT:BT,unique_contracts!$AB:$AB,"=Sell",unique_contracts!$BS:$BS,"="&$B18&" ("&$G18&")",unique_contracts!$AM:$AM,"<="&C$4,unique_contracts!$AP:$AP,">="&C$4) -> 0 | P18: =SUMIFS(unique_contracts!BU:BU,unique_contracts!$AB:$AB,"=Sell",unique_contracts!$BS:$BS,"="&$B18&" ("&$G18&")",unique_contracts!$AM:$AM,"<="&D$4,unique_contracts!$AP:$AP,">="&D$4) -> 0 | Q18: =SUMIFS(unique_contracts!BV:BV,unique_contracts!$AB:$AB,"=Sell",unique_contracts!$BS:$BS,"="&$B18&" ("&$G18&")",unique_contracts!$AM:$AM,"<="&E$4,unique_contracts!$AP:$AP,">="&E$4) -> 0 | R18: =SUMIFS(unique_contracts!BW:BW,unique_contracts!$AB:$AB,"=Sell",unique_contracts!$BS:$BS,"="&$B18&" ("&$G18&")",unique_contracts!$AM:$AM,"<="&F$4,unique_contracts!$AP:$AP,">="&F$4) -> 0 | S18: 0 | T18: 0 | U18: 0 | V18: 0
B19: Wind New Mexico | C19: 0 | D19: 151.096 | E19: 299.028 | F19: 291.626 | G19: GWh | H19: RPS Eligible | K19: =SUM(SUMIFS(unique_contracts!BT:BT,unique_contracts!$AB:$AB,{"Buy","Owned"},unique_contracts!$BS:$BS,"="&$B19&" ("&$G19&")",unique_contracts!$AM:$AM,"<="&C$4,unique_contracts!$AP:$AP,">="&C$4), SUMIFS(unique_contracts!BT:BT,unique_contracts!$AB:$AB,"="&"",unique_contracts!$BS:$BS,"="&$B19&" ("&$G19&")",unique_contracts!$AM:$AM,"<="&C$4,unique_contracts!$AP:$AP,">="&C$4)) -> 0 | L19: =SUM(SUMIFS(unique_contracts!BU:BU,unique_contracts!$AB:$AB,{"Buy","Owned"},unique_contracts!$BS:$BS,"="&$B19&" ("&$G19&")",unique_contracts!$AM:$AM,"<="&D$4,unique_contracts!$AP:$AP,">="&D$4), SUMIFS(unique_contracts!BU:BU,unique_contracts!$AB:$AB,"="&"",unique_contracts!$BS:$BS,"="&$B19&" ("&$G19&")",unique_contracts!$AM:$AM,"<="&D$4,unique_contracts!$AP:$AP,">="&D$4)) -> 151.096 | M19: =SUM(SUMIFS(unique_contracts!BV:BV,unique_contracts!$AB:$AB,{"Buy","Owned"},unique_contracts!$BS:$BS,"="&$B19&" ("&$G19&")",unique_contracts!$AM:$AM,"<="&E$4,unique_contracts!$AP:$AP,">="&E$4), SUMIFS(unique_contracts!BV:BV,unique_contracts!$AB:$AB,"="&"",unique_contracts!$BS:$BS,"="&$B19&" ("&$G19&")",unique_contracts!$AM:$AM,"<="&E$4,unique_contracts!$AP:$AP,">="&E$4)) -> 299.028 | N19: =SUM(SUMIFS(unique_contracts!BW:BW,unique_contracts!$AB:$AB,{"Buy","Owned"},unique_contracts!$BS:$BS,"="&$B19&" ("&$G19&")",unique_contracts!$AM:$AM,"<="&F$4,unique_contracts!$AP:$AP,">="&F$4), SUMIFS(unique_contracts!BW:BW,unique_contracts!$AB:$AB,"="&"",unique_contracts!$BS:$BS,"="&$B19&" ("&$G19&")",unique_contracts!$AM:$AM,"<="&F$4,unique_contracts!$AP:$AP,">="&F$4)) -> 291.626 | O19: =SUMIFS(unique_contracts!BT:BT,unique_contracts!$AB:$AB,"=Sell",unique_contracts!$BS:$BS,"="&$B19&" ("&$G19&")",unique_contracts!$AM:$AM,"<="&C$4,unique_contracts!$AP:$AP,">="&C$4) -> 0 | P19: =SUMIFS(unique_contracts!BU:BU,unique_contracts!$AB:$AB,"=Sell",unique_contracts!$BS:$BS,"="&$B19&" ("&$G19&")",unique_contracts!$AM:$AM,"<="&D$4,unique_contracts!$AP:$AP,">="&D$4) -> 0 | Q19: =SUMIFS(unique_contracts!BV:BV,unique_contracts!$AB:$AB,"=Sell",unique_contracts!$BS:$BS,"="&$B19&" ("&$G19&")",unique_contracts!$AM:$AM,"<="&E$4,unique_contracts!$AP:$AP,">="&E$4) -> 0 | R19: =SUMIFS(unique_contracts!BW:BW,unique_contracts!$AB:$AB,"=Sell",unique_contracts!$BS:$BS,"="&$B19&" ("&$G19&")",unique_contracts!$AM:$AM,"<="&F$4,unique_contracts!$AP:$AP,">="&F$4) -> 0 | S19: 0 | T19: 151.096 | U19: 299.028 | V19: 291.626
B20: Wind Offshore Morro Bay | C20: 0 | D20: 0 | E20: 0 | F20: 0 | G20: GWh | H20: RPS Eligible | K20: =SUM(SUMIFS(unique_contracts!BT:BT,unique_contracts!$AB:$AB,{"Buy","Owned"},unique_contracts!$BS:$BS,"="&$B20&" ("&$G20&")",unique_contracts!$AM:$AM,"<="&C$4,unique_contracts!$AP:$AP,">="&C$4), SUMIFS(unique_contracts!BT:BT,unique_contracts!$AB:$AB,"="&"",unique_contracts!$BS:$BS,"="&$B20&" ("&$G20&")",unique_contracts!$AM:$AM,"<="&C$4,unique_contracts!$AP:$AP,">="&C$4)) -> 0 | L20: =SUM(SUMIFS(unique_contracts!BU:BU,unique_contracts!$AB:$AB,{"Buy","Owned"},unique_contracts!$BS:$BS,"="&$B20&" ("&$G20&")",unique_contracts!$AM:$AM,"<="&D$4,unique_contracts!$AP:$AP,">="&D$4), SUMIFS(unique_contracts!BU:BU,unique_contracts!$AB:$AB,"="&"",unique_contracts!$BS:$BS,"="&$B20&" ("&$G20&")",unique_contracts!$AM:$AM,"<="&D$4,unique_contracts!$AP:$AP,">="&D$4)) -> 0 | M20: =SUM(SUMIFS(unique_contracts!BV:BV,unique_contracts!$AB:$AB,{"Buy","Owned"},unique_contracts!$BS:$BS,"="&$B20&" ("&$G20&")",unique_contracts!$AM:$AM,"<="&E$4,unique_contracts!$AP:$AP,">="&E$4), SUMIFS(unique_contracts!BV:BV,unique_contracts!$AB:$AB,"="&"",unique_contracts!$BS:$BS,"="&$B20&" ("&$G20&")",unique_contracts!$AM:$AM,"<="&E$4,unique_contracts!$AP:$AP,">="&E$4)) -> 0 | N20: =SUM(SUMIFS(unique_contracts!BW:BW,unique_contracts!$AB:$AB,{"Buy","Owned"},unique_contracts!$BS:$BS,"="&$B20&" ("&$G20&")",unique_contracts!$AM:$AM,"<="&F$4,unique_contracts!$AP:$AP,">="&F$4), SUMIFS(unique_contracts!BW:BW,unique_contracts!$AB:$AB,"="&"",unique_contracts!$BS:$BS,"="&$B20&" ("&$G20&")",unique_contracts!$AM:$AM,"<="&F$4,unique_contracts!$AP:$AP,">="&F$4)) -> 0 | O20: =SUMIFS(unique_contracts!BT:BT,unique_contracts!$AB:$AB,"=Sell",unique_contracts!$BS:$BS,"="&$B20&" ("&$G20&")",unique_contracts!$AM:$AM,"<="&C$4,unique_contracts!$AP:$AP,">="&C$4) -> 0 | P20: =SUMIFS(unique_contracts!BU:BU,unique_contracts!$AB:$AB,"=Sell",unique_contracts!$BS:$BS,"="&$B20&" ("&$G20&")",unique_contracts!$AM:$AM,"<="&D$4,unique_contracts!$AP:$AP,">="&D$4) -> 0 | Q20: =SUMIFS(unique_contracts!BV:BV,unique_contracts!$AB:$AB,"=Sell",unique_contracts!$BS:$BS,"="&$B20&" ("&$G20&")",unique_contracts!$AM:$AM,"<="&E$4,unique_contracts!$AP:$AP,">="&E$4) -> 0 | R20: =SUMIFS(unique_contracts!BW:BW,unique_contracts!$AB:$AB,"=Sell",unique_contracts!$BS:$BS,"="&$B20&" ("&$G20&")",unique_contracts!$AM:$AM,"<="&F$4,unique_contracts!$AP:$AP,">="&F$4) -> 0 | S20: 0 | T20: 0 | U20: 0 | V20: 0
B21: Wind Offshore Humboldt | C21: 0 | D21: 0 | E21: 0 | F21: 0 | G21: GWh | H21: RPS Eligible | K21: =SUM(SUMIFS(unique_contracts!BT:BT,unique_contracts!$AB:$AB,{"Buy","Owned"},unique_contracts!$BS:$BS,"="&$B21&" ("&$G21&")",unique_contracts!$AM:$AM,"<="&C$4,unique_contracts!$AP:$AP,">="&C$4), SUMIFS(unique_contracts!BT:BT,unique_contracts!$AB:$AB,"="&"",unique_contracts!$BS:$BS,"="&$B21&" ("&$G21&")",unique_contracts!$AM:$AM,"<="&C$4,unique_contracts!$AP:$AP,">="&C$4)) -> 0 | L21: =SUM(SUMIFS(unique_contracts!BU:BU,unique_contracts!$AB:$AB,{"Buy","Owned"},unique_contracts!$BS:$BS,"="&$B21&" ("&$G21&")",unique_contracts!$AM:$AM,"<="&D$4,unique_contracts!$AP:$AP,">="&D$4), SUMIFS(unique_contracts!BU:BU,unique_contracts!$AB:$AB,"="&"",unique_contracts!$BS:$BS,"="&$B21&" ("&$G21&")",unique_contracts!$AM:$AM,"<="&D$4,unique_contracts!$AP:$AP,">="&D$4)) -> 0 | M21: =SUM(SUMIFS(unique_contracts!BV:BV,unique_contracts!$AB:$AB,{"Buy","Owned"},unique_contracts!$BS:$BS,"="&$B21&" ("&$G21&")",unique_contracts!$AM:$AM,"<="&E$4,unique_contracts!$AP:$AP,">="&E$4), SUMIFS(unique_contracts!BV:BV,unique_contracts!$AB:$AB,"="&"",unique_contracts!$BS:$BS,"="&$B21&" ("&$G21&")",unique_contracts!$AM:$AM,"<="&E$4,unique_contracts!$AP:$AP,">="&E$4)) -> 0 | N21: =SUM(SUMIFS(unique_contracts!BW:BW,unique_contracts!$AB:$AB,{"Buy","Owned"},unique_contracts!$BS:$BS,"="&$B21&" ("&$G21&")",unique_contracts!$AM:$AM,"<="&F$4,unique_contracts!$AP:$AP,">="&F$4), SUMIFS(unique_contracts!BW:BW,unique_contracts!$AB:$AB,"="&"",unique_contracts!$BS:$BS,"="&$B21&" ("&$G21&")",unique_contracts!$AM:$AM,"<="&F$4,unique_contracts!$AP:$AP,">="&F$4)) -> 0 | O21: =SUMIFS(unique_contracts!BT:BT,unique_contracts!$AB:$AB,"=Sell",unique_contracts!$BS:$BS,"="&$B21&" ("&$G21&")",unique_contracts!$AM:$AM,"<="&C$4,unique_contracts!$AP:$AP,">="&C$4) -> 0 | P21: =SUMIFS(unique_contracts!BU:BU,unique_contracts!$AB:$AB,"=Sell",unique_contracts!$BS:$BS,"="&$B21&" ("&$G21&")",unique_contracts!$AM:$AM,"<="&D$4,unique_contracts!$AP:$AP,">="&D$4) -> 0 | Q21: =SUMIFS(unique_contracts!BV:BV,unique_contracts!$AB:$AB,"=Sell",unique_contracts!$BS:$BS,"="&$B21&" ("&$G21&")",unique_contracts!$AM:$AM,"<="&E$4,unique_contracts!$AP:$AP,">="&E$4) -> 0 | R21: =SUMIFS(unique_contracts!BW:BW,unique_contracts!$AB:$AB,"=Sell",unique_contracts!$BS:$BS,"="&$B21&" ("&$G21&")",unique_contracts!$AM:$AM,"<="&F$4,unique_contracts!$AP:$AP,">="&F$4) -> 0 | S21: 0 | T21: 0 | U21: 0 | V21: 0
B22: Solar Resources
B23: Solar Baseline California | C23: 152.98268 | D23: 152.06612 | E23: 150.18124 | F23: 148.00924 | G23: GWh | H23: RPS Eligible | K23: =SUM(SUMIFS(unique_contracts!BT:BT,unique_contracts!$AB:$AB,{"Buy","Owned"},unique_contracts!$BS:$BS,"="&$B23&" ("&$G23&")",unique_contracts!$AM:$AM,"<="&C$4,unique_contracts!$AP:$AP,">="&C$4), SUMIFS(unique_contracts!BT:BT,unique_contracts!$AB:$AB,"="&"",unique_contracts!$BS:$BS,"="&$B23&" ("&$G23&")",unique_contracts!$AM:$AM,"<="&C$4,unique_contracts!$AP:$AP,">="&C$4)) -> 152.98268 | L23: =SUM(SUMIFS(unique_contracts!BU:BU,unique_contracts!$AB:$AB,{"Buy","Owned"},unique_contracts!$BS:$BS,"="&$B23&" ("&$G23&")",unique_contracts!$AM:$AM,"<="&D$4,unique_contracts!$AP:$AP,">="&D$4), SUMIFS(unique_contracts!BU:BU,unique_contracts!$AB:$AB,"="&"",unique_contracts!$BS:$BS,"="&$B23&" ("&$G23&")",unique_contracts!$AM:$AM,"<="&D$4,unique_contracts!$AP:$AP,">="&D$4)) -> 152.06612 | M23: =SUM(SUMIFS(unique_contracts!BV:BV,unique_contracts!$AB:$AB,{"Buy","Owned"},unique_contracts!$BS:$BS,"="&$B23&" ("&$G23&")",unique_contracts!$AM:$AM,"<="&E$4,unique_contracts!$AP:$AP,">="&E$4), SUMIFS(unique_contracts!BV:BV,unique_contracts!$AB:$AB,"="&"",unique_contracts!$BS:$BS,"="&$B23&" ("&$G23&")",unique_contracts!$AM:$AM,"<="&E$4,unique_contracts!$AP:$AP,">="&E$4)) -> 150.18124 | N23: =SUM(SUMIFS(unique_contracts!BW:BW,unique_contracts!$AB:$AB,{"Buy","Owned"},unique_contracts!$BS:$BS,"="&$B23&" ("&$G23&")",unique_contracts!$AM:$AM,"<="&F$4,unique_contracts!$AP:$AP,">="&F$4), SUMIFS(unique_contracts!BW:BW,unique_contracts!$AB:$AB,"="&"",unique_contracts!$BS:$BS,"="&$B23&" ("&$G23&")",unique_contracts!$AM:$AM,"<="&F$4,unique_contracts!$AP:$AP,">="&F$4)) -> 148.00924 | O23: =SUMIFS(unique_contracts!BT:BT,unique_contracts!$AB:$AB,"=Sell",unique_contracts!$BS:$BS,"="&$B23&" ("&$G23&")",unique_contracts!$AM:$AM,"<="&C$4,unique_contracts!$AP:$AP,">="&C$4) -> 0 | P23: =SUMIFS(unique_contracts!BU:BU,unique_contracts!$AB:$AB,"=Sell",unique_contracts!$BS:$BS,"="&$B23&" ("&$G23&")",unique_contracts!$AM:$AM,"<="&D$4,unique_contracts!$AP:$AP,">="&D$4) -> 0 | Q23: =SUMIFS(unique_contracts!BV:BV,unique_contracts!$AB:$AB,"=Sell",unique_contracts!$BS:$BS,"="&$B23&" ("&$G23&")",unique_contracts!$AM:$AM,"<="&E$4,unique_contracts!$AP:$AP,">="&E$4) -> 0 | R23: =SUMIFS(unique_contracts!BW:BW,unique_contracts!$AB:$AB,"=Sell",unique_contracts!$BS:$BS,"="&$B23&" ("&$G23&")",unique_contracts!$AM:$AM,"<="&F$4,unique_contracts!$AP:$AP,">="&F$4) -> 0 | S23: 152.98268 | T23: 152.06612 | U23: 150.18124 | V23: 148.00924
B24: Solar New PG&E | C24: 0 | D24: 0 | E24: 0 | F24: 0 | G24: GWh | H24: RPS Eligible | K24: =SUM(SUMIFS(unique_contracts!BT:BT,unique_contracts!$AB:$AB,{"Buy","Owned"},unique_contracts!$BS:$BS,"="&$B24&" ("&$G24&")",unique_contracts!$AM:$AM,"<="&C$4,unique_contracts!$AP:$AP,">="&C$4), SUMIFS(unique_contracts!BT:BT,unique_contracts!$AB:$AB,"="&"",unique_contracts!$BS:$BS,"="&$B24&" ("&$G24&")",unique_contracts!$AM:$AM,"<="&C$4,unique_contracts!$AP:$AP,">="&C$4)) -> 0 | L24: =SUM(SUMIFS(unique_contracts!BU:BU,unique_contracts!$AB:$AB,{"Buy","Owned"},unique_contracts!$BS:$BS,"="&$B24&" ("&$G24&")",unique_contracts!$AM:$AM,"<="&D$4,unique_contracts!$AP:$AP,">="&D$4), SUMIFS(unique_contracts!BU:BU,unique_contracts!$AB:$AB,"="&"",unique_contracts!$BS:$BS,"="&$B24&" ("&$G24&")",unique_contracts!$AM:$AM,"<="&D$4,unique_contracts!$AP:$AP,">="&D$4)) -> 0 | M24: =SUM(SUMIFS(unique_contracts!BV:BV,unique_contracts!$AB:$AB,{"Buy","Owned"},unique_contracts!$BS:$BS,"="&$B24&" ("&$G24&")",unique_contracts!$AM:$AM,"<="&E$4,unique_contracts!$AP:$AP,">="&E$4), SUMIFS(unique_contracts!BV:BV,unique_contracts!$AB:$AB,"="&"",unique_contracts!$BS:$BS,"="&$B24&" ("&$G24&")",unique_contracts!$AM:$AM,"<="&E$4,unique_contracts!$AP:$AP,">="&E$4)) -> 0 | N24: =SUM(SUMIFS(unique_contracts!BW:BW,unique_contracts!$AB:$AB,{"Buy","Owned"},unique_contracts!$BS:$BS,"="&$B24&" ("&$G24&")",unique_contracts!$AM:$AM,"<="&F$4,unique_contracts!$AP:$AP,">="&F$4), SUMIFS(unique_contracts!BW:BW,unique_contracts!$AB:$AB,"="&"",unique_contracts!$BS:$BS,"="&$B24&" ("&$G24&")",unique_contracts!$AM:$AM,"<="&F$4,unique_contracts!$AP:$AP,">="&F$4)) -> 0 | O24: =SUMIFS(unique_contracts!BT:BT,unique_contracts!$AB:$AB,"=Sell",unique_contracts!$BS:$BS,"="&$B24&" ("&$G24&")",unique_contracts!$AM:$AM,"<="&C$4,unique_contracts!$AP:$AP,">="&C$4) -> 0 | P24: =SUMIFS(unique_contracts!BU:BU,unique_contracts!$AB:$AB,"=Sell",unique_contracts!$BS:$BS,"="&$B24&" ("&$G24&")",unique_contracts!$AM:$AM,"<="&D$4,unique_contracts!$AP:$AP,">="&D$4) -> 0 | Q24: =SUMIFS(unique_contracts!BV:BV,unique_contracts!$AB:$AB,"=Sell",unique_contracts!$BS:$BS,"="&$B24&" ("&$G24&")",unique_contracts!$AM:$AM,"<="&E$4,unique_contracts!$AP:$AP,">="&E$4) -> 0 | R24: =SUMIFS(unique_contracts!BW:BW,unique_contracts!$AB:$AB,"=Sell",unique_contracts!$BS:$BS,"="&$B24&" ("&$G24&")",unique_contracts!$AM:$AM,"<="&F$4,unique_contracts!$AP:$AP,">="&F$4) -> 0 | S24: 0 | T24: 0 | U24: 0 | V24: 0
B25: Solar New SCE SDG&E | C25: 0 | D25: 0 | E25: 0 | F25: 0 | G25: GWh | H25: RPS Eligible | K25: =SUM(SUMIFS(unique_contracts!BT:BT,unique_contracts!$AB:$AB,{"Buy","Owned"},unique_contracts!$BS:$BS,"="&$B25&" ("&$G25&")",unique_contracts!$AM:$AM,"<="&C$4,unique_contracts!$AP:$AP,">="&C$4), SUMIFS(unique_contracts!BT:BT,unique_contracts!$AB:$AB,"="&"",unique_contracts!$BS:$BS,"="&$B25&" ("&$G25&")",unique_contracts!$AM:$AM,"<="&C$4,unique_contracts!$AP:$AP,">="&C$4)) -> 0 | L25: =SUM(SUMIFS(unique_contracts!BU:BU,unique_contracts!$AB:$AB,{"Buy","Owned"},unique_contracts!$BS:$BS,"="&$B25&" ("&$G25&")",unique_contracts!$AM:$AM,"<="&D$4,unique_contracts!$AP:$AP,">="&D$4), SUMIFS(unique_contracts!BU:BU,unique_contracts!$AB:$AB,"="&"",unique_contracts!$BS:$BS,"="&$B25&" ("&$G25&")",unique_contracts!$AM:$AM,"<="&D$4,unique_contracts!$AP:$AP,">="&D$4)) -> 0 | M25: =SUM(SUMIFS(unique_contracts!BV:BV,unique_contracts!$AB:$AB,{"Buy","Owned"},unique_contracts!$BS:$BS,"="&$B25&" ("&$G25&")",unique_contracts!$AM:$AM,"<="&E$4,unique_contracts!$AP:$AP,">="&E$4), SUMIFS(unique_contracts!BV:BV,unique_contracts!$AB:$AB,"="&"",unique_contracts!$BS:$BS,"="&$B25&" ("&$G25&")",unique_contracts!$AM:$AM,"<="&E$4,unique_contracts!$AP:$AP,">="&E$4)) -> 0 | N25: =SUM(SUMIFS(unique_contracts!BW:BW,unique_contracts!$AB:$AB,{"Buy","Owned"},unique_contracts!$BS:$BS,"="&$B25&" ("&$G25&")",unique_contracts!$AM:$AM,"<="&F$4,unique_contracts!$AP:$AP,">="&F$4), SUMIFS(unique_contracts!BW:BW,unique_contracts!$AB:$AB,"="&"",unique_contracts!$BS:$BS,"="&$B25&" ("&$G25&")",unique_contracts!$AM:$AM,"<="&F$4,unique_contracts!$AP:$AP,">="&F$4)) -> 0 | O25: =SUMIFS(unique_contracts!BT:BT,unique_contracts!$AB:$AB,"=Sell",unique_contracts!$BS:$BS,"="&$B25&" ("&$G25&")",unique_contracts!$AM:$AM,"<="&C$4,unique_contracts!$AP:$AP,">="&C$4) -> 0 | P25: =SUMIFS(unique_contracts!BU:BU,unique_contracts!$AB:$AB,"=Sell",unique_contracts!$BS:$BS,"="&$B25&" ("&$G25&")",unique_contracts!$AM:$AM,"<="&D$4,unique_contracts!$AP:$AP,">="&D$4) -> 0 | Q25: =SUMIFS(unique_contracts!BV:BV,unique_contracts!$AB:$AB,"=Sell",unique_contracts!$BS:$BS,"="&$B25&" ("&$G25&")",unique_contracts!$AM:$AM,"<="&E$4,unique_contracts!$AP:$AP,">="&E$4) -> 0 | R25: =SUMIFS(unique_contracts!BW:BW,unique_contracts!$AB:$AB,"=Sell",unique_contracts!$BS:$BS,"="&$B25&" ("&$G25&")",unique_contracts!$AM:$AM,"<="&F$4,unique_contracts!$AP:$AP,">="&F$4) -> 0 | S25: 0 | T25: 0 | U25: 0 | V25: 0
B26: Solar Distributed | C26: 0 | D26: 0 | E26: 0 | F26: 0 | G26: GWh | H26: RPS Eligible | K26: =SUM(SUMIFS(unique_contracts!BT:BT,unique_contracts!$AB:$AB,{"Buy","Owned"},unique_contracts!$BS:$BS,"="&$B26&" ("&$G26&")",unique_contracts!$AM:$AM,"<="&C$4,unique_contracts!$AP:$AP,">="&C$4), SUMIFS(unique_contracts!BT:BT,unique_contracts!$AB:$AB,"="&"",unique_contracts!$BS:$BS,"="&$B26&" ("&$G26&")",unique_contracts!$AM:$AM,"<="&C$4,unique_contracts!$AP:$AP,">="&C$4)) -> 0 | L26: =SUM(SUMIFS(unique_contracts!BU:BU,unique_contracts!$AB:$AB,{"Buy","Owned"},unique_contracts!$BS:$BS,"="&$B26&" ("&$G26&")",unique_contracts!$AM:$AM,"<="&D$4,unique_contracts!$AP:$AP,">="&D$4), SUMIFS(unique_contracts!BU:BU,unique_contracts!$AB:$AB,"="&"",unique_contracts!$BS:$BS,"="&$B26&" ("&$G26&")",unique_contracts!$AM:$AM,"<="&D$4,unique_contracts!$AP:$AP,">="&D$4)) -> 0 | M26: =SUM(SUMIFS(unique_contracts!BV:BV,unique_contracts!$AB:$AB,{"Buy","Owned"},unique_contracts!$BS:$BS,"="&$B26&" ("&$G26&")",unique_contracts!$AM:$AM,"<="&E$4,unique_contracts!$AP:$AP,">="&E$4), SUMIFS(unique_contracts!BV:BV,unique_contracts!$AB:$AB,"="&"",unique_contracts!$BS:$BS,"="&$B26&" ("&$G26&")",unique_contracts!$AM:$AM,"<="&E$4,unique_contracts!$AP:$AP,">="&E$4)) -> 0 | N26: =SUM(SUMIFS(unique_contracts!BW:BW,unique_contracts!$AB:$AB,{"Buy","Owned"},unique_contracts!$BS:$BS,"="&$B26&" ("&$G26&")",unique_contracts!$AM:$AM,"<="&F$4,unique_contracts!$AP:$AP,">="&F$4), SUMIFS(unique_contracts!BW:BW,unique_contracts!$AB:$AB,"="&"",unique_contracts!$BS:$BS,"="&$B26&" ("&$G26&")",unique_contracts!$AM:$AM,"<="&F$4,unique_contracts!$AP:$AP,">="&F$4)) -> 0 | O26: =SUMIFS(unique_contracts!BT:BT,unique_contracts!$AB:$AB,"=Sell",unique_contracts!$BS:$BS,"="&$B26&" ("&$G26&")",unique_contracts!$AM:$AM,"<="&C$4,unique_contracts!$AP:$AP,">="&C$4) -> 0 | P26: =SUMIFS(unique_contracts!BU:BU,unique_contracts!$AB:$AB,"=Sell",unique_contracts!$BS:$BS,"="&$B26&" ("&$G26&")",unique_contracts!$AM:$AM,"<="&D$4,unique_contracts!$AP:$AP,">="&D$4) -> 0 | Q26: =SUMIFS(unique_contracts!BV:BV,unique_contracts!$AB:$AB,"=Sell",unique_contracts!$BS:$BS,"="&$B26&" ("&$G26&")",unique_contracts!$AM:$AM,"<="&E$4,unique_contracts!$AP:$AP,">="&E$4) -> 0 | R26: =SUMIFS(unique_contracts!BW:BW,unique_contracts!$AB:$AB,"=Sell",unique_contracts!$BS:$BS,"="&$B26&" ("&$G26&")",unique_contracts!$AM:$AM,"<="&F$4,unique_contracts!$AP:$AP,">="&F$4) -> 0 | S26: 0 | T26: 0 | U26: 0 | V26: 0
B27: Hybrid | K27: =SUM(SUMIFS(unique_contracts!BT:BT,unique_contracts!$AB:$AB,{"Buy","Owned"},unique_contracts!$BS:$BS,"="&$B27&" ("&$G27&")",unique_contracts!$AM:$AM,"<="&C$4,unique_contracts!$AP:$AP,">="&C$4), SUMIFS(unique_contracts!BT:BT,unique_contracts!$AB:$AB,"="&"",unique_contracts!$BS:$BS,"="&$B27&" ("&$G27&")",unique_contracts!$AM:$AM,"<="&C$4,unique_contracts!$AP:$AP,">="&C$4)) -> 0 | L27: =SUM(SUMIFS(unique_contracts!BU:BU,unique_contracts!$AB:$AB,{"Buy","Owned"},unique_contracts!$BS:$BS,"="&$B27&" ("&$G27&")",unique_contracts!$AM:$AM,"<="&D$4,unique_contracts!$AP:$AP,">="&D$4), SUMIFS(unique_contracts!BU:BU,unique_contracts!$AB:$AB,"="&"",unique_contracts!$BS:$BS,"="&$B27&" ("&$G27&")",unique_contracts!$AM:$AM,"<="&D$4,unique_contracts!$AP:$AP,">="&D$4)) -> 0 | M27: =SUM(SUMIFS(unique_contracts!BV:BV,unique_contracts!$AB:$AB,{"Buy","Owned"},unique_contracts!$BS:$BS,"="&$B27&" ("&$G27&")",unique_contracts!$AM:$AM,"<="&E$4,unique_contracts!$AP:$AP,">="&E$4), SUMIFS(unique_contracts!BV:BV,unique_contracts!$AB:$AB,"="&"",unique_contracts!$BS:$BS,"="&$B27&" ("&$G27&")",unique_contracts!$AM:$AM,"<="&E$4,unique_contracts!$AP:$AP,">="&E$4)) -> 0 | N27: =SUM(SUMIFS(unique_contracts!BW:BW,unique_contracts!$AB:$AB,{"Buy","Owned"},unique_contracts!$BS:$BS,"="&$B27&" ("&$G27&")",unique_contracts!$AM:$AM,"<="&F$4,unique_contracts!$AP:$AP,">="&F$4), SUMIFS(unique_contracts!BW:BW,unique_contracts!$AB:$AB,"="&"",unique_contracts!$BS:$BS,"="&$B27&" ("&$G27&")",unique_contracts!$AM:$AM,"<="&F$4,unique_contracts!$AP:$AP,">="&F$4)) -> 0 | O27: =SUMIFS(unique_contracts!BT:BT,unique_contracts!$AB:$AB,"=Sell",unique_contracts!$BS:$BS,"="&$B27&" ("&$G27&")",unique_contracts!$AM:$AM,"<="&C$4,unique_contracts!$AP:$AP,">="&C$4) -> 0 | P27: =SUMIFS(unique_contracts!BU:BU,unique_contracts!$AB:$AB,"=Sell",unique_contracts!$BS:$BS,"="&$B27&" ("&$G27&")",unique_contracts!$AM:$AM,"<="&D$4,unique_contracts!$AP:$AP,">="&D$4) -> 0 | Q27: =SUMIFS(unique_contracts!BV:BV,unique_contracts!$AB:$AB,"=Sell",unique_contracts!$BS:$BS,"="&$B27&" ("&$G27&")",unique_contracts!$AM:$AM,"<="&E$4,unique_contracts!$AP:$AP,">="&E$4) -> 0 | R27: =SUMIFS(unique_contracts!BW:BW,unique_contracts!$AB:$AB,"=Sell",unique_contracts!$BS:$BS,"="&$B27&" ("&$G27&")",unique_contracts!$AM:$AM,"<="&F$4,unique_contracts!$AP:$AP,">="&F$4) -> 0 | S27: 0 | T27: 0 | U27: 0 | V27: 0
B28: Hybrid_or_Paired_Solar_and_Battery | C28: 0 | D28: 0 | E28: 0 | F28: 0 | G28: GWh | H28: RPS Eligible | K28: =SUM(SUMIFS(unique_contracts!BT:BT,unique_contracts!$AB:$AB,{"Buy","Owned"},unique_contracts!$BS:$BS,"="&$B28&" ("&$G28&")",unique_contracts!$AM:$AM,"<="&C$4,unique_contracts!$AP:$AP,">="&C$4), SUMIFS(unique_contracts!BT:BT,unique_contracts!$AB:$AB,"="&"",unique_contracts!$BS:$BS,"="&$B28&" ("&$G28&")",unique_contracts!$AM:$AM,"<="&C$4,unique_contracts!$AP:$AP,">="&C$4)) -> 0 | L28: =SUM(SUMIFS(unique_contracts!BU:BU,unique_contracts!$AB:$AB,{"Buy","Owned"},unique_contracts!$BS:$BS,"="&$B28&" ("&$G28&")",unique_contracts!$AM:$AM,"<="&D$4,unique_contracts!$AP:$AP,">="&D$4), SUMIFS(unique_contracts!BU:BU,unique_contracts!$AB:$AB,"="&"",unique_contracts!$BS:$BS,"="&$B28&" ("&$G28&")",unique_contracts!$AM:$AM,"<="&D$4,unique_contracts!$AP:$AP,">="&D$4)) -> 0 | M28: =SUM(SUMIFS(unique_contracts!BV:BV,unique_contracts!$AB:$AB,{"Buy","Owned"},unique_contracts!$BS:$BS,"="&$B28&" ("&$G28&")",unique_contracts!$AM:$AM,"<="&E$4,unique_contracts!$AP:$AP,">="&E$4), SUMIFS(unique_contracts!BV:BV,unique_contracts!$AB:$AB,"="&"",unique_contracts!$BS:$BS,"="&$B28&" ("&$G28&")",unique_contracts!$AM:$AM,"<="&E$4,unique_contracts!$AP:$AP,">="&E$4)) -> 0 | N28: =SUM(SUMIFS(unique_contracts!BW:BW,unique_contracts!$AB:$AB,{"Buy","Owned"},unique_contracts!$BS:$BS,"="&$B28&" ("&$G28&")",unique_contracts!$AM:$AM,"<="&F$4,unique_contracts!$AP:$AP,">="&F$4), SUMIFS(unique_contracts!BW:BW,unique_contracts!$AB:$AB,"="&"",unique_contracts!$BS:$BS,"="&$B28&" ("&$G28&")",unique_contracts!$AM:$AM,"<="&F$4,unique_contracts!$AP:$AP,">="&F$4)) -> 0 | O28: =SUMIFS(unique_contracts!BT:BT,unique_contracts!$AB:$AB,"=Sell",unique_contracts!$BS:$BS,"="&$B28&" ("&$G28&")",unique_contracts!$AM:$AM,"<="&C$4,unique_contracts!$AP:$AP,">="&C$4) -> 0 | P28: =SUMIFS(unique_contracts!BU:BU,unique_contracts!$AB:$AB,"=Sell",unique_contracts!$BS:$BS,"="&$B28&" ("&$G28&")",unique_contracts!$AM:$AM,"<="&D$4,unique_contracts!$AP:$AP,">="&D$4) -> 0 | Q28: =SUMIFS(unique_contracts!BV:BV,unique_contracts!$AB:$AB,"=Sell",unique_contracts!$BS:$BS,"="&$B28&" ("&$G28&")",unique_contracts!$AM:$AM,"<="&E$4,unique_contracts!$AP:$AP,">="&E$4) -> 0 | R28: =SUMIFS(unique_contracts!BW:BW,unique_contracts!$AB:$AB,"=Sell",unique_contracts!$BS:$BS,"="&$B28&" ("&$G28&")",unique_contracts!$AM:$AM,"<="&F$4,unique_contracts!$AP:$AP,">="&F$4) -> 0 | S28: 0 | T28: 0 | U28: 0 | V28: 0
B29: Storage & DR
B30: Shed DR | C30: 0 | D30: 0 | E30: 0 | F30: 0 | G30: MW | H30: GHG-Free | K30: =SUM(SUMIFS(unique_contracts!BT:BT,unique_contracts!$AB:$AB,{"Buy","Owned"},unique_contracts!$BS:$BS,"="&$B30&" ("&$G30&")",unique_contracts!$AM:$AM,"<="&C$4,unique_contracts!$AP:$AP,">="&C$4), SUMIFS(unique_contracts!BT:BT,unique_contracts!$AB:$AB,"="&"",unique_contracts!$BS:$BS,"="&$B30&" ("&$G30&")",unique_contracts!$AM:$AM,"<="&C$4,unique_contracts!$AP:$AP,">="&C$4)) -> 0 | L30: =SUM(SUMIFS(unique_contracts!BU:BU,unique_contracts!$AB:$AB,{"Buy","Owned"},unique_contracts!$BS:$BS,"="&$B30&" ("&$G30&")",unique_contracts!$AM:$AM,"<="&D$4,unique_contracts!$AP:$AP,">="&D$4), SUMIFS(unique_contracts!BU:BU,unique_contracts!$AB:$AB,"="&"",unique_contracts!$BS:$BS,"="&$B30&" ("&$G30&")",unique_contracts!$AM:$AM,"<="&D$4,unique_contracts!$AP:$AP,">="&D$4)) -> 0 | M30: =SUM(SUMIFS(unique_contracts!BV:BV,unique_contracts!$AB:$AB,{"Buy","Owned"},unique_contracts!$BS:$BS,"="&$B30&" ("&$G30&")",unique_contracts!$AM:$AM,"<="&E$4,unique_contracts!$AP:$AP,">="&E$4), SUMIFS(unique_contracts!BV:BV,unique_contracts!$AB:$AB,"="&"",unique_contracts!$BS:$BS,"="&$B30&" ("&$G30&")",unique_contracts!$AM:$AM,"<="&E$4,unique_contracts!$AP:$AP,">="&E$4)) -> 0 | N30: =SUM(SUMIFS(unique_contracts!BW:BW,unique_contracts!$AB:$AB,{"Buy","Owned"},unique_contracts!$BS:$BS,"="&$B30&" ("&$G30&")",unique_contracts!$AM:$AM,"<="&F$4,unique_contracts!$AP:$AP,">="&F$4), SUMIFS(unique_contracts!BW:BW,unique_contracts!$AB:$AB,"="&"",unique_contracts!$BS:$BS,"="&$B30&" ("&$G30&")",unique_contracts!$AM:$AM,"<="&F$4,unique_contracts!$AP:$AP,">="&F$4)) -> 0 | O30: =SUMIFS(unique_contracts!BT:BT,unique_contracts!$AB:$AB,"=Sell",unique_contracts!$BS:$BS,"="&$B30&" ("&$G30&")",unique_contracts!$AM:$AM,"<="&C$4,unique_contracts!$AP:$AP,">="&C$4) -> 0 | P30: =SUMIFS(unique_contracts!BU:BU,unique_contracts!$AB:$AB,"=Sell",unique_contracts!$BS:$BS,"="&$B30&" ("&$G30&")",unique_contracts!$AM:$AM,"<="&D$4,unique_contracts!$AP:$AP,">="&D$4) -> 0 | Q30: =SUMIFS(unique_contracts!BV:BV,unique_contracts!$AB:$AB,"=Sell",unique_contracts!$BS:$BS,"="&$B30&" ("&$G30&")",unique_contracts!$AM:$AM,"<="&E$4,unique_contracts!$AP:$AP,">="&E$4) -> 0 | R30: =SUMIFS(unique_contracts!BW:BW,unique_contracts!$AB:$AB,"=Sell",unique_contracts!$BS:$BS,"="&$B30&" ("&$G30&")",unique_contracts!$AM:$AM,"<="&F$4,unique_contracts!$AP:$AP,">="&F$4) -> 0 | S30: 0 | T30: 0 | U30: 0 | V30: 0
B31: Pumped Storage | C31: 0 | D31: 0 | E31: 0 | F31: 0 | G31: MW | H31: n/a | K31: =SUM(SUMIFS(unique_contracts!BT:BT,unique_contracts!$AB:$AB,{"Buy","Owned"},unique_contracts!$BS:$BS,"="&$B31&" ("&$G31&")",unique_contracts!$AM:$AM,"<="&C$4,unique_contracts!$AP:$AP,">="&C$4), SUMIFS(unique_contracts!BT:BT,unique_contracts!$AB:$AB,"="&"",unique_contracts!$BS:$BS,"="&$B31&" ("&$G31&")",unique_contracts!$AM:$AM,"<="&C$4,unique_contracts!$AP:$AP,">="&C$4)) -> 0 | L31: =SUM(SUMIFS(unique_contracts!BU:BU,unique_contracts!$AB:$AB,{"Buy","Owned"},unique_contracts!$BS:$BS,"="&$B31&" ("&$G31&")",unique_contracts!$AM:$AM,"<="&D$4,unique_contracts!$AP:$AP,">="&D$4), SUMIFS(unique_contracts!BU:BU,unique_contracts!$AB:$AB,"="&"",unique_contracts!$BS:$BS,"="&$B31&" ("&$G31&")",unique_contracts!$AM:$AM,"<="&D$4,unique_contracts!$AP:$AP,">="&D$4)) -> 0 | M31: =SUM(SUMIFS(unique_contracts!BV:BV,unique_contracts!$AB:$AB,{"Buy","Owned"},unique_contracts!$BS:$BS,"="&$B31&" ("&$G31&")",unique_contracts!$AM:$AM,"<="&E$4,unique_contracts!$AP:$AP,">="&E$4), SUMIFS(unique_contracts!BV:BV,unique_contracts!$AB:$AB,"="&"",unique_contracts!$BS:$BS,"="&$B31&" ("&$G31&")",unique_contracts!$AM:$AM,"<="&E$4,unique_contracts!$AP:$AP,">="&E$4)) -> 0 | N31: =SUM(SUMIFS(unique_contracts!BW:BW,unique_contracts!$AB:$AB,{"Buy","Owned"},unique_contracts!$BS:$BS,"="&$B31&" ("&$G31&")",unique_contracts!$AM:$AM,"<="&F$4,unique_contracts!$AP:$AP,">="&F$4), SUMIFS(unique_contracts!BW:BW,unique_contracts!$AB:$AB,"="&"",unique_contracts!$BS:$BS,"="&$B31&" ("&$G31&")",unique_contracts!$AM:$AM,"<="&F$4,unique_contracts!$AP:$AP,">="&F$4)) -> 0 | O31: =SUMIFS(unique_contracts!BT:BT,unique_contracts!$AB:$AB,"=Sell",unique_contracts!$BS:$BS,"="&$B31&" ("&$G31&")",unique_contracts!$AM:$AM,"<="&C$4,unique_contracts!$AP:$AP,">="&C$4) -> 0 | P31: =SUMIFS(unique_contracts!BU:BU,unique_contracts!$AB:$AB,"=Sell",unique_contracts!$BS:$BS,"="&$B31&" ("&$G31&")",unique_contracts!$AM:$AM,"<="&D$4,unique_contracts!$AP:$AP,">="&D$4) -> 0 | Q31: =SUMIFS(unique_contracts!BV:BV,unique_contracts!$AB:$AB,"=Sell",unique_contracts!$BS:$BS,"="&$B31&" ("&$G31&")",unique_contracts!$AM:$AM,"<="&E$4,unique_contracts!$AP:$AP,">="&E$4) -> 0 | R31: =SUMIFS(unique_contracts!BW:BW,unique_contracts!$AB:$AB,"=Sell",unique_contracts!$BS:$BS,"="&$B31&" ("&$G31&")",unique_contracts!$AM:$AM,"<="&F$4,unique_contracts!$AP:$AP,">="&F$4) -> 0 | S31: 0 | T31: 0 | U31: 0 | V31: 0
B32: Battery Storage | C32: 1.764388503 | D32: 1.764388503 | E32: 1.732358213 | F32: 1.732358213 | G32: MWh Energy Capacity | H32: n/a | K32: =SUM(SUMIFS(unique_contracts!BT:BT,unique_contracts!$AB:$AB,{"Buy","Owned"},unique_contracts!$BS:$BS,"="&$B32&" ("&$G32&")",unique_contracts!$AM:$AM,"<="&C$4,unique_contracts!$AP:$AP,">="&C$4), SUMIFS(unique_contracts!BT:BT,unique_contracts!$AB:$AB,"="&"",unique_contracts!$BS:$BS,"="&$B32&" ("&$G32&")",unique_contracts!$AM:$AM,"<="&C$4,unique_contracts!$AP:$AP,">="&C$4)) -> 1.764388503 | L32: =SUM(SUMIFS(unique_contracts!BU:BU,unique_contracts!$AB:$AB,{"Buy","Owned"},unique_contracts!$BS:$BS,"="&$B32&" ("&$G32&")",unique_contracts!$AM:$AM,"<="&D$4,unique_contracts!$AP:$AP,">="&D$4), SUMIFS(unique_contracts!BU:BU,unique_contracts!$AB:$AB,"="&"",unique_contracts!$BS:$BS,"="&$B32&" ("&$G32&")",unique_contracts!$AM:$AM,"<="&D$4,unique_contracts!$AP:$AP,">="&D$4)) -> 1.764388503 | M32: =SUM(SUMIFS(unique_contracts!BV:BV,unique_contracts!$AB:$AB,{"Buy","Owned"},unique_contracts!$BS:$BS,"="&$B32&" ("&$G32&")",unique_contracts!$AM:$AM,"<="&E$4,unique_contracts!$AP:$AP,">="&E$4), SUMIFS(unique_contracts!BV:BV,unique_contracts!$AB:$AB,"="&"",unique_contracts!$BS:$BS,"="&$B32&" ("&$G32&")",unique_contracts!$AM:$AM,"<="&E$4,unique_contracts!$AP:$AP,">="&E$4)) -> 1.732358213 | N32: =SUM(SUMIFS(unique_contracts!BW:BW,unique_contracts!$AB:$AB,{"Buy","Owned"},unique_contracts!$BS:$BS,"="&$B32&" ("&$G32&")",unique_contracts!$AM:$AM,"<="&F$4,unique_contracts!$AP:$AP,">="&F$4), SUMIFS(unique_contracts!BW:BW,unique_contracts!$AB:$AB,"="&"",unique_contracts!$BS:$BS,"="&$B32&" ("&$G32&")",unique_contracts!$AM:$AM,"<="&F$4,unique_contracts!$AP:$AP,">="&F$4)) -> 1.732358213 | O32: =SUMIFS(unique_contracts!BT:BT,unique_contracts!$AB:$AB,"=Sell",unique_contracts!$BS:$BS,"="&$B32&" ("&$G32&")",unique_contracts!$AM:$AM,"<="&C$4,unique_contracts!$AP:$AP,">="&C$4) -> 0 | P32: =SUMIFS(unique_contracts!BU:BU,unique_contracts!$AB:$AB,"=Sell",unique_contracts!$BS:$BS,"="&$B32&" ("&$G32&")",unique_contracts!$AM:$AM,"<="&D$4,unique_contracts!$AP:$AP,">="&D$4) -> 0 | Q32: =SUMIFS(unique_contracts!BV:BV,unique_contracts!$AB:$AB,"=Sell",unique_contracts!$BS:$BS,"="&$B32&" ("&$G32&")",unique_contracts!$AM:$AM,"<="&E$4,unique_contracts!$AP:$AP,">="&E$4) -> 0 | R32: =SUMIFS(unique_contracts!BW:BW,unique_contracts!$AB:$AB,"=Sell",unique_contracts!$BS:$BS,"="&$B32&" ("&$G32&")",unique_contracts!$AM:$AM,"<="&F$4,unique_contracts!$AP:$AP,">="&F$4) -> 0 | S32: 1.764388503 | T32: 1.764388503 | U32: 1.732358213 | V32: 1.732358213
B33: User-Specified Profies
B34: Storage Resource Custom Profile | C34: 0 | D34: =T34 -> 0 | E34: =U34 -> 0 | F34: =V34 -> 0 | G34: MW | H34: n/a | K34: =SUM(SUMIFS(unique_contracts!BT:BT,unique_contracts!$AB:$AB,{"Buy","Owned"},unique_contracts!$BS:$BS,"="&$B34&" ("&$G34&")",unique_contracts!$AM:$AM,"<="&C$4,unique_contracts!$AP:$AP,">="&C$4), SUMIFS(unique_contracts!BT:BT,unique_contracts!$AB:$AB,"="&"",unique_contracts!$BS:$BS,"="&$B34&" ("&$G34&")",unique_contracts!$AM:$AM,"<="&C$4,unique_contracts!$AP:$AP,">="&C$4)) -> 0 | L34: =SUM(SUMIFS(unique_contracts!BU:BU,unique_contracts!$AB:$AB,{"Buy","Owned"},unique_contracts!$BS:$BS,"="&$B34&" ("&$G34&")",unique_contracts!$AM:$AM,"<="&D$4,unique_contracts!$AP:$AP,">="&D$4), SUMIFS(unique_contracts!BU:BU,unique_contracts!$AB:$AB,"="&"",unique_contracts!$BS:$BS,"="&$B34&" ("&$G34&")",unique_contracts!$AM:$AM,"<="&D$4,unique_contracts!$AP:$AP,">="&D$4)) -> 0 | M34: =SUM(SUMIFS(unique_contracts!BV:BV,unique_contracts!$AB:$AB,{"Buy","Owned"},unique_contracts!$BS:$BS,"="&$B34&" ("&$G34&")",unique_contracts!$AM:$AM,"<="&E$4,unique_contracts!$AP:$AP,">="&E$4), SUMIFS(unique_contracts!BV:BV,unique_contracts!$AB:$AB,"="&"",unique_contracts!$BS:$BS,"="&$B34&" ("&$G34&")",unique_contracts!$AM:$AM,"<="&E$4,unique_contracts!$AP:$AP,">="&E$4)) -> 0 | N34: =SUM(SUMIFS(unique_contracts!BW:BW,unique_contracts!$AB:$AB,{"Buy","Owned"},unique_contracts!$BS:$BS,"="&$B34&" ("&$G34&")",unique_contracts!$AM:$AM,"<="&F$4,unique_contracts!$AP:$AP,">="&F$4), SUMIFS(unique_contracts!BW:BW,unique_contracts!$AB:$AB,"="&"",unique_contracts!$BS:$BS,"="&$B34&" ("&$G34&")",unique_contracts!$AM:$AM,"<="&F$4,unique_contracts!$AP:$AP,">="&F$4)) -> 0 | O34: =SUMIFS(unique_contracts!BT:BT,unique_contracts!$AB:$AB,"=Sell",unique_contracts!$BS:$BS,"="&$B34&" ("&$G34&")",unique_contracts!$AM:$AM,"<="&C$4,unique_contracts!$AP:$AP,">="&C$4) -> 0 | P34: =SUMIFS(unique_contracts!BU:BU,unique_contracts!$AB:$AB,"=Sell",unique_contracts!$BS:$BS,"="&$B34&" ("&$G34&")",unique_contracts!$AM:$AM,"<="&D$4,unique_contracts!$AP:$AP,">="&D$4) -> 0 | Q34: =SUMIFS(unique_contracts!BV:BV,unique_contracts!$AB:$AB,"=Sell",unique_contracts!$BS:$BS,"="&$B34&" ("&$G34&")",unique_contracts!$AM:$AM,"<="&E$4,unique_contracts!$AP:$AP,">="&E$4) -> 0 | R34: =SUMIFS(unique_contracts!BW:BW,unique_contracts!$AB:$AB,"=Sell",unique_contracts!$BS:$BS,"="&$B34&" ("&$G34&")",unique_contracts!$AM:$AM,"<="&F$4,unique_contracts!$AP:$AP,">="&F$4) -> 0 | S34: =K34-O34 -> 0 | T34: =L34-P34 -> 0 | U34: =M34-Q34 -> 0 | V34: =N34-R34 -> 0
B35: RPS Resource Custom Profile | C35: 0 | D35: 0 | E35: 0 | F35: 0 | G35: GWh | H35: RPS Eligible | K35: =SUM(SUMIFS(unique_contracts!BT:BT,unique_contracts!$AB:$AB,{"Buy","Owned"},unique_contracts!$BS:$BS,"="&$B35&" ("&$G35&")",unique_contracts!$AM:$AM,"<="&C$4,unique_contracts!$AP:$AP,">="&C$4), SUMIFS(unique_contracts!BT:BT,unique_contracts!$AB:$AB,"="&"",unique_contracts!$BS:$BS,"="&$B35&" ("&$G35&")",unique_contracts!$AM:$AM,"<="&C$4,unique_contracts!$AP:$AP,">="&C$4)) -> 0 | L35: =SUM(SUMIFS(unique_contracts!BU:BU,unique_contracts!$AB:$AB,{"Buy","Owned"},unique_contracts!$BS:$BS,"="&$B35&" ("&$G35&")",unique_contracts!$AM:$AM,"<="&D$4,unique_contracts!$AP:$AP,">="&D$4), SUMIFS(unique_contracts!BU:BU,unique_contracts!$AB:$AB,"="&"",unique_contracts!$BS:$BS,"="&$B35&" ("&$G35&")",unique_contracts!$AM:$AM,"<="&D$4,unique_contracts!$AP:$AP,">="&D$4)) -> 0 | M35: =SUM(SUMIFS(unique_contracts!BV:BV,unique_contracts!$AB:$AB,{"Buy","Owned"},unique_contracts!$BS:$BS,"="&$B35&" ("&$G35&")",unique_contracts!$AM:$AM,"<="&E$4,unique_contracts!$AP:$AP,">="&E$4), SUMIFS(unique_contracts!BV:BV,unique_contracts!$AB:$AB,"="&"",unique_contracts!$BS:$BS,"="&$B35&" ("&$G35&")",unique_contracts!$AM:$AM,"<="&E$4,unique_contracts!$AP:$AP,">="&E$4)) -> 0 | N35: =SUM(SUMIFS(unique_contracts!BW:BW,unique_contracts!$AB:$AB,{"Buy","Owned"},unique_contracts!$BS:$BS,"="&$B35&" ("&$G35&")",unique_contracts!$AM:$AM,"<="&F$4,unique_contracts!$AP:$AP,">="&F$4), SUMIFS(unique_contracts!BW:BW,unique_contracts!$AB:$AB,"="&"",unique_contracts!$BS:$BS,"="&$B35&" ("&$G35&")",unique_contracts!$AM:$AM,"<="&F$4,unique_contracts!$AP:$AP,">="&F$4)) -> 0 | O35: =SUMIFS(unique_contracts!BT:BT,unique_contracts!$AB:$AB,"=Sell",unique_contracts!$BS:$BS,"="&$B35&" ("&$G35&")",unique_contracts!$AM:$AM,"<="&C$4,unique_contracts!$AP:$AP,">="&C$4) -> 0 | P35: =SUMIFS(unique_contracts!BU:BU,unique_contracts!$AB:$AB,"=Sell",unique_contracts!$BS:$BS,"="&$B35&" ("&$G35&")",unique_contracts!$AM:$AM,"<="&D$4,unique_contracts!$AP:$AP,">="&D$4) -> 0 | Q35: =SUMIFS(unique_contracts!BV:BV,unique_contracts!$AB:$AB,"=Sell",unique_contracts!$BS:$BS,"="&$B35&" ("&$G35&")",unique_contracts!$AM:$AM,"<="&E$4,unique_contracts!$AP:$AP,">="&E$4) -> 0 | R35: =SUMIFS(unique_contracts!BW:BW,unique_contracts!$AB:$AB,"=Sell",unique_contracts!$BS:$BS,"="&$B35&" ("&$G35&")",unique_contracts!$AM:$AM,"<="&F$4,unique_contracts!$AP:$AP,">="&F$4) -> 0 | S35: 0 | T35: 0 | U35: 0 | V35: 0
B36: GHG-free non-RPS Resource | C36: 0 | D36: 0 | E36: 0 | F36: 0 | G36: GWh | H36: GHG-Free | K36: =SUM(SUMIFS(unique_contracts!BT:BT,unique_contracts!$AB:$AB,{"Buy","Owned"},unique_contracts!$BS:$BS,"="&$B36&" ("&$G36&")",unique_contracts!$AM:$AM,"<="&C$4,unique_contracts!$AP:$AP,">="&C$4), SUMIFS(unique_contracts!BT:BT,unique_contracts!$AB:$AB,"="&"",unique_contracts!$BS:$BS,"="&$B36&" ("&$G36&")",unique_contracts!$AM:$AM,"<="&C$4,unique_contracts!$AP:$AP,">="&C$4)) -> 0 | L36: =SUM(SUMIFS(unique_contracts!BU:BU,unique_contracts!$AB:$AB,{"Buy","Owned"},unique_contracts!$BS:$BS,"="&$B36&" ("&$G36&")",unique_contracts!$AM:$AM,"<="&D$4,unique_contracts!$AP:$AP,">="&D$4), SUMIFS(unique_contracts!BU:BU,unique_contracts!$AB:$AB,"="&"",unique_contracts!$BS:$BS,"="&$B36&" ("&$G36&")",unique_contracts!$AM:$AM,"<="&D$4,unique_contracts!$AP:$AP,">="&D$4)) -> 0 | M36: =SUM(SUMIFS(unique_contracts!BV:BV,unique_contracts!$AB:$AB,{"Buy","Owned"},unique_contracts!$BS:$BS,"="&$B36&" ("&$G36&")",unique_contracts!$AM:$AM,"<="&E$4,unique_contracts!$AP:$AP,">="&E$4), SUMIFS(unique_contracts!BV:BV,unique_contracts!$AB:$AB,"="&"",unique_contracts!$BS:$BS,"="&$B36&" ("&$G36&")",unique_contracts!$AM:$AM,"<="&E$4,unique_contracts!$AP:$AP,">="&E$4)) -> 0 | N36: =SUM(SUMIFS(unique_contracts!BW:BW,unique_contracts!$AB:$AB,{"Buy","Owned"},unique_contracts!$BS:$BS,"="&$B36&" ("&$G36&")",unique_contracts!$AM:$AM,"<="&F$4,unique_contracts!$AP:$AP,">="&F$4), SUMIFS(unique_contracts!BW:BW,unique_contracts!$AB:$AB,"="&"",unique_contracts!$BS:$BS,"="&$B36&" ("&$G36&")",unique_contracts!$AM:$AM,"<="&F$4,unique_contracts!$AP:$AP,">="&F$4)) -> 0 | O36: =SUMIFS(unique_contracts!BT:BT,unique_contracts!$AB:$AB,"=Sell",unique_contracts!$BS:$BS,"="&$B36&" ("&$G36&")",unique_contracts!$AM:$AM,"<="&C$4,unique_contracts!$AP:$AP,">="&C$4) -> 0 | P36: =SUMIFS(unique_contracts!BU:BU,unique_contracts!$AB:$AB,"=Sell",unique_contracts!$BS:$BS,"="&$B36&" ("&$G36&")",unique_contracts!$AM:$AM,"<="&D$4,unique_contracts!$AP:$AP,">="&D$4) -> 0 | Q36: =SUMIFS(unique_contracts!BV:BV,unique_contracts!$AB:$AB,"=Sell",unique_contracts!$BS:$BS,"="&$B36&" ("&$G36&")",unique_contracts!$AM:$AM,"<="&E$4,unique_contracts!$AP:$AP,">="&E$4) -> 0 | R36: =SUMIFS(unique_contracts!BW:BW,unique_contracts!$AB:$AB,"=Sell",unique_contracts!$BS:$BS,"="&$B36&" ("&$G36&")",unique_contracts!$AM:$AM,"<="&F$4,unique_contracts!$AP:$AP,">="&F$4) -> 0 | S36: 0 | T36: 0 | U36: 0 | V36: 0
B37: Coal
B38: Coal | C38: 0 | D38: 0 | E38: 0 | F38: 0 | G38: GWh | H38: n/a | K38: =SUM(SUMIFS(unique_contracts!BT:BT,unique_contracts!$AB:$AB,{"Buy","Owned"},unique_contracts!$BS:$BS,"="&$B38&" ("&$G38&")",unique_contracts!$AM:$AM,"<="&C$4,unique_contracts!$AP:$AP,">="&C$4), SUMIFS(unique_contracts!BT:BT,unique_contracts!$AB:$AB,"="&"",unique_contracts!$BS:$BS,"="&$B38&" ("&$G38&")",unique_contracts!$AM:$AM,"<="&C$4,unique_contracts!$AP:$AP,">="&C$4)) -> 0 | L38: =SUM(SUMIFS(unique_contracts!BU:BU,unique_contracts!$AB:$AB,{"Buy","Owned"},unique_contracts!$BS:$BS,"="&$B38&" ("&$G38&")",unique_contracts!$AM:$AM,"<="&D$4,unique_contracts!$AP:$AP,">="&D$4), SUMIFS(unique_contracts!BU:BU,unique_contracts!$AB:$AB,"="&"",unique_contracts!$BS:$BS,"="&$B38&" ("&$G38&")",unique_contracts!$AM:$AM,"<="&D$4,unique_contracts!$AP:$AP,">="&D$4)) -> 0 | M38: =SUM(SUMIFS(unique_contracts!BV:BV,unique_contracts!$AB:$AB,{"Buy","Owned"},unique_contracts!$BS:$BS,"="&$B38&" ("&$G38&")",unique_contracts!$AM:$AM,"<="&E$4,unique_contracts!$AP:$AP,">="&E$4), SUMIFS(unique_contracts!BV:BV,unique_contracts!$AB:$AB,"="&"",unique_contracts!$BS:$BS,"="&$B38&" ("&$G38&")",unique_contracts!$AM:$AM,"<="&E$4,unique_contracts!$AP:$AP,">="&E$4)) -> 0 | N38: =SUM(SUMIFS(unique_contracts!BW:BW,unique_contracts!$AB:$AB,{"Buy","Owned"},unique_contracts!$BS:$BS,"="&$B38&" ("&$G38&")",unique_contracts!$AM:$AM,"<="&F$4,unique_contracts!$AP:$AP,">="&F$4), SUMIFS(unique_contracts!BW:BW,unique_contracts!$AB:$AB,"="&"",unique_contracts!$BS:$BS,"="&$B38&" ("&$G38&")",unique_contracts!$AM:$AM,"<="&F$4,unique_contracts!$AP:$AP,">="&F$4)) -> 0 | O38: =SUMIFS(unique_contracts!BT:BT,unique_contracts!$AB:$AB,"=Sell",unique_contracts!$BS:$BS,"="&$B38&" ("&$G38&")",unique_contracts!$AM:$AM,"<="&C$4,unique_contracts!$AP:$AP,">="&C$4) -> 0 | P38: =SUMIFS(unique_contracts!BU:BU,unique_contracts!$AB:$AB,"=Sell",unique_contracts!$BS:$BS,"="&$B38&" ("&$G38&")",unique_contracts!$AM:$AM,"<="&D$4,unique_contracts!$AP:$AP,">="&D$4) -> 0 | Q38: =SUMIFS(unique_contracts!BV:BV,unique_contracts!$AB:$AB,"=Sell",unique_contracts!$BS:$BS,"="&$B38&" ("&$G38&")",unique_contracts!$AM:$AM,"<="&E$4,unique_contracts!$AP:$AP,">="&E$4) -> 0 | R38: =SUMIFS(unique_contracts!BW:BW,unique_contracts!$AB:$AB,"=Sell",unique_contracts!$BS:$BS,"="&$B38&" ("&$G38&")",unique_contracts!$AM:$AM,"<="&F$4,unique_contracts!$AP:$AP,">="&F$4) -> 0 | S38: 0 | T38: 0 | U38: 0 | V38: 0

Sheet Reliability
A1: LSE Input
C2: 30 | D2: MMT
C5: Reliability Need
E6: 2024 | F6: 2025 | G6: 2026 | H6: 2027 | I6: 2028 | J6: 2029 | K6: 2030 | L6: 2031 | M6: 2032 | N6: 2033 | O6: 2034 | P6: 2035
C7: CAISO gross peak (MW) | E7: 53530 | F7: 54113 | G7: 54769 | H7: 55494 | I7: 56125 | J7: 56797 | K7: 57454 | L7: 58178 | M7: 58827 | N7: 59511 | O7: 60161 | P7: 60803
C8: PRM (%) | E8: 0.14 | F8: 0.14 | G8: 0.14 | H8: 0.14 | I8: 0.14 | J8: 0.14 | K8: 0.14 | L8: 0.14 | M8: 0.14 | N8: 0.14 | O8: 0.14 | P8: 0.14
C9: CAISO total reliability need (TRN) (MW) | E9: =E7*(1+E8) -> 61024.2 | F9: =F7*(1+F8) -> 61688.82 | G9: 62436.66 | H9: 63263.16 | I9: 63982.5 | J9: 64748.58 | K9: 65497.56 | L9: 66322.92 | M9: 67062.78 | N9: 67842.54 | O9: 68583.54 | P9: 69315.42
C10: MRN/TRN ratio | E10: =IF($C$2=25,misc!AW3,misc!BK3) -> 0.8002984801 | F10: =IF($C$2=25,misc!AX3,misc!BL3) -> 0.8189633389 | G10: =IF($C$2=25,misc!AY3,misc!BM3) -> 0.8361143836 | H10: =IF($C$2=25,misc!AZ3,misc!BN3) -> 0.7954456724 | I10: =IF($C$2=25,misc!BA3,misc!BO3) -> 0.7570917703 | J10: =IF($C$2=25,misc!BB3,misc!BP3) -> 0.7367330355 | K10: =IF($C$2=25,misc!BC3,misc!BQ3) -> 0.7170375748 | L10: =IF($C$2=25,misc!BD3,misc!BR3) -> 0.6991892579 | M10: =IF($C$2=25,misc!BE3,misc!BS3) -> 0.6826489277 | N10: =IF($C$2=25,misc!BF3,misc!BT3) -> 0.666077604 | O10: =IF($C$2=25,misc!BG3,misc!BU3) -> 0.650250164 | P10: =IF($C$2=25,misc!BH3,misc!BV3) -> 0.6348445955
C11: CAISO marginal reliability need (MRN) (MW) | E11: =E9*E10 -> 48837.57451 | F11: =F9*F10 -> 50520.882 | G11: 52204.18949 | H11: 50322.40684 | I11: 48440.6242 | J11: 47702.41789 | K11: 46964.21158 | L11: 46372.27322 | M11: 45780.33486 | N11: 45188.39649 | O11: 44596.45813 | P11: 44004.51977
C12: LSE managed peak share (%)
C13: LSE MRN (MW)
C16: BTM PV
E17: 2024 | F17: 2025 | G17: 2026 | H17: 2027 | I17: 2028 | J17: 2029 | K17: 2030 | L17: 2031 | M17: 2032 | N17: 2033 | O17: 2034 | P17: 2035
C18: Capacity (MW)
C21: ELCC (%)
C22: Resource Type | E22: 2024 | F22: 2025 | G22: 2026 | H22: 2027 | I22: 2028 | J22: 2029 | K22: 2030 | L22: 2031 | M22: 2032 | N22: 2033 | O22: 2034 | P22: 2035
C23: in_state_wind_south | E23: =IF($C$2=25,misc!U3,misc!AI3) -> 0.151029414 | F23: =IF($C$2=25,misc!V3,misc!AJ3) -> 0.151788469 | G23: =IF($C$2=25,misc!W3,misc!AK3) -> 0.152547524 | H23: =IF($C$2=25,misc!X3,misc!AL3) -> 0.1184832612 | I23: =IF($C$2=25,misc!Y3,misc!AM3) -> 0.08441899841 | J23: =IF($C$2=25,misc!Z3,misc!AN3) -> 0.08341688272 | K23: =IF($C$2=25,misc!AA3,misc!AO3) -> 0.08241476703 | L23: =IF($C$2=25,misc!AB3,misc!AP3) -> 0.07482969112 | M23: =IF($C$2=25,misc!AC3,misc!AQ3) -> 0.06724461522 | N23: =IF($C$2=25,misc!AD3,misc!AR3) -> 0.05965953932 | O23: =IF($C$2=25,misc!AE3,misc!AS3) -> 0.05207446341 | P23: =IF($C$2=25,misc!AF3,misc!AT3) -> 0.04448938751
C24: in_state_wind_north | E24: =IF($C$2=25,misc!U4,misc!AI4) -> 0.3020588281 | F24: =IF($C$2=25,misc!V4,misc!AJ4) -> 0.3035769381 | G24: =IF($C$2=25,misc!W4,misc!AK4) -> 0.305095048 | H24: =IF($C$2=25,misc!X4,misc!AL4) -> 0.2369665224 | I24: =IF($C$2=25,misc!Y4,misc!AM4) -> 0.1688379968 | J24: =IF($C$2=25,misc!Z4,misc!AN4) -> 0.1668337654 | K24: =IF($C$2=25,misc!AA4,misc!AO4) -> 0.1648295341 | L24: =IF($C$2=25,misc!AB4,misc!AP4) -> 0.1496593822 | M24: =IF($C$2=25,misc!AC4,misc!AQ4) -> 0.1344892304 | N24: =IF($C$2=25,misc!AD4,misc!AR4) -> 0.1193190786 | O24: =IF($C$2=25,misc!AE4,misc!AS4) -> 0.1041489268 | P24: =IF($C$2=25,misc!AF4,misc!AT4) -> 0.08897877502
C25: out_of_state_wind_WYID | E25: =IF($C$2=25,misc!U5,misc!AI5) -> 0.4255932203 | F25: =IF($C$2=25,misc!V5,misc!AJ5) -> 0.3918037092 | G25: =IF($C$2=25,misc!W5,misc!AK5) -> 0.358014198 | H25: =IF($C$2=25,misc!X5,misc!AL5) -> 0.3737228296 | I25: =IF($C$2=25,misc!Y5,misc!AM5) -> 0.3894314613 | J25: =IF($C$2=25,misc!Z5,misc!AN5) -> 0.3124106459 | K25: =IF($C$2=25,misc!AA5,misc!AO5) -> 0.2353898305 | L25: =IF($C$2=25,misc!AB5,misc!AP5) -> 0.248420339 | M25: =IF($C$2=25,misc!AC5,misc!AQ5) -> 0.2614508475 | N25: =IF($C$2=25,misc!AD5,misc!AR5) -> 0.2744813559 | O25: =IF($C$2=25,misc!AE5,misc!AS5) -> 0.2875118644 | P25: =IF($C$2=25,misc!AF5,misc!AT5) -> 0.3005423729
C26: out_of_state_wind_WAOR | E26: =IF($C$2=25,misc!U6,misc!AI6) -> 0.2608474576 | F26: =IF($C$2=25,misc!V6,misc!AJ6) -> 0.2401377572 | G26: =IF($C$2=25,misc!W6,misc!AK6) -> 0.2194280568 | H26: =IF($C$2=25,misc!X6,misc!AL6) -> 0.2290559278 | I26: =IF($C$2=25,misc!Y6,misc!AM6) -> 0.2386837988 | J26: =IF($C$2=25,misc!Z6,misc!AN6) -> 0.1914774926 | K26: =IF($C$2=25,misc!AA6,misc!AO6) -> 0.1442711864 | L26: =IF($C$2=25,misc!AB6,misc!AP6) -> 0.1522576271 | M26: =IF($C$2=25,misc!AC6,misc!AQ6) -> 0.1602440678 | N26: =IF($C$2=25,misc!AD6,misc!AR6) -> 0.1682305085 | O26: =IF($C$2=25,misc!AE6,misc!AS6) -> 0.1762169492 | P26: =IF($C$2=25,misc!AF6,misc!AT6) -> 0.1842033898
C27: out_of_state_wind_AZNM | E27: =IF($C$2=25,misc!U7,misc!AI7) -> 0.3844067797 | F27: =IF($C$2=25,misc!V7,misc!AJ7) -> 0.3538872212 | G27: =IF($C$2=25,misc!W7,misc!AK7) -> 0.3233676627 | H27: =IF($C$2=25,misc!X7,misc!AL7) -> 0.3375561042 | I27: =IF($C$2=25,misc!Y7,misc!AM7) -> 0.3517445457 | J27: =IF($C$2=25,misc!Z7,misc!AN7) -> 0.2821773576 | K27: =IF($C$2=25,misc!AA7,misc!AO7) -> 0.2126101695 | L27: =IF($C$2=25,misc!AB7,misc!AP7) -> 0.224379661 | M27: =IF($C$2=25,misc!AC7,misc!AQ7) -> 0.2361491525 | N27: =IF($C$2=25,misc!AD7,misc!AR7) -> 0.2479186441 | O27: =IF($C$2=25,misc!AE7,misc!AS7) -> 0.2596881356 | P27: =IF($C$2=25,misc!AF7,misc!AT7) -> 0.2714576271
C28: offshore_wind | E28: =IF($C$2=25,misc!U8,misc!AI8) -> 0.549 | F28: =IF($C$2=25,misc!V8,misc!AJ8) -> 0.5066840518 | G28: =IF($C$2=25,misc!W8,misc!AK8) -> 0.4643681036 | H28: =IF($C$2=25,misc!X8,misc!AL8) -> 0.4865966735 | I28: =IF($C$2=25,misc!Y8,misc!AM8) -> 0.5088252433 | J28: =IF($C$2=25,misc!Z8,misc!AN8) -> 0.4674126217 | K28: =IF($C$2=25,misc!AA8,misc!AO8) -> 0.426 | L28: =IF($C$2=25,misc!AB8,misc!AP8) -> 0.4048 | M28: =IF($C$2=25,misc!AC8,misc!AQ8) -> 0.3836 | N28: =IF($C$2=25,misc!AD8,misc!AR8) -> 0.3624 | O28: =IF($C$2=25,misc!AE8,misc!AS8) -> 0.3412 | P28: =IF($C$2=25,misc!AF8,misc!AT8) -> 0.32
C29: utility_pv | E29: =IF($C$2=25,misc!U9,misc!AI9) -> 0.096 | F29: =IF($C$2=25,misc!V9,misc!AJ9) -> 0.1022006435 | G29: =IF($C$2=25,misc!W9,misc!AK9) -> 0.1084012871 | H29: =IF($C$2=25,misc!X9,misc!AL9) -> 0.101680322 | I29: =IF($C$2=25,misc!Y9,misc!AM9) -> 0.09495935703 | J29: =IF($C$2=25,misc!Z9,misc!AN9) -> 0.07747967852 | K29: =IF($C$2=25,misc!AA9,misc!AO9) -> 0.06 | L29: =IF($C$2=25,misc!AB9,misc!AP9) -> 0.0608 | M29: =IF($C$2=25,misc!AC9,misc!AQ9) -> 0.0616 | N29: =IF($C$2=25,misc!AD9,misc!AR9) -> 0.0624 | O29: =IF($C$2=25,misc!AE9,misc!AS9) -> 0.0632 | P29: =IF($C$2=25,misc!AF9,misc!AT9) -> 0.064
C30: btm_pv | E30: =IF($C$2=25,misc!U10,misc!AI10) -> 0.089 | F30: =IF($C$2=25,misc!V10,misc!AJ10) -> 0.09370336541 | G30: =IF($C$2=25,misc!W10,misc!AK10) -> 0.09840673082 | H30: =IF($C$2=25,misc!X10,misc!AL10) -> 0.08270336541 | I30: =IF($C$2=25,misc!Y10,misc!AM10) -> 0.067 | J30: =IF($C$2=25,misc!Z10,misc!AN10) -> 0.056 | K30: =IF($C$2=25,misc!AA10,misc!AO10) -> 0.045 | L30: =IF($C$2=25,misc!AB10,misc!AP10) -> 0.0472 | M30: =IF($C$2=25,misc!AC10,misc!AQ10) -> 0.0494 | N30: =IF($C$2=25,misc!AD10,misc!AR10) -> 0.0516 | O30: =IF($C$2=25,misc!AE10,misc!AS10) -> 0.0538 | P30: =IF($C$2=25,misc!AF10,misc!AT10) -> 0.056
C31: 4hr_batteries | E31: =IF($C$2=25,misc!U11,misc!AI11) -> 0.885 | F31: =IF($C$2=25,misc!V11,misc!AJ11) -> 0.9015 | G31: =IF($C$2=25,misc!W11,misc!AK11) -> 0.918 | H31: =IF($C$2=25,misc!X11,misc!AL11) -> 0.8455 | I31: =IF($C$2=25,misc!Y11,misc!AM11) -> 0.773 | J31: =IF($C$2=25,misc!Z11,misc!AN11) -> 0.759 | K31: =IF($C$2=25,misc!AA11,misc!AO11) -> 0.745 | L31: =IF($C$2=25,misc!AB11,misc!AP11) -> 0.6762 | M31: =IF($C$2=25,misc!AC11,misc!AQ11) -> 0.6074 | N31: =IF($C$2=25,misc!AD11,misc!AR11) -> 0.5386 | O31: =IF($C$2=25,misc!AE11,misc!AS11) -> 0.4698 | P31: =IF($C$2=25,misc!AF11,misc!AT11) -> 0.401
C32: 5hr_batteries | E32: =IF($C$2=25,misc!U12,misc!AI12) -> 0.88675 | F32: =IF($C$2=25,misc!V12,misc!AJ12) -> 0.903875 | G32: =IF($C$2=25,misc!W12,misc!AK12) -> 0.921 | H32: =IF($C$2=25,misc!X12,misc!AL12) -> 0.858875 | I32: =IF($C$2=25,misc!Y12,misc!AM12) -> 0.79675 | J32: =IF($C$2=25,misc!Z12,misc!AN12) -> 0.783625 | K32: =IF($C$2=25,misc!AA12,misc!AO12) -> 0.7705 | L32: =IF($C$2=25,misc!AB12,misc!AP12) -> 0.71135 | M32: =IF($C$2=25,misc!AC12,misc!AQ12) -> 0.6522 | N32: =IF($C$2=25,misc!AD12,misc!AR12) -> 0.59305 | O32: =IF($C$2=25,misc!AE12,misc!AS12) -> 0.5339 | P32: =IF($C$2=25,misc!AF12,misc!AT12) -> 0.47475
C33: 6hr_batteries | E33: =IF($C$2=25,misc!U13,misc!AI13) -> 0.8885 | F33: =IF($C$2=25,misc!V13,misc!AJ13) -> 0.90625 | G33: =IF($C$2=25,misc!W13,misc!AK13) -> 0.924 | H33: =IF($C$2=25,misc!X13,misc!AL13) -> 0.87225 | I33: =IF($C$2=25,misc!Y13,misc!AM13) -> 0.8205 | J33: =IF($C$2=25,misc!Z13,misc!AN13) -> 0.80825 | K33: =IF($C$2=25,misc!AA13,misc!AO13) -> 0.796 | L33: =IF($C$2=25,misc!AB13,misc!AP13) -> 0.7465 | M33: =IF($C$2=25,misc!AC13,misc!AQ13) -> 0.697 | N33: =IF($C$2=25,misc!AD13,misc!AR13) -> 0.6475 | O33: =IF($C$2=25,misc!AE13,misc!AS13) -> 0.598 | P33: =IF($C$2=25,misc!AF13,misc!AT13) -> 0.5485
C34: 7hr_batteries | E34: =IF($C$2=25,misc!U14,misc!AI14) -> 0.89025 | F34: =IF($C$2=25,misc!V14,misc!AJ14) -> 0.908625 | G34: =IF($C$2=25,misc!W14,misc!AK14) -> 0.927 | H34: =IF($C$2=25,misc!X14,misc!AL14) -> 0.885625 | I34: =IF($C$2=25,misc!Y14,misc!AM14) -> 0.84425 | J34: =IF($C$2=25,misc!Z14,misc!AN14) -> 0.832875 | K34: =IF($C$2=25,misc!AA14,misc!AO14) -> 0.8215 | L34: =IF($C$2=25,misc!AB14,misc!AP14) -> 0.78165 | M34: =IF($C$2=25,misc!AC14,misc!AQ14) -> 0.7418 | N34: =IF($C$2=25,misc!AD14,misc!AR14) -> 0.70195 | O34: =IF($C$2=25,misc!AE14,misc!AS14) -> 0.6621 | P34: =IF($C$2=25,misc!AF14,misc!AT14) -> 0.62225
C35: 8hr_batteries | E35: =IF($C$2=25,misc!U15,misc!AI15) -> 0.892 | F35: =IF($C$2=25,misc!V15,misc!AJ15) -> 0.911 | G35: =IF($C$2=25,misc!W15,misc!AK15) -> 0.93 | H35: =IF($C$2=25,misc!X15,misc!AL15) -> 0.899 | I35: =IF($C$2=25,misc!Y15,misc!AM15) -> 0.868 | J35: =IF($C$2=25,misc!Z15,misc!AN15) -> 0.8575 | K35: =IF($C$2=25,misc!AA15,misc!AO15) -> 0.847 | L35: =IF($C$2=25,misc!AB15,misc!AP15) -> 0.8168 | M35: =IF($C$2=25,misc!AC15,misc!AQ15) -> 0.7866 | N35: =IF($C$2=25,misc!AD15,misc!AR15) -> 0.7564 | O35: =IF($C$2=25,misc!AE15,misc!AS15) -> 0.7262 | P35: =IF($C$2=25,misc!AF15,misc!AT15) -> 0.696
C36: pumped_storage | E36: =IF($C$2=25,misc!U16,misc!AI16) -> 0.894 | F36: =IF($C$2=25,misc!V16,misc!AJ16) -> 0.914 | G36: =IF($C$2=25,misc!W16,misc!AK16) -> 0.934 | H36: =IF($C$2=25,misc!X16,misc!AL16) -> 0.913 | I36: =IF($C$2=25,misc!Y16,misc!AM16) -> 0.892 | J36: =IF($C$2=25,misc!Z16,misc!AN16) -> 0.8905 | K36: =IF($C$2=25,misc!AA16,misc!AO16) -> 0.889 | L36: =IF($C$2=25,misc!AB16,misc!AP16) -> 0.8578 | M36: =IF($C$2=25,misc!AC16,misc!AQ16) -> 0.8266 | N36: =IF($C$2=25,misc!AD16,misc!AR16) -> 0.7954 | O36: =IF($C$2=25,misc!AE16,misc!AS16) -> 0.7642 | P36: =IF($C$2=25,misc!AF16,misc!AT16) -> 0.733
C37: demand_response | E37: =IF($C$2=25,misc!U17,misc!AI17) -> 0.893 | F37: =IF($C$2=25,misc!V17,misc!AJ17) -> 0.9083512608 | G37: =IF($C$2=25,misc!W17,misc!AK17) -> 0.9237025217 | H37: =IF($C$2=25,misc!X17,misc!AL17) -> 0.7723512608 | I37: =IF($C$2=25,misc!Y17,misc!AM17) -> 0.621 | J37: =IF($C$2=25,misc!Z17,misc!AN17) -> 0.606 | K37: =IF($C$2=25,misc!AA17,misc!AO17) -> 0.591 | L37: =IF($C$2=25,misc!AB17,misc!AP17) -> 0.5016 | M37: =IF($C$2=25,misc!AC17,misc!AQ17) -> 0.4122 | N37: =IF($C$2=25,misc!AD17,misc!AR17) -> 0.3228 | O37: =IF($C$2=25,misc!AE17,misc!AS17) -> 0.2334 | P37: =IF($C$2=25,misc!AF17,misc!AT17) -> 0.144
C38: hydro | E38: =IF($C$2=25,misc!U18,misc!AI18) -> 0.5666049166 | F38: =IF($C$2=25,misc!V18,misc!AJ18) -> 0.5639186027 | G38: =IF($C$2=25,misc!W18,misc!AK18) -> 0.5612322888 | H38: =IF($C$2=25,misc!X18,misc!AL18) -> 0.5319165414 | I38: =IF($C$2=25,misc!Y18,misc!AM18) -> 0.502600794 | J38: =IF($C$2=25,misc!Z18,misc!AN18) -> 0.4924948799 | K38: =IF($C$2=25,misc!AA18,misc!AO18) -> 0.4823889659 | L38: =IF($C$2=25,misc!AB18,misc!AP18) -> 0.4718788152 | M38: =IF($C$2=25,misc!AC18,misc!AQ18) -> 0.4613686646 | N38: =IF($C$2=25,misc!AD18,misc!AR18) -> 0.4508585139 | O38: =IF($C$2=25,misc!AE18,misc!AS18) -> 0.4403483632 | P38: =IF($C$2=25,misc!AF18,misc!AT18) -> 0.4298382126
C39: small_hydro | E39: =IF($C$2=25,misc!U19,misc!AI19) -> 0.4063658038 | F39: =IF($C$2=25,misc!V19,misc!AJ19) -> 0.4044391948 | G39: =IF($C$2=25,misc!W19,misc!AK19) -> 0.4025125859 | H39: =IF($C$2=25,misc!X19,misc!AL19) -> 0.3814874996 | I39: =IF($C$2=25,misc!Y19,misc!AM19) -> 0.3604624133 | J39: =IF($C$2=25,misc!Z19,misc!AN19) -> 0.3532145096 | K39: =IF($C$2=25,misc!AA19,misc!AO19) -> 0.3459666058 | L39: =IF($C$2=25,misc!AB19,misc!AP19) -> 0.3384287859 | M39: =IF($C$2=25,misc!AC19,misc!AQ19) -> 0.330890966 | N39: =IF($C$2=25,misc!AD19,misc!AR19) -> 0.3233531461 | O39: =IF($C$2=25,misc!AE19,misc!AS19) -> 0.3158153262 | P39: =IF($C$2=25,misc!AF19,misc!AT19) -> 0.3082775063
C40: geothermal | E40: =IF($C$2=25,misc!U20,misc!AI20) -> 0.8640036558 | F40: =IF($C$2=25,misc!V20,misc!AJ20) -> 0.8782620418 | G40: =IF($C$2=25,misc!W20,misc!AK20) -> 0.8925204278 | H40: =IF($C$2=25,misc!X20,misc!AL20) -> 0.9100183601 | I40: =IF($C$2=25,misc!Y20,misc!AM20) -> 0.9275162923 | J40: =IF($C$2=25,misc!Z20,misc!AN20) -> 0.9228059013 | K40: =IF($C$2=25,misc!AA20,misc!AO20) -> 0.9180955103 | L40: =IF($C$2=25,misc!AB20,misc!AP20) -> 0.9253847223 | M40: =IF($C$2=25,misc!AC20,misc!AQ20) -> 0.9326739343 | N40: =IF($C$2=25,misc!AD20,misc!AR20) -> 0.9399631462 | O40: =IF($C$2=25,misc!AE20,misc!AS20) -> 0.9472523582 | P40: =IF($C$2=25,misc!AF20,misc!AT20) -> 0.9545415701
C41: biomass_wood | E41: =IF($C$2=25,misc!U21,misc!AI21) -> 0.7877725211 | F41: =IF($C$2=25,misc!V21,misc!AJ21) -> 0.808735191 | G41: =IF($C$2=25,misc!W21,misc!AK21) -> 0.829697861 | H41: =IF($C$2=25,misc!X21,misc!AL21) -> 0.8302846049 | I41: =IF($C$2=25,misc!Y21,misc!AM21) -> 0.8308713488 | J41: =IF($C$2=25,misc!Z21,misc!AN21) -> 0.8234459304 | K41: =IF($C$2=25,misc!AA21,misc!AO21) -> 0.816020512 | L41: =IF($C$2=25,misc!AB21,misc!AP21) -> 0.8314991611 | M41: =IF($C$2=25,misc!AC21,misc!AQ21) -> 0.8469778101 | N41: =IF($C$2=25,misc!AD21,misc!AR21) -> 0.8624564591 | O41: =IF($C$2=25,misc!AE21,misc!AS21) -> 0.8779351082 | P41: =IF($C$2=25,misc!AF21,misc!AT21) -> 0.8934137572
C42: biogas | E42: =IF($C$2=25,misc!U22,misc!AI22) -> 0.7584997654 | F42: =IF($C$2=25,misc!V22,misc!AJ22) -> 0.7783300966 | G42: =IF($C$2=25,misc!W22,misc!AK22) -> 0.7981604278 | H42: =IF($C$2=25,misc!X22,misc!AL22) -> 0.795133798 | I42: =IF($C$2=25,misc!Y22,misc!AM22) -> 0.7921071681 | J42: =IF($C$2=25,misc!Z22,misc!AN22) -> 0.7825180695 | K42: =IF($C$2=25,misc!AA22,misc!AO22) -> 0.7729289709 | L42: =IF($C$2=25,misc!AB22,misc!AP22) -> 0.7919290739 | M42: =IF($C$2=25,misc!AC22,misc!AQ22) -> 0.8109291769 | N42: =IF($C$2=25,misc!AD22,misc!AR22) -> 0.8299292799 | O42: =IF($C$2=25,misc!AE22,misc!AS22) -> 0.8489293829 | P42: =IF($C$2=25,misc!AF22,misc!AT22) -> 0.8679294859
C43: nuclear | E43: =IF($C$2=25,misc!U23,misc!AI23) -> 0.9313919788 | F43: =IF($C$2=25,misc!V23,misc!AJ23) -> 0.939961444 | G43: =IF($C$2=25,misc!W23,misc!AK23) -> 0.9485309091 | H43: =IF($C$2=25,misc!X23,misc!AL23) -> 0.9433337624 | I43: =IF($C$2=25,misc!Y23,misc!AM23) -> 0.9381366158 | J43: =IF($C$2=25,misc!Z23,misc!AN23) -> 0.9357564073 | K43: =IF($C$2=25,misc!AA23,misc!AO23) -> 0.9333761987 | L43: =IF($C$2=25,misc!AB23,misc!AP23) -> 0.9393311832 | M43: =IF($C$2=25,misc!AC23,misc!AQ23) -> 0.9452861677 | N43: =IF($C$2=25,misc!AD23,misc!AR23) -> 0.9512411522 | O43: =IF($C$2=25,misc!AE23,misc!AS23) -> 0.9571961367 | P43: =IF($C$2=25,misc!AF23,misc!AT23) -> 0.9631511212
C44: gas_cc | E44: =IF($C$2=25,misc!U24,misc!AI24) -> 0.8481475797 | F44: =IF($C$2=25,misc!V24,misc!AJ24) -> 0.8626388701 | G44: =IF($C$2=25,misc!W24,misc!AK24) -> 0.8771301605 | H44: =IF($C$2=25,misc!X24,misc!AL24) -> 0.8741793692 | I44: =IF($C$2=25,misc!Y24,misc!AM24) -> 0.8712285779 | J44: =IF($C$2=25,misc!Z24,misc!AN24) -> 0.8608917229 | K44: =IF($C$2=25,misc!AA24,misc!AO24) -> 0.8505548678 | L44: =IF($C$2=25,misc!AB24,misc!AP24) -> 0.8629837245 | M44: =IF($C$2=25,misc!AC24,misc!AQ24) -> 0.8754125813 | N44: =IF($C$2=25,misc!AD24,misc!AR24) -> 0.8878414381 | O44: =IF($C$2=25,misc!AE24,misc!AS24) -> 0.9002702949 | P44: =IF($C$2=25,misc!AF24,misc!AT24) -> 0.9126991517
C45: gas_ct | E45: =IF($C$2=25,misc!U25,misc!AI25) -> 0.8021039744 | F45: =IF($C$2=25,misc!V25,misc!AJ25) -> 0.8164055166 | G45: =IF($C$2=25,misc!W25,misc!AK25) -> 0.8307070589 | H45: =IF($C$2=25,misc!X25,misc!AL25) -> 0.8261428123 | I45: =IF($C$2=25,misc!Y25,misc!AM25) -> 0.8215785657 | J45: =IF($C$2=25,misc!Z25,misc!AN25) -> 0.8058109538 | K45: =IF($C$2=25,misc!AA25,misc!AO25) -> 0.7900433418 | L45: =IF($C$2=25,misc!AB25,misc!AP25) -> 0.7996283231 | M45: =IF($C$2=25,misc!AC25,misc!AQ25) -> 0.8092133043 | N45: =IF($C$2=25,misc!AD25,misc!AR25) -> 0.8187982855 | O45: =IF($C$2=25,misc!AE25,misc!AS25) -> 0.8283832668 | P45: =IF($C$2=25,misc!AF25,misc!AT25) -> 0.837968248
C46: cogen | E46: =IF($C$2=25,misc!U26,misc!AI26) -> 0.8951059587 | F46: =IF($C$2=25,misc!V26,misc!AJ26) -> 0.920809236 | G46: =IF($C$2=25,misc!W26,misc!AK26) -> 0.9465125134 | H46: =IF($C$2=25,misc!X26,misc!AL26) -> 0.919225361 | I46: =IF($C$2=25,misc!Y26,misc!AM26) -> 0.8919382087 | J46: =IF($C$2=25,misc!Z26,misc!AN26) -> 0.8903473987 | K46: =IF($C$2=25,misc!AA26,misc!AO26) -> 0.8887565887 | L46: =IF($C$2=25,misc!AB26,misc!AP26) -> 0.8965756633 | M46: =IF($C$2=25,misc!AC26,misc!AQ26) -> 0.9043947379 | N46: =IF($C$2=25,misc!AD26,misc!AR26) -> 0.9122138125 | O46: =IF($C$2=25,misc!AE26,misc!AS26) -> 0.9200328871 | P46: =IF($C$2=25,misc!AF26,misc!AT26) -> 0.9278519616
C47: ice | E47: =IF($C$2=25,misc!U27,misc!AI27) -> 0.929257507 | F47: =IF($C$2=25,misc!V27,misc!AJ27) -> 0.9015538872 | G47: =IF($C$2=25,misc!W27,misc!AK27) -> 0.8738502674 | H47: =IF($C$2=25,misc!X27,misc!AL27) -> 0.898028199 | I47: =IF($C$2=25,misc!Y27,misc!AM27) -> 0.9222061306 | J47: =IF($C$2=25,misc!Z27,misc!AN27) -> 0.9183171379 | K47: =IF($C$2=25,misc!AA27,misc!AO27) -> 0.9144281451 | L47: =IF($C$2=25,misc!AB27,misc!AP27) -> 0.9043018964 | M47: =IF($C$2=25,misc!AC27,misc!AQ27) -> 0.8941756476 | N47: =IF($C$2=25,misc!AD27,misc!AR27) -> 0.8840493989 | O47: =IF($C$2=25,misc!AE27,misc!AS27) -> 0.8739231501 | P47: =IF($C$2=25,misc!AF27,misc!AT27) -> 0.8637969013
C48: coal | E48: =IF($C$2=25,misc!U28,misc!AI28) -> 0.6905015933 | F48: =IF($C$2=25,misc!V28,misc!AJ28) -> 0.717208818 | G48: =IF($C$2=25,misc!W28,misc!AK28) -> 0.7439160428 | H48: =IF($C$2=25,misc!X28,misc!AL28) -> 0.7372126674 | I48: =IF($C$2=25,misc!Y28,misc!AM28) -> 0.730509292 | J48: =IF($C$2=25,misc!Z28,misc!AN28) -> 0.7101556591 | K48: =IF($C$2=25,misc!AA28,misc!AO28) -> 0.6898020261 | L48: =IF($C$2=25,misc!AB28,misc!AP28) -> 0.7168868434 | M48: =IF($C$2=25,misc!AC28,misc!AQ28) -> 0.7439716606 | N48: =IF($C$2=25,misc!AD28,misc!AR28) -> 0.7710564779 | O48: =IF($C$2=25,misc!AE28,misc!AS28) -> 0.7981412951 | P48: =IF($C$2=25,misc!AF28,misc!AT28) -> 0.8252261123
C49: steam | E49: =IF($C$2=25,misc!U29,misc!AI29) -> 0.7804543322 | F49: =IF($C$2=25,misc!V29,misc!AJ29) -> 0.7993993586 | G49: =IF($C$2=25,misc!W29,misc!AK29) -> 0.8183443851 | H49: =IF($C$2=25,misc!X29,misc!AL29) -> 0.8135892813 | I49: =IF($C$2=25,misc!Y29,misc!AM29) -> 0.8088341776 | J49: =IF($C$2=25,misc!Z29,misc!AN29) -> 0.7943961325 | K49: =IF($C$2=25,misc!AA29,misc!AO29) -> 0.7799580875 | L49: =IF($C$2=25,misc!AB29,misc!AP29) -> 0.7991709628 | M49: =IF($C$2=25,misc!AC29,misc!AQ29) -> 0.8183838381 | N49: =IF($C$2=25,misc!AD29,misc!AR29) -> 0.8375967134 | O49: =IF($C$2=25,misc!AE29,misc!AS29) -> 0.8568095886 | P49: =IF($C$2=25,misc!AF29,misc!AT29) -> 0.8760224639
C50: unspecified_import | E50: =IF($C$2=25,misc!U30,misc!AI30) -> 1 | F50: =IF($C$2=25,misc!V30,misc!AJ30) -> 1 | G50: =IF($C$2=25,misc!W30,misc!AK30) -> 1 | H50: =IF($C$2=25,misc!X30,misc!AL30) -> 1 | I50: =IF($C$2=25,misc!Y30,misc!AM30) -> 1 | J50: =IF($C$2=25,misc!Z30,misc!AN30) -> 1 | K50: =IF($C$2=25,misc!AA30,misc!AO30) -> 1 | L50: =IF($C$2=25,misc!AB30,misc!AP30) -> 1 | M50: =IF($C$2=25,misc!AC30,misc!AQ30) -> 1 | N50: =IF($C$2=25,misc!AD30,misc!AR30) -> 1 | O50: =IF($C$2=25,misc!AE30,misc!AS30) -> 1 | P50: =IF($C$2=25,misc!AF30,misc!AT30) -> 1
C54: Contract ELCC (effective MW)
C55: Resource Type | D55: Contract Status | E55: 2024 | F55: 2025 | G55: 2026 | H55: 2027 | I55: 2028 | J55: 2029 | K55: 2030 | L55: 2031 | M55: 2032 | N55: 2033 | O55: 2034 | P55: 2035
C56: hybrid | D56: Online
C57: in_state_wind_south | D57: Online
C58: in_state_wind_north | D58: Online
C59: out_of_state_wind_WYID | D59: Online
C60: out_of_state_wind_WAOR | D60: Online
C61: out_of_state_wind_AZNM | D61: Online
C62: offshore_wind | D62: Online
C63: utility_pv | D63: Online
C64: btm_pv | D64: Online
C65: 4hr_batteries | D65: Online
C66: 5hr_batteries | D66: Online
C67: 6hr_batteries | D67: Online
C68: 7hr_batteries | D68: Online
C69: 8hr_batteries | D69: Online
C70: pumped_storage | D70: Online
C71: demand_response | D71: Online
C72: hydro | D72: Online
C73: small_hydro | D73: Online
C74: geothermal | D74: Online
C75: biomass_wood | D75: Online
C76: biogas | D76: Online
C77: nuclear | D77: Online
C78: gas_cc | D78: Online
C79: gas_ct | D79: Online
C80: cogen | D80: Online
C81: ice | D81: Online
C82: coal | D82: Online
C83: steam | D83: Online
C84: unspecified_import | D84: Online
C85: hybrid | D85: Development
C86: in_state_wind_south | D86: Development
C87: in_state_wind_north | D87: Development
C88: out_of_state_wind_WYID | D88: Development
C89: out_of_state_wind_WAOR | D89: Development
C90: out_of_state_wind_AZNM | D90: Development
C91: offshore_wind | D91: Development
C92: utility_pv | D92: Development
C93: btm_pv | D93: Development
C94: 4hr_batteries | D94: Development
C95: 5hr_batteries | D95: Development
C96: 6hr_batteries | D96: Development
C97: 7hr_batteries | D97: Development
C98: 8hr_batteries | D98: Development
C99: pumped_storage | D99: Development
C100: demand_response | D100: Development
C101: hydro | D101: Development
C102: small_hydro | D102: Development
C103: geothermal | D103: Development
C104: biomass_wood | D104: Development
C105: biogas | D105: Development
C106: nuclear | D106: Development
C107: gas_cc | D107: Development
C108: gas_ct | D108: Development
C109: cogen | D109: Development
C110: ice | D110: Development
C111: coal | D111: Development
C112: steam | D112: Development
C113: unspecified_import | D113: Development
C114: hybrid | D114: Review
C115: in_state_wind_south | D115: Review
C116: in_state_wind_north | D116: Review
C117: out_of_state_wind_WYID | D117: Review
C118: out_of_state_wind_WAOR | D118: Review
C119: out_of_state_wind_AZNM | D119: Review
C120: offshore_wind | D120: Review
C121: utility_pv | D121: Review
C122: btm_pv | D122: Review
C123: 4hr_batteries | D123: Review
C124: 5hr_batteries | D124: Review
C125: 6hr_batteries | D125: Review
C126: 7hr_batteries | D126: Review
C127: 8hr_batteries | D127: Review
C128: pumped_storage | D128: Review
C129: demand_response | D129: Review
C130: hydro | D130: Review
C131: small_hydro | D131: Review
C132: geothermal | D132: Review
C133: biomass_wood | D133: Review
C134: biogas | D134: Review
C135: nuclear | D135: Review
C136: gas_cc | D136: Review
C137: gas_ct | D137: Review
C138: cogen | D138: Review
C139: ice | D139: Review
C140: coal | D140: Review
C141: steam | D141: Review
C142: unspecified_import | D142: Review
C143: hybrid | D143: PlannedExisting
C144: in_state_wind_south | D144: PlannedExisting
C145: in_state_wind_north | D145: PlannedExisting
C146: out_of_state_wind_WYID | D146: PlannedExisting
C147: out_of_state_wind_WAOR | D147: PlannedExisting
C148: out_of_state_wind_AZNM | D148: PlannedExisting
C149: offshore_wind | D149: PlannedExisting
C150: utility_pv | D150: PlannedExisting
C151: btm_pv | D151: PlannedExisting
C152: 4hr_batteries | D152: PlannedExisting
C153: 5hr_batteries | D153: PlannedExisting
C154: 6hr_batteries | D154: PlannedExisting
C155: 7hr_batteries | D155: PlannedExisting
C156: 8hr_batteries | D156: PlannedExisting
C157: pumped_storage | D157: PlannedExisting
C158: demand_response | D158: PlannedExisting
C159: hydro | D159: PlannedExisting
C160: small_hydro | D160: PlannedExisting
C161: geothermal | D161: PlannedExisting
C162: biomass_wood | D162: PlannedExisting
C163: biogas | D163: PlannedExisting
C164: nuclear | D164: PlannedExisting
C165: gas_cc | D165: PlannedExisting
C166: gas_ct | D166: PlannedExisting
C167: cogen | D167: PlannedExisting
C168: ice | D168: PlannedExisting
C169: coal | D169: PlannedExisting
C170: steam | D170: PlannedExisting
C171: unspecified_import | D171: PlannedExisting
C172: hybrid | D172: PlannedNew
C173: in_state_wind_south | D173: PlannedNew
C174: in_state_wind_north | D174: PlannedNew
C175: out_of_state_wind_WYID | D175: PlannedNew
C176: out_of_state_wind_WAOR | D176: PlannedNew
C177: out_of_state_wind_AZNM | D177: PlannedNew
C178: offshore_wind | D178: PlannedNew
C179: utility_pv | D179: PlannedNew
C180: btm_pv | D180: PlannedNew
C181: 4hr_batteries | D181: PlannedNew
C182: 5hr_batteries | D182: PlannedNew
C183: 6hr_batteries | D183: PlannedNew
C184: 7hr_batteries | D184: PlannedNew
C185: 8hr_batteries | D185: PlannedNew
C186: pumped_storage | D186: PlannedNew
C187: demand_response | D187: PlannedNew
C188: hydro | D188: PlannedNew
C189: small_hydro | D189: PlannedNew
C190: geothermal | D190: PlannedNew
C191: biomass_wood | D191: PlannedNew
C192: biogas | D192: PlannedNew
C193: nuclear | D193: PlannedNew
C194: gas_cc | D194: PlannedNew
C195: gas_ct | D195: PlannedNew
C196: cogen | D196: PlannedNew
C197: ice | D197: PlannedNew
C198: coal | D198: PlannedNew
C199: steam | D199: PlannedNew
C200: unspecified_import | D200: PlannedNew
C201: LSE total supply (effective MW)
C205: Load and Resource Table by Resource Type
E206: 2024 | F206: 2025 | G206: 2026 | H206: 2027 | I206: 2028 | J206: 2029 | K206: 2030 | L206: 2031 | M206: 2032 | N206: 2033 | O206: 2034 | P206: 2035
C207: LSE reliability need (MW)
C208: ELCC by resource type (effective MW)
C209: hybrid
C210: in_state_wind_south
C211: in_state_wind_north
C212: out_of_state_wind_WYID
... 39 more rows

Sheet ReportSheet
A1: Duplicated Contract IDs: | B1: Entry with non-positive values: | C1: Invalid resource error rows: | D1: Rows missing required project viability associated data: | E1: Rows missing required hybrid associated data: | F1: Supertype Contract Status Error or Null Rows: | G1: Transaction counterparty error rows: | H1: Rows missing CSP GWh: | I1: Rows with invalid buying_energy_capacity and csp_resource_category: | J1: Rows missing MTR NQC: | K1: Warning-total capacity is equal to or greater then generator plus storage MWs for rows:
D2: 29 | E2: 41
D3: 30 | E3: 42
D4: 32
D5: 33
D6: 45
D7: 46
D8: 48
